Department Family,Entity,Date,Expense Type,Expense area,Supplier,Transaction Number,Amount,VAT registration Number
Department of Health,Salisbury NHS Foundation Trust,02-Aug-13,DRUGS,Clinical Support and Family Services,ROCHE PRODUCTS LTD,1321601871,38707,
Department of Health,Salisbury NHS Foundation Trust,02-Aug-13,DRUGS,Clinical Support and Family Services,ROCHE PRODUCTS LTD,1321601871,7741.4,
Department of Health,Salisbury NHS Foundation Trust,02-Aug-13,ETS UNITARY CHARGE,Facilities Directorate,SALISBURY HEALTHCARE FACILITIES LTD,181,276553.61,
Department of Health,Salisbury NHS Foundation Trust,09-Aug-13,NETWORKING COSTS,Capital Projects,ASCRIBE LTD,SINV000003436,12500,
Department of Health,Salisbury NHS Foundation Trust,09-Aug-13,NETWORKING COSTS,Capital Projects,ASCRIBE LTD,SINV000003436,12500,
Department of Health,Salisbury NHS Foundation Trust,09-Aug-13,NETWORKING COSTS,Capital Projects,ASCRIBE LTD,SINV000003436,2500,
Department of Health,Salisbury NHS Foundation Trust,09-Aug-13,NETWORKING COSTS,Capital Projects,ASCRIBE LTD,SINV000003436,2500,
Department of Health,Salisbury NHS Foundation Trust,09-Aug-13,MED SURG EQUIP REP MAINT CLEANING,Medicine,MCKESSON INFORMATION SOLUTIONS (UK) LTD,INV009601,22516.42,
Department of Health,Salisbury NHS Foundation Trust,09-Aug-13,BLOOD PRODUCTS,Clinical Support and Family Services,NATIONAL BLOOD SERVICE,824157,66064.51,
Department of Health,Salisbury NHS Foundation Trust,09-Aug-13,CAPITAL RETENTIONS,Capital Projects,ISG PEARCE LIMITED,CSI10127-18,35495.83,
Department of Health,Salisbury NHS Foundation Trust,09-Aug-13,BLDG STRUCTURES MAIN CONTR,Capital Projects,ISG PEARCE LIMITED,CSI10127-18,27337.59,
Department of Health,Salisbury NHS Foundation Trust,09-Aug-13,CAPITAL RETENTIONS,Capital Projects,ISG PEARCE LIMITED,CSI10127-18,5111.4,
Department of Health,Salisbury NHS Foundation Trust,09-Aug-13,BLDG STRUCTURES MAIN CONTR,Capital Projects,ISG PEARCE LIMITED,CSI10127-18,3936.61,
Department of Health,Salisbury NHS Foundation Trust,09-Aug-13,LAB EQUIP-LABORATORY APPARATUS,Clinical Support and Family Services,OXFORD GENE TECHNOLOGY,SIN002654,36666,
Department of Health,Salisbury NHS Foundation Trust,09-Aug-13,LAB EQUIP-LABORATORY APPARATUS,Clinical Support and Family Services,OXFORD GENE TECHNOLOGY,SIN002654,7333.2,
Department of Health,Salisbury NHS Foundation Trust,09-Aug-13,DI & RADIO - RADIOLOGY EQUIPMENT,Clinical Support and Family Services,SIEMENS HEALTHCARE DIAGNOSTICS LIMITED,1020625647,28600,
Department of Health,Salisbury NHS Foundation Trust,16-Aug-13,ENERGY WATER - ELECTRICITY,Facilities Directorate,EDF ENERGY,24,79637.02,
Department of Health,Salisbury NHS Foundation Trust,16-Aug-13,COMPUTERS,Capital Projects,AGFA HEALTHCARE NV,9009001363,2000,
Department of Health,Salisbury NHS Foundation Trust,16-Aug-13,COMPUTERS,Capital Projects,AGFA HEALTHCARE NV,9009001363,88837,
Department of Health,Salisbury NHS Foundation Trust,16-Aug-13,COMPUTERS,Capital Projects,AGFA HEALTHCARE NV,9009001363,54390,
Department of Health,Salisbury NHS Foundation Trust,16-Aug-13,COMPUTERS,Capital Projects,AGFA HEALTHCARE NV,9009001363,7550,
Department of Health,Salisbury NHS Foundation Trust,16-Aug-13,COMPUTERS,Capital Projects,AGFA HEALTHCARE NV,9009001363,400,
Department of Health,Salisbury NHS Foundation Trust,16-Aug-13,COMPUTERS,Capital Projects,AGFA HEALTHCARE NV,9009001363,17767.4,
Department of Health,Salisbury NHS Foundation Trust,16-Aug-13,COMPUTERS,Capital Projects,AGFA HEALTHCARE NV,9009001363,10878,
Department of Health,Salisbury NHS Foundation Trust,16-Aug-13,COMPUTERS,Capital Projects,AGFA HEALTHCARE NV,9009001363,1510,
Department of Health,Salisbury NHS Foundation Trust,16-Aug-13,ENERGY WATER - WATER MAINS,Facilities Directorate,BWBSL,4066307575,34662.19,
Department of Health,Salisbury NHS Foundation Trust,16-Aug-13,ENERGY WATER - SEWERAGE CHARGES,Facilities Directorate,BWBSL,4066307575,11811.01,
Department of Health,Salisbury NHS Foundation Trust,16-Aug-13,RATES,Facilities Directorate,WILTSHIRE COUNCIL,Aug-13,77206.4,
Department of Health,Salisbury NHS Foundation Trust,16-Aug-13,OVERHEADS,COMMERCIAL SHOP LEASING,WILTSHIRE COUNCIL,Aug-13,1389,
Department of Health,Salisbury NHS Foundation Trust,16-Aug-13,RATES,Facilities Directorate,WILTSHIRE COUNCIL,Aug-13,8600,
Department of Health,Salisbury NHS Foundation Trust,16-Aug-13,STATIONERY SUNDRIES,Critical care,NHS LOGISTICS,1014061140,0.15,
Department of Health,Salisbury NHS Foundation Trust,16-Aug-13,STATIONERY SUNDRIES,Medicine,NHS LOGISTICS,1014061140,0.22,
Department of Health,Salisbury NHS Foundation Trust,16-Aug-13,PAPER ITEMS GENERAL STATIONERY SUNDRIES,Facilities Directorate,NHS LOGISTICS,1014061140,0.23,
Department of Health,Salisbury NHS Foundation Trust,16-Aug-13,STATIONERY SUNDRIES,Medicine,NHS LOGISTICS,1014061140,0.25,
Department of Health,Salisbury NHS Foundation Trust,16-Aug-13,STATIONERY SUNDRIES,Critical care,NHS LOGISTICS,1014061140,0.27,
Department of Health,Salisbury NHS Foundation Trust,16-Aug-13,STATIONERY SUNDRIES,Critical care,NHS LOGISTICS,1014061140,0.31,
Department of Health,Salisbury NHS Foundation Trust,16-Aug-13,STATIONERY SUNDRIES,Clinical Support and Family Services,NHS LOGISTICS,1014061140,0.32,
Department of Health,Salisbury NHS Foundation Trust,16-Aug-13,TISSUES HAND TOWELS & TOILET PAPER,Surgery,NHS LOGISTICS,1014061140,0.36,
Department of Health,Salisbury NHS Foundation Trust,16-Aug-13,TISSUES HAND TOWELS & TOILET PAPER,Surgery,NHS LOGISTICS,1014061140,0.36,
Department of Health,Salisbury NHS Foundation Trust,16-Aug-13,MEDSURGCONS - OTHER,Critical care,NHS LOGISTICS,1014061140,0.38,
Department of Health,Salisbury NHS Foundation Trust,16-Aug-13,MEDSURGCONS - OTHER,Critical care,NHS LOGISTICS,1014061140,0.38,
Department of Health,Salisbury NHS Foundation Trust,16-Aug-13,MEDSURGCONS - OTHER,Critical care,NHS LOGISTICS,1014061140,0.38,
Department of Health,Salisbury NHS Foundation Trust,16-Aug-13,MEDSURGCONS - OTHER,Critical care,NHS LOGISTICS,1014061140,0.38,
Department of Health,Salisbury NHS Foundation Trust,16-Aug-13,DRESSINGS - PRE STERILE,Critical care,NHS LOGISTICS,1014061140,0.39,
Department of Health,Salisbury NHS Foundation Trust,16-Aug-13,DRESSINGS - PRE STERILE,Clinical Support and Family Services,NHS LOGISTICS,1014061140,0.39,
Department of Health,Salisbury NHS Foundation Trust,16-Aug-13,DRESSINGS - PRE STERILE,Clinical Support and Family Services,NHS LOGISTICS,1014061140,0.39,
Department of Health,Salisbury NHS Foundation Trust,16-Aug-13,STATIONERY SUNDRIES,Critical care,NHS LOGISTICS,1014061140,0.4,
Department of Health,Salisbury NHS Foundation Trust,16-Aug-13,DRESSINGS - PRE STERILE,Surgery,NHS LOGISTICS,1014061140,0.42,
Department of Health,Salisbury NHS Foundation Trust,16-Aug-13,TISSUES HAND TOWELS & TOILET PAPER,Critical care,NHS LOGISTICS,1014061140,0.44,
Department of Health,Salisbury NHS Foundation Trust,16-Aug-13,STATIONERY SUNDRIES,Clinical Support and Family Services,NHS LOGISTICS,1014061140,0.45,
Department of Health,Salisbury NHS Foundation Trust,16-Aug-13,DRESSINGS - PRE STERILE,Surgery,NHS LOGISTICS,1014061140,0.45,
Department of Health,Salisbury NHS Foundation Trust,16-Aug-13,DRESSINGS - PRE STERILE,Surgery,NHS LOGISTICS,1014061140,0.45,
Department of Health,Salisbury NHS Foundation Trust,16-Aug-13,DRESSINGS - PRE STERILE,Clinical Support and Family Services,NHS LOGISTICS,1014061140,0.45,
Department of Health,Salisbury NHS Foundation Trust,16-Aug-13,PAPER ITEMS GENERAL STATIONERY SUNDRIES,Facilities Directorate,NHS LOGISTICS,1014061140,0.5,
Department of Health,Salisbury NHS Foundation Trust,16-Aug-13,STATIONERY SUNDRIES,Critical care,NHS LOGISTICS,1014061140,0.56,
Department of Health,Salisbury NHS Foundation Trust,16-Aug-13,STATIONERY SUNDRIES,Facilities Directorate,NHS LOGISTICS,1014061140,0.6,
Department of Health,Salisbury NHS Foundation Trust,16-Aug-13,M & S EQUIPELECTEQUIPINST - OTHER,Clinical Support and Family Services,NHS LOGISTICS,1014061140,0.63,
Department of Health,Salisbury NHS Foundation Trust,16-Aug-13,STATIONERY SUNDRIES,Medicine,NHS LOGISTICS,1014061140,0.63,
Department of Health,Salisbury NHS Foundation Trust,16-Aug-13,M & S EQUIPELECTEQUIPINST - OTHER,Clinical Support and Family Services,NHS LOGISTICS,1014061140,0.63,
Department of Health,Salisbury NHS Foundation Trust,16-Aug-13,OFFICE EQUIP MACHINERY  -  OTHER,Clinical Support and Family Services,NHS LOGISTICS,1014061140,0.66,
Department of Health,Salisbury NHS Foundation Trust,16-Aug-13,TISSUES HAND TOWELS & TOILET PAPER,Surgery,NHS LOGISTICS,1014061140,0.68,
Department of Health,Salisbury NHS Foundation Trust,16-Aug-13,FRUIT & VEGETABLES,Facilities Directorate,NHS LOGISTICS,1014061140,0.69,
Department of Health,Salisbury NHS Foundation Trust,16-Aug-13,SURGICAL INSTRUMENTS: GENERAL,Medicine,NHS LOGISTICS,1014061140,0.7,
Department of Health,Salisbury NHS Foundation Trust,16-Aug-13,DRESSINGS - PRE STERILE,Medicine,NHS LOGISTICS,1014061140,0.7,
Department of Health,Salisbury NHS Foundation Trust,16-Aug-13,TISSUES HAND TOWELS & TOILET PAPER,Medicine,NHS LOGISTICS,1014061140,0.72,
Department of Health,Salisbury NHS Foundation Trust,16-Aug-13,TISSUES HAND TOWELS & TOILET PAPER,Medicine,NHS LOGISTICS,1014061140,0.72,
Department of Health,Salisbury NHS Foundation Trust,16-Aug-13,TISSUES HAND TOWELS & TOILET PAPER,Medicine,NHS LOGISTICS,1014061140,0.72,
Department of Health,Salisbury NHS Foundation Trust,16-Aug-13,TISSUES HAND TOWELS & TOILET PAPER,Critical care,NHS LOGISTICS,1014061140,0.72,
Department of Health,Salisbury NHS Foundation Trust,16-Aug-13,STATIONERY SUNDRIES,Medicine,NHS LOGISTICS,1014061140,0.73,
Department of Health,Salisbury NHS Foundation Trust,16-Aug-13,DRESSINGS  -  PROCEDURE PACKS,Medicine,NHS LOGISTICS,1014061140,0.73,
Department of Health,Salisbury NHS Foundation Trust,16-Aug-13,SURGICAL INSTRUMENTS: GENERAL,Medicine,NHS LOGISTICS,1014061140,0.78,
Department of Health,Salisbury NHS Foundation Trust,16-Aug-13,SURGICAL INSTRUMENTS: GENERAL,Medicine,NHS LOGISTICS,1014061140,0.78,
Department of Health,Salisbury NHS Foundation Trust,16-Aug-13,STATIONERY SUNDRIES,Clinical Support and Family Services,NHS LOGISTICS,1014061140,0.8,
Department of Health,Salisbury NHS Foundation Trust,16-Aug-13,PAPER ITEMS GENERAL STATIONERY SUNDRIES,Clinical Support and Family Services,NHS LOGISTICS,1014061140,0.82,
Department of Health,Salisbury NHS Foundation Trust,16-Aug-13,DRESSINGS - PRE STERILE,Medicine,NHS LOGISTICS,1014061140,0.84,
Department of Health,Salisbury NHS Foundation Trust,16-Aug-13,DRESSINGS - PRE STERILE,Medicine,NHS LOGISTICS,1014061140,0.84,
Department of Health,Salisbury NHS Foundation Trust,16-Aug-13,DRESSINGS - PRE STERILE,Medicine,NHS LOGISTICS,1014061140,0.85,
Department of Health,Salisbury NHS Foundation Trust,16-Aug-13,DRESSINGS - PRE STERILE,Medicine,NHS LOGISTICS,1014061140,0.85,
Department of Health,Salisbury NHS Foundation Trust,16-Aug-13,DRESSINGS - PRE STERILE,Medicine,NHS LOGISTICS,1014061140,0.85,
Department of Health,Salisbury NHS Foundation Trust,16-Aug-13,DRESSINGS - PRE STERILE,Medicine,NHS LOGISTICS,1014061140,0.85,
Department of Health,Salisbury NHS Foundation Trust,16-Aug-13,CLEANING MATERIALS PRODUCTS SUNDRIES,Medicine,NHS LOGISTICS,1014061140,0.85,
Department of Health,Salisbury NHS Foundation Trust,16-Aug-13,FRUIT & VEGETABLES,Facilities Directorate,NHS LOGISTICS,1014061140,0.87,
Department of Health,Salisbury NHS Foundation Trust,16-Aug-13,TISSUES HAND TOWELS & TOILET PAPER,Medicine,NHS LOGISTICS,1014061140,0.88,
Department of Health,Salisbury NHS Foundation Trust,16-Aug-13,TISSUES HAND TOWELS & TOILET PAPER,Medicine,NHS LOGISTICS,1014061140,0.88,
Department of Health,Salisbury NHS Foundation Trust,16-Aug-13,TISSUES HAND TOWELS & TOILET PAPER,Surgery,NHS LOGISTICS,1014061140,0.88,
Department of Health,Salisbury NHS Foundation Trust,16-Aug-13,DRESSINGS  -  PROCEDURE PACKS,Surgery,NHS LOGISTICS,1014061140,0.88,
Department of Health,Salisbury NHS Foundation Trust,16-Aug-13,TISSUES HAND TOWELS & TOILET PAPER,Clinical Support and Family Services,NHS LOGISTICS,1014061140,0.88,
Department of Health,Salisbury NHS Foundation Trust,16-Aug-13,TISSUES HAND TOWELS & TOILET PAPER,Clinical Support and Family Services,NHS LOGISTICS,1014061140,0.88,
Department of Health,Salisbury NHS Foundation Trust,16-Aug-13,TISSUES HAND TOWELS & TOILET PAPER,Clinical Support and Family Services,NHS LOGISTICS,1014061140,0.88,
Department of Health,Salisbury NHS Foundation Trust,16-Aug-13,STATIONERY SUNDRIES,Clinical Support and Family Services,NHS LOGISTICS,1014061140,0.93,
Department of Health,Salisbury NHS Foundation Trust,16-Aug-13,STATIONERY SUNDRIES,Human Resources,NHS LOGISTICS,1014061140,0.93,
Department of Health,Salisbury NHS Foundation Trust,16-Aug-13,FRUIT & VEGETABLES,Facilities Directorate,NHS LOGISTICS,1014061140,0.93,
Department of Health,Salisbury NHS Foundation Trust,16-Aug-13,DRESSINGS - PRE STERILE,Clinical Support and Family Services,NHS LOGISTICS,1014061140,0.98,
Department of Health,Salisbury NHS Foundation Trust,16-Aug-13,OTHER MEDICAL SUPPLIES,Clinical Support and Family Services,NHS LOGISTICS,1014061140,1.03,
Department of Health,Salisbury NHS Foundation Trust,16-Aug-13,STATIONERY SUNDRIES,Clinical Support and Family Services,NHS LOGISTICS,1014061140,1.07,
Department of Health,Salisbury NHS Foundation Trust,16-Aug-13,STATIONERY SUNDRIES,Medicine,NHS LOGISTICS,1014061140,1.07,
Department of Health,Salisbury NHS Foundation Trust,16-Aug-13,STATIONERY SUNDRIES,Facilities Directorate,NHS LOGISTICS,1014061140,1.07,
Department of Health,Salisbury NHS Foundation Trust,16-Aug-13,STATIONERY SUNDRIES,Facilities Directorate,NHS LOGISTICS,1014061140,1.07,
Department of Health,Salisbury NHS Foundation Trust,16-Aug-13,STATIONERY SUNDRIES,Medicine,NHS LOGISTICS,1014061140,1.07,
Department of Health,Salisbury NHS Foundation Trust,16-Aug-13,DRESSINGS - PRE STERILE,Medicine,NHS LOGISTICS,1014061140,1.08,
Department of Health,Salisbury NHS Foundation Trust,16-Aug-13,DRESSINGS - PRE STERILE,Medicine,NHS LOGISTICS,1014061140,1.08,
Department of Health,Salisbury NHS Foundation Trust,16-Aug-13,DRESSINGS - PRE STERILE,Clinical Support and Family Services,NHS LOGISTICS,1014061140,1.08,
Department of Health,Salisbury NHS Foundation Trust,16-Aug-13,STATIONERY SUNDRIES,Critical care,NHS LOGISTICS,1014061140,1.12,
Department of Health,Salisbury NHS Foundation Trust,16-Aug-13,STATIONERY SUNDRIES,Surgery,NHS LOGISTICS,1014061140,1.13,
Department of Health,Salisbury NHS Foundation Trust,16-Aug-13,DRESSINGS - PRE STERILE,Medicine,NHS LOGISTICS,1014061140,1.13,
Department of Health,Salisbury NHS Foundation Trust,16-Aug-13,DRESSINGS - PRE STERILE,Critical care,NHS LOGISTICS,1014061140,1.14,
Department of Health,Salisbury NHS Foundation Trust,16-Aug-13,STATIONERY SUNDRIES,Clinical Support and Family Services,NHS LOGISTICS,1014061140,1.17,
Department of Health,Salisbury NHS Foundation Trust,16-Aug-13,TUBES,Clinical Support and Family Services,NHS LOGISTICS,1014061140,1.17,
Department of Health,Salisbury NHS Foundation Trust,16-Aug-13,OTHER MEDICAL SUPPLIES,Clinical Support and Family Services,NHS LOGISTICS,1014061140,1.17,
Department of Health,Salisbury NHS Foundation Trust,16-Aug-13,DRESSINGS  -  PROCEDURE PACKS,Surgery,NHS LOGISTICS,1014061140,1.17,
Department of Health,Salisbury NHS Foundation Trust,16-Aug-13,DRESSINGS - PRE STERILE,Clinical Support and Family Services,NHS LOGISTICS,1014061140,1.17,
Department of Health,Salisbury NHS Foundation Trust,16-Aug-13,CLEANING MATERIALS PRODUCTS SUNDRIES,Facilities Directorate,NHS LOGISTICS,1014061140,1.18,
Department of Health,Salisbury NHS Foundation Trust,16-Aug-13,COOKING & KITCHEN UTENSILS,Facilities Directorate,NHS LOGISTICS,1014061140,1.19,
Department of Health,Salisbury NHS Foundation Trust,16-Aug-13,STATIONERY SUNDRIES,Facilities Directorate,NHS LOGISTICS,1014061140,1.2,
Department of Health,Salisbury NHS Foundation Trust,16-Aug-13,DISPOSABLE THEATRE DRAPES WIPES,Clinical Support and Family Services,NHS LOGISTICS,1014061140,1.25,
Department of Health,Salisbury NHS Foundation Trust,16-Aug-13,OFFICE EQUIP MACHINERY  -  OTHER,Critical care,NHS LOGISTICS,1014061140,1.32,
Department of Health,Salisbury NHS Foundation Trust,16-Aug-13,FRUIT & VEGETABLES,Facilities Directorate,NHS LOGISTICS,1014061140,1.32,
Department of Health,Salisbury NHS Foundation Trust,16-Aug-13,FRUIT & VEGETABLES,Facilities Directorate,NHS LOGISTICS,1014061140,1.32,
Department of Health,Salisbury NHS Foundation Trust,16-Aug-13,OTHER MEDICAL SUPPLIES,Clinical Support and Family Services,NHS LOGISTICS,1014061140,1.33,
Department of Health,Salisbury NHS Foundation Trust,16-Aug-13,ELECTRICAL EQUIPMENT x,Clinical Support and Family Services,NHS LOGISTICS,1014061140,1.33,
Department of Health,Salisbury NHS Foundation Trust,16-Aug-13,MEDSURGCONS - OTHER,Medicine,NHS LOGISTICS,1014061140,1.35,
Department of Health,Salisbury NHS Foundation Trust,16-Aug-13,TOILETRIES PERSONAL HYGIENE PRODUCTS,Surgery,NHS LOGISTICS,1014061140,1.36,
Department of Health,Salisbury NHS Foundation Trust,16-Aug-13,STATIONERY SUNDRIES,Critical care,NHS LOGISTICS,1014061140,1.38,
Department of Health,Salisbury NHS Foundation Trust,16-Aug-13,SURGICAL INSTRUMENTS: GENERAL,Surgery,NHS LOGISTICS,1014061140,1.4,
Department of Health,Salisbury NHS Foundation Trust,16-Aug-13,OTHER MEDICAL SUPPLIES,Medicine,NHS LOGISTICS,1014061140,1.42,
Department of Health,Salisbury NHS Foundation Trust,16-Aug-13,OTHER MEDICAL SUPPLIES,Surgery,NHS LOGISTICS,1014061140,1.42,
Department of Health,Salisbury NHS Foundation Trust,16-Aug-13,TISSUES HAND TOWELS & TOILET PAPER,Medicine,NHS LOGISTICS,1014061140,1.43,
Department of Health,Salisbury NHS Foundation Trust,16-Aug-13,STATIONERY SUNDRIES,Clinical Support and Family Services,NHS LOGISTICS,1014061140,1.47,
Department of Health,Salisbury NHS Foundation Trust,16-Aug-13,STATIONERY SUNDRIES,Critical care,NHS LOGISTICS,1014061140,1.47,
Department of Health,Salisbury NHS Foundation Trust,16-Aug-13,STATIONERY SUNDRIES,Facilities Directorate,NHS LOGISTICS,1014061140,1.5,
Department of Health,Salisbury NHS Foundation Trust,16-Aug-13,STATIONERY SUNDRIES,Critical care,NHS LOGISTICS,1014061140,1.52,
Department of Health,Salisbury NHS Foundation Trust,16-Aug-13,STATIONERY SUNDRIES,Medicine,NHS LOGISTICS,1014061140,1.53,
Department of Health,Salisbury NHS Foundation Trust,16-Aug-13,STATIONERY SUNDRIES,Medicine,NHS LOGISTICS,1014061140,1.53,
Department of Health,Salisbury NHS Foundation Trust,16-Aug-13,STATIONERY SUNDRIES,Medicine,NHS LOGISTICS,1014061140,1.53,
Department of Health,Salisbury NHS Foundation Trust,16-Aug-13,STATIONERY SUNDRIES,Medicine,NHS LOGISTICS,1014061140,1.53,
Department of Health,Salisbury NHS Foundation Trust,16-Aug-13,STATIONERY SUNDRIES,Medicine,NHS LOGISTICS,1014061140,1.53,
Department of Health,Salisbury NHS Foundation Trust,16-Aug-13,SURGICAL INSTRUMENTS: GENERAL,Surgery,NHS LOGISTICS,1014061140,1.55,
Department of Health,Salisbury NHS Foundation Trust,16-Aug-13,SURGICAL INSTRUMENTS: GENERAL,Surgery,NHS LOGISTICS,1014061140,1.55,
Department of Health,Salisbury NHS Foundation Trust,16-Aug-13,DRESSINGS - PRE STERILE,Clinical Support and Family Services,NHS LOGISTICS,1014061140,1.59,
Department of Health,Salisbury NHS Foundation Trust,16-Aug-13,STATIONERY SUNDRIES,Facilities Directorate,NHS LOGISTICS,1014061140,1.68,
Department of Health,Salisbury NHS Foundation Trust,16-Aug-13,STATIONERY SUNDRIES,Medicine,NHS LOGISTICS,1014061140,1.73,
Department of Health,Salisbury NHS Foundation Trust,16-Aug-13,TISSUES HAND TOWELS & TOILET PAPER,Surgery,NHS LOGISTICS,1014061140,1.77,
Department of Health,Salisbury NHS Foundation Trust,16-Aug-13,TISSUES HAND TOWELS & TOILET PAPER,Medicine,NHS LOGISTICS,1014061140,1.77,
Department of Health,Salisbury NHS Foundation Trust,16-Aug-13,TISSUES HAND TOWELS & TOILET PAPER,Medicine,NHS LOGISTICS,1014061140,1.79,
Department of Health,Salisbury NHS Foundation Trust,16-Aug-13,STATIONERY SUNDRIES,Clinical Support and Family Services,NHS LOGISTICS,1014061140,1.8,
Department of Health,Salisbury NHS Foundation Trust,16-Aug-13,SURGICAL INSTRUMENTS: GENERAL,Clinical Support and Family Services,NHS LOGISTICS,1014061140,1.81,
Department of Health,Salisbury NHS Foundation Trust,16-Aug-13,TISSUES HAND TOWELS & TOILET PAPER,Medicine,NHS LOGISTICS,1014061140,1.82,
Department of Health,Salisbury NHS Foundation Trust,16-Aug-13,TISSUES HAND TOWELS & TOILET PAPER,Critical care,NHS LOGISTICS,1014061140,1.82,
Department of Health,Salisbury NHS Foundation Trust,16-Aug-13,TISSUES HAND TOWELS & TOILET PAPER,Surgery,NHS LOGISTICS,1014061140,1.82,
Department of Health,Salisbury NHS Foundation Trust,16-Aug-13,TISSUES HAND TOWELS & TOILET PAPER,Clinical Support and Family Services,NHS LOGISTICS,1014061140,1.82,
Department of Health,Salisbury NHS Foundation Trust,16-Aug-13,TISSUES HAND TOWELS & TOILET PAPER,Medicine,NHS LOGISTICS,1014061140,1.82,
Department of Health,Salisbury NHS Foundation Trust,16-Aug-13,TISSUES HAND TOWELS & TOILET PAPER,Medicine,NHS LOGISTICS,1014061140,1.82,
Department of Health,Salisbury NHS Foundation Trust,16-Aug-13,TISSUES HAND TOWELS & TOILET PAPER,Medicine,NHS LOGISTICS,1014061140,1.82,
Department of Health,Salisbury NHS Foundation Trust,16-Aug-13,TISSUES HAND TOWELS & TOILET PAPER,Medicine,NHS LOGISTICS,1014061140,1.82,
Department of Health,Salisbury NHS Foundation Trust,16-Aug-13,TISSUES HAND TOWELS & TOILET PAPER,Medicine,NHS LOGISTICS,1014061140,1.82,
Department of Health,Salisbury NHS Foundation Trust,16-Aug-13,TISSUES HAND TOWELS & TOILET PAPER,Surgery,NHS LOGISTICS,1014061140,1.82,
Department of Health,Salisbury NHS Foundation Trust,16-Aug-13,TISSUES HAND TOWELS & TOILET PAPER,Clinical Support and Family Services,NHS LOGISTICS,1014061140,1.82,
Department of Health,Salisbury NHS Foundation Trust,16-Aug-13,TISSUES HAND TOWELS & TOILET PAPER,Clinical Support and Family Services,NHS LOGISTICS,1014061140,1.82,
Department of Health,Salisbury NHS Foundation Trust,16-Aug-13,STATIONERY SUNDRIES,Clinical Support and Family Services,NHS LOGISTICS,1014061140,1.83,
Department of Health,Salisbury NHS Foundation Trust,16-Aug-13,STATIONERY SUNDRIES,Surgery,NHS LOGISTICS,1014061140,1.83,
Department of Health,Salisbury NHS Foundation Trust,16-Aug-13,STATIONERY SUNDRIES,Critical care,NHS LOGISTICS,1014061140,1.83,
Department of Health,Salisbury NHS Foundation Trust,16-Aug-13,STATIONERY SUNDRIES,Facilities Directorate,NHS LOGISTICS,1014061140,1.85,
Department of Health,Salisbury NHS Foundation Trust,16-Aug-13,STATIONERY SUNDRIES,Surgery,NHS LOGISTICS,1014061140,1.85,
Department of Health,Salisbury NHS Foundation Trust,16-Aug-13,PATIENTS INCONTINENCE,Medicine,NHS LOGISTICS,1014061140,1.85,
Department of Health,Salisbury NHS Foundation Trust,16-Aug-13,STATIONERY SUNDRIES,Critical care,NHS LOGISTICS,1014061140,1.88,
Department of Health,Salisbury NHS Foundation Trust,16-Aug-13,DRESSINGS - PRE STERILE,Critical care,NHS LOGISTICS,1014061140,1.91,
Department of Health,Salisbury NHS Foundation Trust,16-Aug-13,DRESSINGS - PRE STERILE,Corporate Directorate,NHS LOGISTICS,1014061140,1.92,
Department of Health,Salisbury NHS Foundation Trust,16-Aug-13,PATIENT APPLIANCES,Medicine,NHS LOGISTICS,1014061140,1.92,
Department of Health,Salisbury NHS Foundation Trust,16-Aug-13,PATIENT APPLIANCES,Critical care,NHS LOGISTICS,1014061140,1.92,
Department of Health,Salisbury NHS Foundation Trust,16-Aug-13,DRESSINGS  -  PROCEDURE PACKS,Surgery,NHS LOGISTICS,1014061140,1.92,
Department of Health,Salisbury NHS Foundation Trust,16-Aug-13,BABY TEXTURE MODIFIED FOODS,Facilities Directorate,NHS LOGISTICS,1014061140,1.95,
Department of Health,Salisbury NHS Foundation Trust,16-Aug-13,PAPER ITEMS GENERAL STATIONERY SUNDRIES,Surgery,NHS LOGISTICS,1014061140,1.97,
Department of Health,Salisbury NHS Foundation Trust,16-Aug-13,FLAVOURINGS HERBS SPICES,Facilities Directorate,NHS LOGISTICS,1014061140,1.97,
Department of Health,Salisbury NHS Foundation Trust,16-Aug-13,DRESSINGS - PRE STERILE,Medicine,NHS LOGISTICS,1014061140,1.98,
Department of Health,Salisbury NHS Foundation Trust,16-Aug-13,STATIONERY SUNDRIES,Facilities Directorate,NHS LOGISTICS,1014061140,1.99,
Department of Health,Salisbury NHS Foundation Trust,16-Aug-13,STATIONERY SUNDRIES,Clinical Support and Family Services,NHS LOGISTICS,1014061140,2,
Department of Health,Salisbury NHS Foundation Trust,16-Aug-13,STATIONERY SUNDRIES,Clinical Support and Family Services,NHS LOGISTICS,1014061140,2,
Department of Health,Salisbury NHS Foundation Trust,16-Aug-13,STATIONERY SUNDRIES,Medicine,NHS LOGISTICS,1014061140,2,
Department of Health,Salisbury NHS Foundation Trust,16-Aug-13,STATIONERY SUNDRIES,Clinical Support and Family Services,NHS LOGISTICS,1014061140,2.01,
Department of Health,Salisbury NHS Foundation Trust,16-Aug-13,STATIONERY SUNDRIES,Clinical Support and Family Services,NHS LOGISTICS,1014061140,2.08,
Department of Health,Salisbury NHS Foundation Trust,16-Aug-13,DRESSINGS - PRE STERILE,Critical care,NHS LOGISTICS,1014061140,2.09,
Department of Health,Salisbury NHS Foundation Trust,16-Aug-13,OTHER MEDICAL SUPPLIES,Clinical Support and Family Services,NHS LOGISTICS,1014061140,2.1,
Department of Health,Salisbury NHS Foundation Trust,16-Aug-13,PAPER ITEMS GENERAL STATIONERY SUNDRIES,Clinical Support and Family Services,NHS LOGISTICS,1014061140,2.12,
Department of Health,Salisbury NHS Foundation Trust,16-Aug-13,M & S EQUIPELECTEQUIPINST - OTHER,Clinical Support and Family Services,NHS LOGISTICS,1014061140,2.18,
Department of Health,Salisbury NHS Foundation Trust,16-Aug-13,TISSUES HAND TOWELS & TOILET PAPER,Surgery,NHS LOGISTICS,1014061140,2.21,
Department of Health,Salisbury NHS Foundation Trust,16-Aug-13,OTHER MEDICAL SUPPLIES,Clinical Support and Family Services,NHS LOGISTICS,1014061140,2.21,
Department of Health,Salisbury NHS Foundation Trust,16-Aug-13,STATIONERY SUNDRIES,Surgery,NHS LOGISTICS,1014061140,2.23,
Department of Health,Salisbury NHS Foundation Trust,16-Aug-13,LAB EQUIP-LABORATORY APPARATUS,Medicine,NHS LOGISTICS,1014061140,2.26,
Department of Health,Salisbury NHS Foundation Trust,16-Aug-13,LAB EQUIP-LABORATORY APPARATUS,Critical care,NHS LOGISTICS,1014061140,2.26,
Department of Health,Salisbury NHS Foundation Trust,16-Aug-13,LAB EQUIP-LABORATORY APPARATUS,Critical care,NHS LOGISTICS,1014061140,2.26,
Department of Health,Salisbury NHS Foundation Trust,16-Aug-13,OTHER MEDICAL SUPPLIES,Clinical Support and Family Services,NHS LOGISTICS,1014061140,2.28,
Department of Health,Salisbury NHS Foundation Trust,16-Aug-13,STATIONERY SUNDRIES,Medicine,NHS LOGISTICS,1014061140,2.31,
Department of Health,Salisbury NHS Foundation Trust,16-Aug-13,PAPER ITEMS GENERAL STATIONERY SUNDRIES,Clinical Support and Family Services,NHS LOGISTICS,1014061140,2.33,
Department of Health,Salisbury NHS Foundation Trust,16-Aug-13,HABERDASHERY,Critical care,NHS LOGISTICS,1014061140,2.36,
Department of Health,Salisbury NHS Foundation Trust,16-Aug-13,FRUIT & VEGETABLES,Facilities Directorate,NHS LOGISTICS,1014061140,2.48,
Department of Health,Salisbury NHS Foundation Trust,16-Aug-13,DRESSINGS - PRE STERILE,Critical care,NHS LOGISTICS,1014061140,2.51,
Department of Health,Salisbury NHS Foundation Trust,16-Aug-13,TISSUES HAND TOWELS & TOILET PAPER,Clinical Support and Family Services,NHS LOGISTICS,1014061140,2.65,
Department of Health,Salisbury NHS Foundation Trust,16-Aug-13,FLAVOURINGS HERBS SPICES,Facilities Directorate,NHS LOGISTICS,1014061140,2.69,
Department of Health,Salisbury NHS Foundation Trust,16-Aug-13,SURGICAL INSTRUMENTS: GENERAL,Surgery,NHS LOGISTICS,1014061140,2.71,
Department of Health,Salisbury NHS Foundation Trust,16-Aug-13,BEVERAGES & AMBIENT FOOD,Clinical Support and Family Services,NHS LOGISTICS,1014061140,2.73,
Department of Health,Salisbury NHS Foundation Trust,16-Aug-13,STATIONERY SUNDRIES,Critical care,NHS LOGISTICS,1014061140,2.75,
Department of Health,Salisbury NHS Foundation Trust,16-Aug-13,STATIONERY SUNDRIES,Corporate Directorate,NHS LOGISTICS,1014061140,2.75,
Department of Health,Salisbury NHS Foundation Trust,16-Aug-13,MEDSURGCONS - OTHER,Clinical Support and Family Services,NHS LOGISTICS,1014061140,2.75,
Department of Health,Salisbury NHS Foundation Trust,16-Aug-13,DRESSINGS  -  PROCEDURE PACKS,Surgery,NHS LOGISTICS,1014061140,2.78,
Department of Health,Salisbury NHS Foundation Trust,16-Aug-13,OTHER MEDICAL SUPPLIES,Clinical Support and Family Services,NHS LOGISTICS,1014061140,2.8,
Department of Health,Salisbury NHS Foundation Trust,16-Aug-13,DISPOSABLE THEATRE DRAPES WIPES,Medicine,NHS LOGISTICS,1014061140,2.95,
Department of Health,Salisbury NHS Foundation Trust,16-Aug-13,BEVERAGES & AMBIENT FOOD,Clinical Support and Family Services,NHS LOGISTICS,1014061140,2.98,
Department of Health,Salisbury NHS Foundation Trust,16-Aug-13,OTHER MEDICAL SUPPLIES,Medicine,NHS LOGISTICS,1014061140,2.98,
Department of Health,Salisbury NHS Foundation Trust,16-Aug-13,PAPER ITEMS GENERAL STATIONERY SUNDRIES,Clinical Support and Family Services,NHS LOGISTICS,1014061140,3,
Department of Health,Salisbury NHS Foundation Trust,16-Aug-13,LAB EQUIP-LABORATORY APPARATUS,Clinical Support and Family Services,NHS LOGISTICS,1014061140,3.04,
Department of Health,Salisbury NHS Foundation Trust,16-Aug-13,PAPER ITEMS GENERAL STATIONERY SUNDRIES,Medicine,NHS LOGISTICS,1014061140,3.07,
Department of Health,Salisbury NHS Foundation Trust,16-Aug-13,STATIONERY SUNDRIES,Surgery,NHS LOGISTICS,1014061140,3.07,
Department of Health,Salisbury NHS Foundation Trust,16-Aug-13,STATIONERY SUNDRIES,Clinical Support and Family Services,NHS LOGISTICS,1014061140,3.07,
Department of Health,Salisbury NHS Foundation Trust,16-Aug-13,DRUGS,Surgery,NHS LOGISTICS,1014061140,3.13,
Department of Health,Salisbury NHS Foundation Trust,16-Aug-13,EGGS MILK OTHER DAIRY PRODUCTS,Clinical Support and Family Services,NHS LOGISTICS,1014061140,3.16,
Department of Health,Salisbury NHS Foundation Trust,16-Aug-13,MEDSURGCONS - OTHER,Surgery,NHS LOGISTICS,1014061140,3.17,
Department of Health,Salisbury NHS Foundation Trust,16-Aug-13,DRESSINGS - PRE STERILE,Critical care,NHS LOGISTICS,1014061140,3.17,
Department of Health,Salisbury NHS Foundation Trust,16-Aug-13,STATIONERY SUNDRIES,Medicine,NHS LOGISTICS,1014061140,3.2,
Department of Health,Salisbury NHS Foundation Trust,16-Aug-13,TOILETRIES PERSONAL HYGIENE PRODUCTS,Medicine,NHS LOGISTICS,1014061140,3.22,
Department of Health,Salisbury NHS Foundation Trust,16-Aug-13,DRESSINGS - PRE STERILE,Clinical Support and Family Services,NHS LOGISTICS,1014061140,3.23,
Department of Health,Salisbury NHS Foundation Trust,16-Aug-13,TOILETRIES PERSONAL HYGIENE PRODUCTS,Clinical Support and Family Services,NHS LOGISTICS,1014061140,3.25,
Department of Health,Salisbury NHS Foundation Trust,16-Aug-13,OTHER MEDICAL SUPPLIES,Critical care,NHS LOGISTICS,1014061140,3.26,
Department of Health,Salisbury NHS Foundation Trust,16-Aug-13,OTHER MEDICAL SUPPLIES,Clinical Support and Family Services,NHS LOGISTICS,1014061140,3.26,
Department of Health,Salisbury NHS Foundation Trust,16-Aug-13,OTHER MEDICAL SUPPLIES,Medicine,NHS LOGISTICS,1014061140,3.26,
Department of Health,Salisbury NHS Foundation Trust,16-Aug-13,OTHER MEDICAL SUPPLIES,Critical care,NHS LOGISTICS,1014061140,3.26,
Department of Health,Salisbury NHS Foundation Trust,16-Aug-13,OTHER MEDICAL SUPPLIES,Medicine,NHS LOGISTICS,1014061140,3.26,
Department of Health,Salisbury NHS Foundation Trust,16-Aug-13,OTHER MEDICAL SUPPLIES,Surgery,NHS LOGISTICS,1014061140,3.26,
Department of Health,Salisbury NHS Foundation Trust,16-Aug-13,DISPOSABLE THEATRE DRAPES WIPES,Clinical Support and Family Services,NHS LOGISTICS,1014061140,3.27,
Department of Health,Salisbury NHS Foundation Trust,16-Aug-13,BEVERAGES & AMBIENT FOOD,Facilities Directorate,NHS LOGISTICS,1014061140,3.28,
Department of Health,Salisbury NHS Foundation Trust,16-Aug-13,BEVERAGES & AMBIENT FOOD,Facilities Directorate,NHS LOGISTICS,1014061140,3.32,
Department of Health,Salisbury NHS Foundation Trust,16-Aug-13,ELECTRICAL EQUIPMENT x,Clinical Support and Family Services,NHS LOGISTICS,1014061140,3.33,
Department of Health,Salisbury NHS Foundation Trust,16-Aug-13,DRESSINGS - PRE STERILE,Medicine,NHS LOGISTICS,1014061140,3.35,
Department of Health,Salisbury NHS Foundation Trust,16-Aug-13,PAPER ITEMS GENERAL STATIONERY SUNDRIES,Facilities Directorate,NHS LOGISTICS,1014061140,3.37,
Department of Health,Salisbury NHS Foundation Trust,16-Aug-13,ANAESTHETIC EQUIPMENT ACCESSORIES,Medicine,NHS LOGISTICS,1014061140,3.38,
Department of Health,Salisbury NHS Foundation Trust,16-Aug-13,ANAESTHETIC EQUIPMENT ACCESSORIES,Medicine,NHS LOGISTICS,1014061140,3.38,
Department of Health,Salisbury NHS Foundation Trust,16-Aug-13,DRESSINGS - PRE STERILE,Surgery,NHS LOGISTICS,1014061140,3.42,
Department of Health,Salisbury NHS Foundation Trust,16-Aug-13,PATIENTS INCONTINENCE,Medicine,NHS LOGISTICS,1014061140,3.42,
Department of Health,Salisbury NHS Foundation Trust,16-Aug-13,PATIENTS INCONTINENCE,Critical care,NHS LOGISTICS,1014061140,3.42,
Department of Health,Salisbury NHS Foundation Trust,16-Aug-13,DRESSINGS - PRE STERILE,Surgery,NHS LOGISTICS,1014061140,3.42,
Department of Health,Salisbury NHS Foundation Trust,16-Aug-13,BEVERAGES & AMBIENT FOOD,Facilities Directorate,NHS LOGISTICS,1014061140,3.42,
Department of Health,Salisbury NHS Foundation Trust,16-Aug-13,TUBES,Clinical Support and Family Services,NHS LOGISTICS,1014061140,3.46,
Department of Health,Salisbury NHS Foundation Trust,16-Aug-13,FLAVOURINGS HERBS SPICES,Facilities Directorate,NHS LOGISTICS,1014061140,3.46,
Department of Health,Salisbury NHS Foundation Trust,16-Aug-13,FLAVOURINGS HERBS SPICES,Facilities Directorate,NHS LOGISTICS,1014061140,3.46,
Department of Health,Salisbury NHS Foundation Trust,16-Aug-13,OTHER MEDICAL SUPPLIES,Medicine,NHS LOGISTICS,1014061140,3.5,
Department of Health,Salisbury NHS Foundation Trust,16-Aug-13,DRESSINGS  -  PROCEDURE PACKS,Surgery,NHS LOGISTICS,1014061140,3.5,
Department of Health,Salisbury NHS Foundation Trust,16-Aug-13,OTHER MEDICAL SUPPLIES,Medicine,NHS LOGISTICS,1014061140,3.5,
Department of Health,Salisbury NHS Foundation Trust,16-Aug-13,FLAVOURINGS HERBS SPICES,Facilities Directorate,NHS LOGISTICS,1014061140,3.52,
Department of Health,Salisbury NHS Foundation Trust,16-Aug-13,TISSUES HAND TOWELS & TOILET PAPER,Medicine,NHS LOGISTICS,1014061140,3.53,
Department of Health,Salisbury NHS Foundation Trust,16-Aug-13,COOKING & KITCHEN UTENSILS,Surgery,NHS LOGISTICS,1014061140,3.55,
Department of Health,Salisbury NHS Foundation Trust,16-Aug-13,DISPOSABLE THEATRE DRAPES WIPES,Clinical Support and Family Services,NHS LOGISTICS,1014061140,3.56,
Department of Health,Salisbury NHS Foundation Trust,16-Aug-13,DRESSINGS - PRE STERILE,Surgery,NHS LOGISTICS,1014061140,3.57,
Department of Health,Salisbury NHS Foundation Trust,16-Aug-13,DRESSINGS - PRE STERILE,Surgery,NHS LOGISTICS,1014061140,3.57,
Department of Health,Salisbury NHS Foundation Trust,16-Aug-13,FLAVOURINGS HERBS SPICES,Facilities Directorate,NHS LOGISTICS,1014061140,3.59,
Department of Health,Salisbury NHS Foundation Trust,16-Aug-13,PATIENTS INCONTINENCE,Medicine,NHS LOGISTICS,1014061140,3.63,
Department of Health,Salisbury NHS Foundation Trust,16-Aug-13,PATIENTS INCONTINENCE,Medicine,NHS LOGISTICS,1014061140,3.63,
Department of Health,Salisbury NHS Foundation Trust,16-Aug-13,TISSUES HAND TOWELS & TOILET PAPER,Medicine,NHS LOGISTICS,1014061140,3.63,
Department of Health,Salisbury NHS Foundation Trust,16-Aug-13,TISSUES HAND TOWELS & TOILET PAPER,Surgery,NHS LOGISTICS,1014061140,3.63,
Department of Health,Salisbury NHS Foundation Trust,16-Aug-13,PATIENTS INCONTINENCE,Surgery,NHS LOGISTICS,1014061140,3.63,
Department of Health,Salisbury NHS Foundation Trust,16-Aug-13,TISSUES HAND TOWELS & TOILET PAPER,Critical care,NHS LOGISTICS,1014061140,3.63,
Department of Health,Salisbury NHS Foundation Trust,16-Aug-13,TISSUES HAND TOWELS & TOILET PAPER,Surgery,NHS LOGISTICS,1014061140,3.63,
Department of Health,Salisbury NHS Foundation Trust,16-Aug-13,TISSUES HAND TOWELS & TOILET PAPER,Critical care,NHS LOGISTICS,1014061140,3.63,
Department of Health,Salisbury NHS Foundation Trust,16-Aug-13,TISSUES HAND TOWELS & TOILET PAPER,Clinical Support and Family Services,NHS LOGISTICS,1014061140,3.63,
Department of Health,Salisbury NHS Foundation Trust,16-Aug-13,PATIENTS INCONTINENCE,Medicine,NHS LOGISTICS,1014061140,3.63,
Department of Health,Salisbury NHS Foundation Trust,16-Aug-13,TISSUES HAND TOWELS & TOILET PAPER,Critical care,NHS LOGISTICS,1014061140,3.63,
Department of Health,Salisbury NHS Foundation Trust,16-Aug-13,DRESSINGS - PRE STERILE,Surgery,NHS LOGISTICS,1014061140,3.75,
Department of Health,Salisbury NHS Foundation Trust,16-Aug-13,TISSUES HAND TOWELS & TOILET PAPER,Clinical Support and Family Services,NHS LOGISTICS,1014061140,3.75,
Department of Health,Salisbury NHS Foundation Trust,16-Aug-13,DRESSINGS - PRE STERILE,Surgery,NHS LOGISTICS,1014061140,3.76,
Department of Health,Salisbury NHS Foundation Trust,16-Aug-13,BEVERAGES & AMBIENT FOOD,Facilities Directorate,NHS LOGISTICS,1014061140,3.81,
Department of Health,Salisbury NHS Foundation Trust,16-Aug-13,SURGICAL INSTRUMENTS: GENERAL,Facilities Directorate,NHS LOGISTICS,1014061140,3.82,
Department of Health,Salisbury NHS Foundation Trust,16-Aug-13,PATIENT APPLIANCES,Medicine,NHS LOGISTICS,1014061140,3.83,
Department of Health,Salisbury NHS Foundation Trust,16-Aug-13,PATIENT APPLIANCES,Medicine,NHS LOGISTICS,1014061140,3.83,
Department of Health,Salisbury NHS Foundation Trust,16-Aug-13,TOILETRIES PERSONAL HYGIENE PRODUCTS,Medicine,NHS LOGISTICS,1014061140,3.83,
Department of Health,Salisbury NHS Foundation Trust,16-Aug-13,PATIENT APPLIANCES,Medicine,NHS LOGISTICS,1014061140,3.83,
Department of Health,Salisbury NHS Foundation Trust,16-Aug-13,DRUGS,Surgery,NHS LOGISTICS,1014061140,3.86,
Department of Health,Salisbury NHS Foundation Trust,16-Aug-13,PATIENT APPLIANCES,Medicine,NHS LOGISTICS,1014061140,3.9,
Department of Health,Salisbury NHS Foundation Trust,16-Aug-13,PATIENT APPLIANCES,Medicine,NHS LOGISTICS,1014061140,3.92,
Department of Health,Salisbury NHS Foundation Trust,16-Aug-13,PATIENT APPLIANCES,Medicine,NHS LOGISTICS,1014061140,3.92,
Department of Health,Salisbury NHS Foundation Trust,16-Aug-13,LAB EQUIP-ANALYSERS,Medicine,NHS LOGISTICS,1014061140,3.95,
Department of Health,Salisbury NHS Foundation Trust,16-Aug-13,LIQUID REFRESHMENTS,Facilities Directorate,NHS LOGISTICS,1014061140,3.97,
Department of Health,Salisbury NHS Foundation Trust,16-Aug-13,PAPER ITEMS GENERAL STATIONERY SUNDRIES,Medicine,NHS LOGISTICS,1014061140,3.99,
Department of Health,Salisbury NHS Foundation Trust,16-Aug-13,HEALTHCARE - WEAR,Clinical Support and Family Services,NHS LOGISTICS,1014061140,3.99,
Department of Health,Salisbury NHS Foundation Trust,16-Aug-13,STATIONERY SUNDRIES,Clinical Support and Family Services,NHS LOGISTICS,1014061140,4,
Department of Health,Salisbury NHS Foundation Trust,16-Aug-13,BAGS SACKS - OTHER,Surgery,NHS LOGISTICS,1014061140,4.01,
Department of Health,Salisbury NHS Foundation Trust,16-Aug-13,BAGS SACKS - OTHER,Critical care,NHS LOGISTICS,1014061140,4.01,
Department of Health,Salisbury NHS Foundation Trust,16-Aug-13,BAGS SACKS - OTHER,Surgery,NHS LOGISTICS,1014061140,4.01,
Department of Health,Salisbury NHS Foundation Trust,16-Aug-13,MEDSURGCONS - OTHER,Clinical Support and Family Services,NHS LOGISTICS,1014061140,4.13,
Department of Health,Salisbury NHS Foundation Trust,16-Aug-13,MEDSURGCONS - OTHER,Medicine,NHS LOGISTICS,1014061140,4.13,
Department of Health,Salisbury NHS Foundation Trust,16-Aug-13,DRESSINGS - PRE STERILE,Critical care,NHS LOGISTICS,1014061140,4.13,
Department of Health,Salisbury NHS Foundation Trust,16-Aug-13,MEDSURGCONS - OTHER,Medicine,NHS LOGISTICS,1014061140,4.13,
Department of Health,Salisbury NHS Foundation Trust,16-Aug-13,COOKING & KITCHEN UTENSILS,Surgery,NHS LOGISTICS,1014061140,4.14,
Department of Health,Salisbury NHS Foundation Trust,16-Aug-13,PATIENTS BEDWEAR UNISEX,Clinical Support and Family Services,NHS LOGISTICS,1014061140,4.14,
Department of Health,Salisbury NHS Foundation Trust,16-Aug-13,STATIONERY SUNDRIES,Surgery,NHS LOGISTICS,1014061140,4.15,
Department of Health,Salisbury NHS Foundation Trust,16-Aug-13,DRESSINGS - PRE STERILE,Surgery,NHS LOGISTICS,1014061140,4.15,
Department of Health,Salisbury NHS Foundation Trust,16-Aug-13,STATIONERY SUNDRIES,Critical care,NHS LOGISTICS,1014061140,4.18,
Department of Health,Salisbury NHS Foundation Trust,16-Aug-13,STATIONERY SUNDRIES,Clinical Support and Family Services,NHS LOGISTICS,1014061140,4.27,
Department of Health,Salisbury NHS Foundation Trust,16-Aug-13,STATIONERY SUNDRIES,Critical care,NHS LOGISTICS,1014061140,4.27,
Department of Health,Salisbury NHS Foundation Trust,16-Aug-13,PATIENTS INCONTINENCE,Medicine,NHS LOGISTICS,1014061140,4.29,
Department of Health,Salisbury NHS Foundation Trust,16-Aug-13,PATIENTS INCONTINENCE,Medicine,NHS LOGISTICS,1014061140,4.29,
Department of Health,Salisbury NHS Foundation Trust,16-Aug-13,PATIENTS INCONTINENCE,Surgery,NHS LOGISTICS,1014061140,4.29,
Department of Health,Salisbury NHS Foundation Trust,16-Aug-13,PATIENTS INCONTINENCE,Medicine,NHS LOGISTICS,1014061140,4.29,
Department of Health,Salisbury NHS Foundation Trust,16-Aug-13,DRESSINGS - PRE STERILE,Medicine,NHS LOGISTICS,1014061140,4.3,
Department of Health,Salisbury NHS Foundation Trust,16-Aug-13,OTHER MEDICAL SUPPLIES,Medicine,NHS LOGISTICS,1014061140,4.42,
Department of Health,Salisbury NHS Foundation Trust,16-Aug-13,OTHER MEDICAL SUPPLIES,Medicine,NHS LOGISTICS,1014061140,4.42,
Department of Health,Salisbury NHS Foundation Trust,16-Aug-13,OTHER MEDICAL SUPPLIES,Critical care,NHS LOGISTICS,1014061140,4.42,
Department of Health,Salisbury NHS Foundation Trust,16-Aug-13,LIQUID REFRESHMENTS,Facilities Directorate,NHS LOGISTICS,1014061140,4.43,
Department of Health,Salisbury NHS Foundation Trust,16-Aug-13,OTHER MEDICAL SUPPLIES,Medicine,NHS LOGISTICS,1014061140,4.48,
Department of Health,Salisbury NHS Foundation Trust,16-Aug-13,CLEANING MATERIALS PRODUCTS SUNDRIES,Facilities Directorate,NHS LOGISTICS,1014061140,4.5,
Department of Health,Salisbury NHS Foundation Trust,16-Aug-13,TISSUES HAND TOWELS & TOILET PAPER,Surgery,NHS LOGISTICS,1014061140,4.5,
Department of Health,Salisbury NHS Foundation Trust,16-Aug-13,CLEANING MATERIALS PRODUCTS SUNDRIES,Facilities Directorate,NHS LOGISTICS,1014061140,4.5,
Department of Health,Salisbury NHS Foundation Trust,16-Aug-13,PATIENTS INCONTINENCE,Surgery,NHS LOGISTICS,1014061140,4.54,
Department of Health,Salisbury NHS Foundation Trust,16-Aug-13,PATIENTS INCONTINENCE,Medicine,NHS LOGISTICS,1014061140,4.54,
Department of Health,Salisbury NHS Foundation Trust,16-Aug-13,PATIENTS INCONTINENCE,Critical care,NHS LOGISTICS,1014061140,4.54,
Department of Health,Salisbury NHS Foundation Trust,16-Aug-13,BEVERAGES & AMBIENT FOOD,Facilities Directorate,NHS LOGISTICS,1014061140,4.54,
Department of Health,Salisbury NHS Foundation Trust,16-Aug-13,BEVERAGES & AMBIENT FOOD,Facilities Directorate,NHS LOGISTICS,1014061140,4.59,
Department of Health,Salisbury NHS Foundation Trust,16-Aug-13,PAPER ITEMS GENERAL STATIONERY SUNDRIES,Human Resources,NHS LOGISTICS,1014061140,4.62,
Department of Health,Salisbury NHS Foundation Trust,16-Aug-13,PAPER ITEMS GENERAL STATIONERY SUNDRIES,Clinical Support and Family Services,NHS LOGISTICS,1014061140,4.67,
Department of Health,Salisbury NHS Foundation Trust,16-Aug-13,FLAVOURINGS HERBS SPICES,Facilities Directorate,NHS LOGISTICS,1014061140,4.68,
Department of Health,Salisbury NHS Foundation Trust,16-Aug-13,TOILETRIES PERSONAL HYGIENE PRODUCTS,Medicine,NHS LOGISTICS,1014061140,4.73,
Department of Health,Salisbury NHS Foundation Trust,16-Aug-13,TOILETRIES PERSONAL HYGIENE PRODUCTS,Critical care,NHS LOGISTICS,1014061140,4.73,
Department of Health,Salisbury NHS Foundation Trust,16-Aug-13,OTHER MEDICAL SUPPLIES,Clinical Support and Family Services,NHS LOGISTICS,1014061140,4.74,
Department of Health,Salisbury NHS Foundation Trust,16-Aug-13,FLAVOURINGS HERBS SPICES,Facilities Directorate,NHS LOGISTICS,1014061140,4.74,
Department of Health,Salisbury NHS Foundation Trust,16-Aug-13,BEVERAGES & AMBIENT FOOD,Facilities Directorate,NHS LOGISTICS,1014061140,4.92,
Department of Health,Salisbury NHS Foundation Trust,16-Aug-13,FRUIT & VEGETABLES,Facilities Directorate,NHS LOGISTICS,1014061140,4.92,
Department of Health,Salisbury NHS Foundation Trust,16-Aug-13,FRUIT & VEGETABLES,Facilities Directorate,NHS LOGISTICS,1014061140,5.04,
Department of Health,Salisbury NHS Foundation Trust,16-Aug-13,BEVERAGES & AMBIENT FOOD,Surgery,NHS LOGISTICS,1014061140,5.05,
Department of Health,Salisbury NHS Foundation Trust,16-Aug-13,DRESSINGS - PRE STERILE,Surgery,NHS LOGISTICS,1014061140,5.1,
Department of Health,Salisbury NHS Foundation Trust,16-Aug-13,DRESSINGS - PRE STERILE,Critical care,NHS LOGISTICS,1014061140,5.1,
Department of Health,Salisbury NHS Foundation Trust,16-Aug-13,OTHER MEDICAL SUPPLIES,Clinical Support and Family Services,NHS LOGISTICS,1014061140,5.12,
Department of Health,Salisbury NHS Foundation Trust,16-Aug-13,OTHER MEDICAL SUPPLIES,Clinical Support and Family Services,NHS LOGISTICS,1014061140,5.12,
Department of Health,Salisbury NHS Foundation Trust,16-Aug-13,BAGS SACKS - OTHER,Facilities Directorate,NHS LOGISTICS,1014061140,5.13,
Department of Health,Salisbury NHS Foundation Trust,16-Aug-13,DRUGS,Facilities Directorate,NHS LOGISTICS,1014061140,5.2,
Department of Health,Salisbury NHS Foundation Trust,16-Aug-13,MEDSURGCONS - OTHER,Surgery,NHS LOGISTICS,1014061140,5.21,
Department of Health,Salisbury NHS Foundation Trust,16-Aug-13,MEDSURGCONS - OTHER,Clinical Support and Family Services,NHS LOGISTICS,1014061140,5.21,
Department of Health,Salisbury NHS Foundation Trust,16-Aug-13,MEDSURGCONS - OTHER,Critical care,NHS LOGISTICS,1014061140,5.21,
Department of Health,Salisbury NHS Foundation Trust,16-Aug-13,MEDSURGCONS - OTHER,Critical care,NHS LOGISTICS,1014061140,5.21,
Department of Health,Salisbury NHS Foundation Trust,16-Aug-13,MEDSURGCONS - OTHER,Surgery,NHS LOGISTICS,1014061140,5.21,
Department of Health,Salisbury NHS Foundation Trust,16-Aug-13,MEDSURGCONS - OTHER,Medicine,NHS LOGISTICS,1014061140,5.21,
Department of Health,Salisbury NHS Foundation Trust,16-Aug-13,MEDSURGCONS - OTHER,Clinical Support and Family Services,NHS LOGISTICS,1014061140,5.21,
Department of Health,Salisbury NHS Foundation Trust,16-Aug-13,DISPOSABLE THEATRE DRAPES WIPES,Clinical Support and Family Services,NHS LOGISTICS,1014061140,5.25,
Department of Health,Salisbury NHS Foundation Trust,16-Aug-13,PATIENT APPLIANCES,Medicine,NHS LOGISTICS,1014061140,5.32,
Department of Health,Salisbury NHS Foundation Trust,16-Aug-13,PATIENT APPLIANCES,Medicine,NHS LOGISTICS,1014061140,5.32,
Department of Health,Salisbury NHS Foundation Trust,16-Aug-13,PATIENT APPLIANCES,Critical care,NHS LOGISTICS,1014061140,5.32,
Department of Health,Salisbury NHS Foundation Trust,16-Aug-13,PATIENT APPLIANCES,Clinical Support and Family Services,NHS LOGISTICS,1014061140,5.32,
Department of Health,Salisbury NHS Foundation Trust,16-Aug-13,PATIENT APPLIANCES,Surgery,NHS LOGISTICS,1014061140,5.32,
Department of Health,Salisbury NHS Foundation Trust,16-Aug-13,PATIENT APPLIANCES,Surgery,NHS LOGISTICS,1014061140,5.32,
Department of Health,Salisbury NHS Foundation Trust,16-Aug-13,PATIENT APPLIANCES,Medicine,NHS LOGISTICS,1014061140,5.32,
Department of Health,Salisbury NHS Foundation Trust,16-Aug-13,PATIENT APPLIANCES,Critical care,NHS LOGISTICS,1014061140,5.32,
Department of Health,Salisbury NHS Foundation Trust,16-Aug-13,FLAVOURINGS HERBS SPICES,Facilities Directorate,NHS LOGISTICS,1014061140,5.38,
Department of Health,Salisbury NHS Foundation Trust,16-Aug-13,TISSUES HAND TOWELS & TOILET PAPER,Surgery,NHS LOGISTICS,1014061140,5.45,
Department of Health,Salisbury NHS Foundation Trust,16-Aug-13,DRESSINGS - PRE STERILE,Medicine,NHS LOGISTICS,1014061140,5.47,
Department of Health,Salisbury NHS Foundation Trust,16-Aug-13,DRESSINGS - PRE STERILE,Critical care,NHS LOGISTICS,1014061140,5.51,
Department of Health,Salisbury NHS Foundation Trust,16-Aug-13,DRESSINGS - PRE STERILE,Clinical Support and Family Services,NHS LOGISTICS,1014061140,5.51,
Department of Health,Salisbury NHS Foundation Trust,16-Aug-13,DRESSINGS - PRE STERILE,Critical care,NHS LOGISTICS,1014061140,5.51,
Department of Health,Salisbury NHS Foundation Trust,16-Aug-13,NON DISPOSABLE BED LINEN,Medicine,NHS LOGISTICS,1014061140,5.59,
Department of Health,Salisbury NHS Foundation Trust,16-Aug-13,NON DISPOSABLE BED LINEN,Medicine,NHS LOGISTICS,1014061140,5.59,
Department of Health,Salisbury NHS Foundation Trust,16-Aug-13,NON DISPOSABLE BED LINEN,Medicine,NHS LOGISTICS,1014061140,5.59,
Department of Health,Salisbury NHS Foundation Trust,16-Aug-13,NON DISPOSABLE BED LINEN,Medicine,NHS LOGISTICS,1014061140,5.59,
Department of Health,Salisbury NHS Foundation Trust,16-Aug-13,NON DISPOSABLE BED LINEN,Medicine,NHS LOGISTICS,1014061140,5.59,
Department of Health,Salisbury NHS Foundation Trust,16-Aug-13,NON DISPOSABLE BED LINEN,Clinical Support and Family Services,NHS LOGISTICS,1014061140,5.59,
Department of Health,Salisbury NHS Foundation Trust,16-Aug-13,NON DISPOSABLE BED LINEN,Medicine,NHS LOGISTICS,1014061140,5.59,
Department of Health,Salisbury NHS Foundation Trust,16-Aug-13,NON DISPOSABLE BED LINEN,Clinical Support and Family Services,NHS LOGISTICS,1014061140,5.59,
Department of Health,Salisbury NHS Foundation Trust,16-Aug-13,DRESSINGS  -  PROCEDURE PACKS,Surgery,NHS LOGISTICS,1014061140,5.63,
Department of Health,Salisbury NHS Foundation Trust,16-Aug-13,DISPOSABLE THEATRE DRAPES WIPES,Surgery,NHS LOGISTICS,1014061140,5.63,
Department of Health,Salisbury NHS Foundation Trust,16-Aug-13,DRUGS,Surgery,NHS LOGISTICS,1014061140,5.66,
Department of Health,Salisbury NHS Foundation Trust,16-Aug-13,LIQUID REFRESHMENTS,Facilities Directorate,NHS LOGISTICS,1014061140,5.66,
Department of Health,Salisbury NHS Foundation Trust,16-Aug-13,OTHER MEDICAL SUPPLIES,Medicine,NHS LOGISTICS,1014061140,5.68,
Department of Health,Salisbury NHS Foundation Trust,16-Aug-13,OTHER MEDICAL SUPPLIES,Medicine,NHS LOGISTICS,1014061140,5.68,
Department of Health,Salisbury NHS Foundation Trust,16-Aug-13,OTHER MEDICAL SUPPLIES,Surgery,NHS LOGISTICS,1014061140,5.68,
Department of Health,Salisbury NHS Foundation Trust,16-Aug-13,OTHER MEDICAL SUPPLIES,Medicine,NHS LOGISTICS,1014061140,5.68,
Department of Health,Salisbury NHS Foundation Trust,16-Aug-13,OTHER MEDICAL SUPPLIES,Medicine,NHS LOGISTICS,1014061140,5.68,
Department of Health,Salisbury NHS Foundation Trust,16-Aug-13,OTHER MEDICAL SUPPLIES,Critical care,NHS LOGISTICS,1014061140,5.68,
Department of Health,Salisbury NHS Foundation Trust,16-Aug-13,OTHER MEDICAL SUPPLIES,Medicine,NHS LOGISTICS,1014061140,5.68,
Department of Health,Salisbury NHS Foundation Trust,16-Aug-13,STATIONERY SUNDRIES,Surgery,NHS LOGISTICS,1014061140,5.75,
Department of Health,Salisbury NHS Foundation Trust,16-Aug-13,DISPOSABLE THEATRE DRAPES WIPES,Medicine,NHS LOGISTICS,1014061140,5.8,
Department of Health,Salisbury NHS Foundation Trust,16-Aug-13,MEDSURGCONS - OTHER,Surgery,NHS LOGISTICS,1014061140,5.85,
Department of Health,Salisbury NHS Foundation Trust,16-Aug-13,BEVERAGES & AMBIENT FOOD,Clinical Support and Family Services,NHS LOGISTICS,1014061140,5.86,
Department of Health,Salisbury NHS Foundation Trust,16-Aug-13,BEVERAGES & AMBIENT FOOD,Facilities Directorate,NHS LOGISTICS,1014061140,5.88,
Department of Health,Salisbury NHS Foundation Trust,16-Aug-13,BEVERAGES & AMBIENT FOOD,Facilities Directorate,NHS LOGISTICS,1014061140,5.94,
Department of Health,Salisbury NHS Foundation Trust,16-Aug-13,LIQUID REFRESHMENTS,Facilities Directorate,NHS LOGISTICS,1014061140,5.95,
Department of Health,Salisbury NHS Foundation Trust,16-Aug-13,DRESSINGS - PRE STERILE,Surgery,NHS LOGISTICS,1014061140,5.97,
Department of Health,Salisbury NHS Foundation Trust,16-Aug-13,ANAESTHETIC EQUIPMENT ACCESSORIES,Surgery,NHS LOGISTICS,1014061140,6,
Department of Health,Salisbury NHS Foundation Trust,16-Aug-13,DRESSINGS - PRE STERILE,Surgery,NHS LOGISTICS,1014061140,6,
Department of Health,Salisbury NHS Foundation Trust,16-Aug-13,MEDSURGCONS - OTHER,Medicine,NHS LOGISTICS,1014061140,6.05,
Department of Health,Salisbury NHS Foundation Trust,16-Aug-13,HARD/SOFTWARE-MEDIA  TAPES  DISCS,Clinical Support and Family Services,NHS LOGISTICS,1014061140,6.05,
Department of Health,Salisbury NHS Foundation Trust,16-Aug-13,HEALTHCARE - WEAR,Medicine,NHS LOGISTICS,1014061140,6.08,
Department of Health,Salisbury NHS Foundation Trust,16-Aug-13,PAPER ITEMS GENERAL STATIONERY SUNDRIES,Medicine,NHS LOGISTICS,1014061140,6.12,
Department of Health,Salisbury NHS Foundation Trust,16-Aug-13,PAPER ITEMS GENERAL STATIONERY SUNDRIES,Critical care,NHS LOGISTICS,1014061140,6.13,
Department of Health,Salisbury NHS Foundation Trust,16-Aug-13,TUBES,Medicine,NHS LOGISTICS,1014061140,6.16,
Department of Health,Salisbury NHS Foundation Trust,16-Aug-13,TUBES,Clinical Support and Family Services,NHS LOGISTICS,1014061140,6.16,
Department of Health,Salisbury NHS Foundation Trust,16-Aug-13,TUBES,Medicine,NHS LOGISTICS,1014061140,6.16,
Department of Health,Salisbury NHS Foundation Trust,16-Aug-13,TUBES,Surgery,NHS LOGISTICS,1014061140,6.16,
Department of Health,Salisbury NHS Foundation Trust,16-Aug-13,TUBES,Medicine,NHS LOGISTICS,1014061140,6.16,
Department of Health,Salisbury NHS Foundation Trust,16-Aug-13,TUBES,Medicine,NHS LOGISTICS,1014061140,6.16,
Department of Health,Salisbury NHS Foundation Trust,16-Aug-13,SURGICAL INSTRUMENTS: GENERAL,Surgery,NHS LOGISTICS,1014061140,6.17,
Department of Health,Salisbury NHS Foundation Trust,16-Aug-13,CLEANING MATERIALS PRODUCTS SUNDRIES,Surgery,NHS LOGISTICS,1014061140,6.4,
Department of Health,Salisbury NHS Foundation Trust,16-Aug-13,LAB EQUIP-LABORATORY APPARATUS,Clinical Support and Family Services,NHS LOGISTICS,1014061140,6.43,
Department of Health,Salisbury NHS Foundation Trust,16-Aug-13,DRESSINGS - PRE STERILE,Medicine,NHS LOGISTICS,1014061140,6.45,
Department of Health,Salisbury NHS Foundation Trust,16-Aug-13,STATIONERY SUNDRIES,Critical care,NHS LOGISTICS,1014061140,6.6,
Department of Health,Salisbury NHS Foundation Trust,16-Aug-13,DRESSINGS - PRE STERILE,Medicine,NHS LOGISTICS,1014061140,6.64,
Department of Health,Salisbury NHS Foundation Trust,16-Aug-13,DRESSINGS - PRE STERILE,Surgery,NHS LOGISTICS,1014061140,6.64,
Department of Health,Salisbury NHS Foundation Trust,16-Aug-13,DRESSINGS - PRE STERILE,Critical care,NHS LOGISTICS,1014061140,6.68,
Department of Health,Salisbury NHS Foundation Trust,16-Aug-13,BEVERAGES & AMBIENT FOOD,Facilities Directorate,NHS LOGISTICS,1014061140,6.72,
Department of Health,Salisbury NHS Foundation Trust,16-Aug-13,PAPER ITEMS GENERAL STATIONERY SUNDRIES,Directorate of Finance and Procurement,NHS LOGISTICS,1014061140,6.74,
Department of Health,Salisbury NHS Foundation Trust,16-Aug-13,CLEANING MATERIALS PRODUCTS SUNDRIES,Critical care,NHS LOGISTICS,1014061140,6.75,
Department of Health,Salisbury NHS Foundation Trust,16-Aug-13,STATIONERY SUNDRIES,Critical care,NHS LOGISTICS,1014061140,6.81,
Department of Health,Salisbury NHS Foundation Trust,16-Aug-13,PATIENTS INCONTINENCE,Medicine,NHS LOGISTICS,1014061140,6.83,
Department of Health,Salisbury NHS Foundation Trust,16-Aug-13,BEVERAGES & AMBIENT FOOD,Facilities Directorate,NHS LOGISTICS,1014061140,6.84,
Department of Health,Salisbury NHS Foundation Trust,16-Aug-13,MEDSURGCONS - OTHER,Clinical Support and Family Services,NHS LOGISTICS,1014061140,6.87,
Department of Health,Salisbury NHS Foundation Trust,16-Aug-13,MED SURG EQUIP REP MAINT CLEANING,Surgery,NHS LOGISTICS,1014061140,6.9,
Department of Health,Salisbury NHS Foundation Trust,16-Aug-13,CLEANING MATERIALS PRODUCTS SUNDRIES,Medicine,NHS LOGISTICS,1014061140,6.93,
Department of Health,Salisbury NHS Foundation Trust,16-Aug-13,CLEANING MATERIALS PRODUCTS SUNDRIES,Surgery,NHS LOGISTICS,1014061140,6.93,
Department of Health,Salisbury NHS Foundation Trust,16-Aug-13,BEVERAGES & AMBIENT FOOD,Facilities Directorate,NHS LOGISTICS,1014061140,7,
Department of Health,Salisbury NHS Foundation Trust,16-Aug-13,MEDSURGCONS - OTHER,Critical care,NHS LOGISTICS,1014061140,7.02,
Department of Health,Salisbury NHS Foundation Trust,16-Aug-13,PATIENT APPLIANCES,Critical care,NHS LOGISTICS,1014061140,7.19,
Department of Health,Salisbury NHS Foundation Trust,16-Aug-13,PATIENTS INCONTINENCE,Medicine,NHS LOGISTICS,1014061140,7.27,
Department of Health,Salisbury NHS Foundation Trust,16-Aug-13,TISSUES HAND TOWELS & TOILET PAPER,Critical care,NHS LOGISTICS,1014061140,7.27,
Department of Health,Salisbury NHS Foundation Trust,16-Aug-13,PATIENTS INCONTINENCE,Medicine,NHS LOGISTICS,1014061140,7.27,
Department of Health,Salisbury NHS Foundation Trust,16-Aug-13,CLEANING MATERIALS PRODUCTS SUNDRIES,Critical care,NHS LOGISTICS,1014061140,7.3,
Department of Health,Salisbury NHS Foundation Trust,16-Aug-13,BEVERAGES & AMBIENT FOOD,Facilities Directorate,NHS LOGISTICS,1014061140,7.38,
Department of Health,Salisbury NHS Foundation Trust,16-Aug-13,DRUGS,Surgery,NHS LOGISTICS,1014061140,7.5,
Department of Health,Salisbury NHS Foundation Trust,16-Aug-13,DRESSINGS - PRE STERILE,Surgery,NHS LOGISTICS,1014061140,7.52,
Department of Health,Salisbury NHS Foundation Trust,16-Aug-13,DRESSINGS - PRE STERILE,Critical care,NHS LOGISTICS,1014061140,7.54,
Department of Health,Salisbury NHS Foundation Trust,16-Aug-13,LAB EQUIP-LABORATORY APPARATUS,Medicine,NHS LOGISTICS,1014061140,7.55,
Department of Health,Salisbury NHS Foundation Trust,16-Aug-13,LAB EQUIP-LABORATORY APPARATUS,Clinical Support and Family Services,NHS LOGISTICS,1014061140,7.55,
Department of Health,Salisbury NHS Foundation Trust,16-Aug-13,DISPOSABLE THEATRE DRAPES WIPES,Surgery,NHS LOGISTICS,1014061140,7.6,
Department of Health,Salisbury NHS Foundation Trust,16-Aug-13,BEVERAGES & AMBIENT FOOD,Surgery,NHS LOGISTICS,1014061140,7.6,
Department of Health,Salisbury NHS Foundation Trust,16-Aug-13,TOILETRIES PERSONAL HYGIENE PRODUCTS,Clinical Support and Family Services,NHS LOGISTICS,1014061140,7.67,
Department of Health,Salisbury NHS Foundation Trust,16-Aug-13,PATIENT APPLIANCES,Medicine,NHS LOGISTICS,1014061140,7.67,
Department of Health,Salisbury NHS Foundation Trust,16-Aug-13,LIQUID REFRESHMENTS,Facilities Directorate,NHS LOGISTICS,1014061140,7.67,
Department of Health,Salisbury NHS Foundation Trust,16-Aug-13,PATIENT APPLIANCES,Medicine,NHS LOGISTICS,1014061140,7.67,
Department of Health,Salisbury NHS Foundation Trust,16-Aug-13,DRUGS,Critical care,NHS LOGISTICS,1014061140,7.72,
Department of Health,Salisbury NHS Foundation Trust,16-Aug-13,DRUGS,Critical care,NHS LOGISTICS,1014061140,7.72,
Department of Health,Salisbury NHS Foundation Trust,16-Aug-13,DRESSINGS - PRE STERILE,Surgery,NHS LOGISTICS,1014061140,7.73,
Department of Health,Salisbury NHS Foundation Trust,16-Aug-13,BEVERAGES & AMBIENT FOOD,Facilities Directorate,NHS LOGISTICS,1014061140,7.74,
Department of Health,Salisbury NHS Foundation Trust,16-Aug-13,STATIONERY SUNDRIES,Clinical Support and Family Services,NHS LOGISTICS,1014061140,7.75,
Department of Health,Salisbury NHS Foundation Trust,16-Aug-13,PATIENT APPLIANCES,Medicine,NHS LOGISTICS,1014061140,7.83,
Department of Health,Salisbury NHS Foundation Trust,16-Aug-13,DRESSINGS - PRE STERILE,Clinical Support and Family Services,NHS LOGISTICS,1014061140,7.85,
Department of Health,Salisbury NHS Foundation Trust,16-Aug-13,PATIENT APPLIANCES,Medicine,NHS LOGISTICS,1014061140,7.92,
Department of Health,Salisbury NHS Foundation Trust,16-Aug-13,PATIENT APPLIANCES,Surgery,NHS LOGISTICS,1014061140,7.92,
Department of Health,Salisbury NHS Foundation Trust,16-Aug-13,PATIENT APPLIANCES,Medicine,NHS LOGISTICS,1014061140,7.92,
Department of Health,Salisbury NHS Foundation Trust,16-Aug-13,BEVERAGES & AMBIENT FOOD,Facilities Directorate,NHS LOGISTICS,1014061140,7.92,
Department of Health,Salisbury NHS Foundation Trust,16-Aug-13,BAGS SACKS - OTHER,Surgery,NHS LOGISTICS,1014061140,7.96,
Department of Health,Salisbury NHS Foundation Trust,16-Aug-13,BEVERAGES & AMBIENT FOOD,Facilities Directorate,NHS LOGISTICS,1014061140,7.97,
Department of Health,Salisbury NHS Foundation Trust,16-Aug-13,PAPER ITEMS GENERAL STATIONERY SUNDRIES,Facilities Directorate,NHS LOGISTICS,1014061140,7.98,
Department of Health,Salisbury NHS Foundation Trust,16-Aug-13,BAGS SACKS - OTHER,Critical care,NHS LOGISTICS,1014061140,8.02,
Department of Health,Salisbury NHS Foundation Trust,16-Aug-13,DRESSINGS - PRE STERILE,Surgery,NHS LOGISTICS,1014061140,8.2,
Department of Health,Salisbury NHS Foundation Trust,16-Aug-13,HEALTHCARE - WEAR,Facilities Directorate,NHS LOGISTICS,1014061140,8.2,
Department of Health,Salisbury NHS Foundation Trust,16-Aug-13,DRESSINGS - PRE STERILE,Surgery,NHS LOGISTICS,1014061140,8.23,
Department of Health,Salisbury NHS Foundation Trust,16-Aug-13,PATIENT APPLIANCES,Medicine,NHS LOGISTICS,1014061140,8.23,
Department of Health,Salisbury NHS Foundation Trust,16-Aug-13,PATIENT APPLIANCES,Medicine,NHS LOGISTICS,1014061140,8.23,
Department of Health,Salisbury NHS Foundation Trust,16-Aug-13,PATIENT APPLIANCES,Medicine,NHS LOGISTICS,1014061140,8.23,
Department of Health,Salisbury NHS Foundation Trust,16-Aug-13,PATIENT APPLIANCES,Medicine,NHS LOGISTICS,1014061140,8.23,
Department of Health,Salisbury NHS Foundation Trust,16-Aug-13,BAGS SACKS - OTHER,Medicine,NHS LOGISTICS,1014061140,8.26,
Department of Health,Salisbury NHS Foundation Trust,16-Aug-13,PATIENTS BEDWEAR UNISEX,Clinical Support and Family Services,NHS LOGISTICS,1014061140,8.28,
Department of Health,Salisbury NHS Foundation Trust,16-Aug-13,STATIONERY SUNDRIES,Medicine,NHS LOGISTICS,1014061140,8.28,
Department of Health,Salisbury NHS Foundation Trust,16-Aug-13,DRESSINGS - PRE STERILE,Surgery,NHS LOGISTICS,1014061140,8.32,
Department of Health,Salisbury NHS Foundation Trust,16-Aug-13,PATIENTS INCONTINENCE,Medicine,NHS LOGISTICS,1014061140,8.37,
Department of Health,Salisbury NHS Foundation Trust,16-Aug-13,STATIONERY SUNDRIES,Critical care,NHS LOGISTICS,1014061140,8.37,
Department of Health,Salisbury NHS Foundation Trust,16-Aug-13,STATIONERY SUNDRIES,Critical care,NHS LOGISTICS,1014061140,8.37,
Department of Health,Salisbury NHS Foundation Trust,16-Aug-13,PATIENTS INCONTINENCE,Medicine,NHS LOGISTICS,1014061140,8.37,
Department of Health,Salisbury NHS Foundation Trust,16-Aug-13,OTHER MEDICAL SUPPLIES,Clinical Support and Family Services,NHS LOGISTICS,1014061140,8.42,
Department of Health,Salisbury NHS Foundation Trust,16-Aug-13,STATIONERY SUNDRIES,Clinical Support and Family Services,NHS LOGISTICS,1014061140,8.48,
Department of Health,Salisbury NHS Foundation Trust,16-Aug-13,LIQUID REFRESHMENTS,Facilities Directorate,NHS LOGISTICS,1014061140,8.56,
Department of Health,Salisbury NHS Foundation Trust,16-Aug-13,LIQUID REFRESHMENTS,Facilities Directorate,NHS LOGISTICS,1014061140,8.56,
Department of Health,Salisbury NHS Foundation Trust,16-Aug-13,LIQUID REFRESHMENTS,Facilities Directorate,NHS LOGISTICS,1014061140,8.56,
Department of Health,Salisbury NHS Foundation Trust,16-Aug-13,PATIENTS INCONTINENCE,Medicine,NHS LOGISTICS,1014061140,8.58,
Department of Health,Salisbury NHS Foundation Trust,16-Aug-13,PATIENTS INCONTINENCE,Medicine,NHS LOGISTICS,1014061140,8.65,
Department of Health,Salisbury NHS Foundation Trust,16-Aug-13,MEDSURGCONS - OTHER,Medicine,NHS LOGISTICS,1014061140,8.78,
Department of Health,Salisbury NHS Foundation Trust,16-Aug-13,STATIONERY SUNDRIES,Clinical Effctiveness Directorate,NHS LOGISTICS,1014061140,8.8,
Department of Health,Salisbury NHS Foundation Trust,16-Aug-13,OTHER MEDICAL SUPPLIES,Medicine,NHS LOGISTICS,1014061140,8.83,
Department of Health,Salisbury NHS Foundation Trust,16-Aug-13,TISSUES HAND TOWELS & TOILET PAPER,Human Resources,NHS LOGISTICS,1014061140,8.83,
Department of Health,Salisbury NHS Foundation Trust,16-Aug-13,OTHER MEDICAL SUPPLIES,Clinical Support and Family Services,NHS LOGISTICS,1014061140,8.83,
Department of Health,Salisbury NHS Foundation Trust,16-Aug-13,OTHER MEDICAL SUPPLIES,Medicine,NHS LOGISTICS,1014061140,8.83,
Department of Health,Salisbury NHS Foundation Trust,16-Aug-13,CLEANING MATERIALS PRODUCTS SUNDRIES,Surgery,NHS LOGISTICS,1014061140,8.86,
Department of Health,Salisbury NHS Foundation Trust,16-Aug-13,CLEANING MATERIALS PRODUCTS SUNDRIES,Clinical Support and Family Services,NHS LOGISTICS,1014061140,8.86,
Department of Health,Salisbury NHS Foundation Trust,16-Aug-13,BEVERAGES & AMBIENT FOOD,Facilities Directorate,NHS LOGISTICS,1014061140,8.86,
Department of Health,Salisbury NHS Foundation Trust,16-Aug-13,DENTAL SURGERY EQUIPMENT,Surgery,NHS LOGISTICS,1014061140,8.91,
Department of Health,Salisbury NHS Foundation Trust,16-Aug-13,OFFICE EQUIP MACHINERY  -  OTHER,Surgery,NHS LOGISTICS,1014061140,9.04,
Department of Health,Salisbury NHS Foundation Trust,16-Aug-13,OTHER MEDICAL SUPPLIES,Surgery,NHS LOGISTICS,1014061140,9.04,
Department of Health,Salisbury NHS Foundation Trust,16-Aug-13,TISSUES HAND TOWELS & TOILET PAPER,Clinical Support and Family Services,NHS LOGISTICS,1014061140,9.08,
Department of Health,Salisbury NHS Foundation Trust,16-Aug-13,PATIENTS INCONTINENCE,Critical care,NHS LOGISTICS,1014061140,9.08,
Department of Health,Salisbury NHS Foundation Trust,16-Aug-13,PATIENTS INCONTINENCE,Medicine,NHS LOGISTICS,1014061140,9.08,
Department of Health,Salisbury NHS Foundation Trust,16-Aug-13,PATIENTS INCONTINENCE,Critical care,NHS LOGISTICS,1014061140,9.08,
Department of Health,Salisbury NHS Foundation Trust,16-Aug-13,PATIENTS INCONTINENCE,Medicine,NHS LOGISTICS,1014061140,9.08,
Department of Health,Salisbury NHS Foundation Trust,16-Aug-13,PATIENTS INCONTINENCE,Medicine,NHS LOGISTICS,1014061140,9.08,
Department of Health,Salisbury NHS Foundation Trust,16-Aug-13,PATIENTS INCONTINENCE,Medicine,NHS LOGISTICS,1014061140,9.08,
Department of Health,Salisbury NHS Foundation Trust,16-Aug-13,MEDSURGCONS - OTHER,Medicine,NHS LOGISTICS,1014061140,9.12,
Department of Health,Salisbury NHS Foundation Trust,16-Aug-13,DRESSINGS - PRE STERILE,Facilities Directorate,NHS LOGISTICS,1014061140,9.13,
Department of Health,Salisbury NHS Foundation Trust,16-Aug-13,LIQUID REFRESHMENTS,Facilities Directorate,NHS LOGISTICS,1014061140,9.2,
Department of Health,Salisbury NHS Foundation Trust,16-Aug-13,PAPER ITEMS GENERAL STATIONERY SUNDRIES,Surgery,NHS LOGISTICS,1014061140,9.33,
Department of Health,Salisbury NHS Foundation Trust,16-Aug-13,PAPER ITEMS GENERAL STATIONERY SUNDRIES,Surgery,NHS LOGISTICS,1014061140,9.33,
Department of Health,Salisbury NHS Foundation Trust,16-Aug-13,PAPER ITEMS GENERAL STATIONERY SUNDRIES,Clinical Support and Family Services,NHS LOGISTICS,1014061140,9.33,
Department of Health,Salisbury NHS Foundation Trust,16-Aug-13,PAPER ITEMS GENERAL STATIONERY SUNDRIES,Facilities Directorate,NHS LOGISTICS,1014061140,9.33,
Department of Health,Salisbury NHS Foundation Trust,16-Aug-13,MEDSURGCONS - OTHER,Clinical Support and Family Services,NHS LOGISTICS,1014061140,9.42,
Department of Health,Salisbury NHS Foundation Trust,16-Aug-13,FLAVOURINGS HERBS SPICES,Facilities Directorate,NHS LOGISTICS,1014061140,9.48,
Department of Health,Salisbury NHS Foundation Trust,16-Aug-13,TOILETRIES PERSONAL HYGIENE PRODUCTS,Medicine,NHS LOGISTICS,1014061140,9.54,
Department of Health,Salisbury NHS Foundation Trust,16-Aug-13,TOILETRIES PERSONAL HYGIENE PRODUCTS,Medicine,NHS LOGISTICS,1014061140,9.54,
Department of Health,Salisbury NHS Foundation Trust,16-Aug-13,STATIONERY SUNDRIES,Directorate of Finance and Procurement,NHS LOGISTICS,1014061140,9.6,
Department of Health,Salisbury NHS Foundation Trust,16-Aug-13,BEVERAGES & AMBIENT FOOD,Facilities Directorate,NHS LOGISTICS,1014061140,9.6,
Department of Health,Salisbury NHS Foundation Trust,16-Aug-13,FRUIT & VEGETABLES,Facilities Directorate,NHS LOGISTICS,1014061140,9.62,
Department of Health,Salisbury NHS Foundation Trust,16-Aug-13,BEVERAGES & AMBIENT FOOD,Facilities Directorate,NHS LOGISTICS,1014061140,9.66,
Department of Health,Salisbury NHS Foundation Trust,16-Aug-13,DRESSINGS - PRE STERILE,Critical care,NHS LOGISTICS,1014061140,9.7,
Department of Health,Salisbury NHS Foundation Trust,16-Aug-13,DRESSINGS - PRE STERILE,Critical care,NHS LOGISTICS,1014061140,9.7,
Department of Health,Salisbury NHS Foundation Trust,16-Aug-13,DRESSINGS - PRE STERILE,Medicine,NHS LOGISTICS,1014061140,9.7,
Department of Health,Salisbury NHS Foundation Trust,16-Aug-13,DRESSINGS - PRE STERILE,Critical care,NHS LOGISTICS,1014061140,9.7,
Department of Health,Salisbury NHS Foundation Trust,16-Aug-13,BEVERAGES & AMBIENT FOOD,Facilities Directorate,NHS LOGISTICS,1014061140,9.76,
Department of Health,Salisbury NHS Foundation Trust,16-Aug-13,OTHER MEDICAL SUPPLIES,Clinical Support and Family Services,NHS LOGISTICS,1014061140,9.78,
Department of Health,Salisbury NHS Foundation Trust,16-Aug-13,STATIONERY SUNDRIES,Medicine,NHS LOGISTICS,1014061140,9.8,
Department of Health,Salisbury NHS Foundation Trust,16-Aug-13,PAPER ITEMS GENERAL STATIONERY SUNDRIES,Critical care,NHS LOGISTICS,1014061140,9.82,
Department of Health,Salisbury NHS Foundation Trust,16-Aug-13,BEVERAGES & AMBIENT FOOD,Facilities Directorate,NHS LOGISTICS,1014061140,9.84,
Department of Health,Salisbury NHS Foundation Trust,16-Aug-13,BEVERAGES & AMBIENT FOOD,Facilities Directorate,NHS LOGISTICS,1014061140,9.84,
Department of Health,Salisbury NHS Foundation Trust,16-Aug-13,BEVERAGES & AMBIENT FOOD,Facilities Directorate,NHS LOGISTICS,1014061140,9.87,
Department of Health,Salisbury NHS Foundation Trust,16-Aug-13,DRESSINGS - PRE STERILE,Critical care,NHS LOGISTICS,1014061140,10,
Department of Health,Salisbury NHS Foundation Trust,16-Aug-13,PATIENTS INCONTINENCE,Medicine,NHS LOGISTICS,1014061140,10.1,
Department of Health,Salisbury NHS Foundation Trust,16-Aug-13,MEDSURGCONS - OTHER,Surgery,NHS LOGISTICS,1014061140,10.11,
Department of Health,Salisbury NHS Foundation Trust,16-Aug-13,OTHER MEDICAL SUPPLIES,Medicine,NHS LOGISTICS,1014061140,10.23,
Department of Health,Salisbury NHS Foundation Trust,16-Aug-13,LIQUID REFRESHMENTS,Facilities Directorate,NHS LOGISTICS,1014061140,10.23,
Department of Health,Salisbury NHS Foundation Trust,16-Aug-13,LIQUID REFRESHMENTS,Facilities Directorate,NHS LOGISTICS,1014061140,10.23,
Department of Health,Salisbury NHS Foundation Trust,16-Aug-13,BEVERAGES & AMBIENT FOOD,Facilities Directorate,NHS LOGISTICS,1014061140,10.26,
Department of Health,Salisbury NHS Foundation Trust,16-Aug-13,FRUIT & VEGETABLES,Facilities Directorate,NHS LOGISTICS,1014061140,10.26,
Department of Health,Salisbury NHS Foundation Trust,16-Aug-13,MED SURG EQUIP REP MAINT CLEANING,Surgery,NHS LOGISTICS,1014061140,10.35,
Department of Health,Salisbury NHS Foundation Trust,16-Aug-13,BEVERAGES & AMBIENT FOOD,Facilities Directorate,NHS LOGISTICS,1014061140,10.4,
Department of Health,Salisbury NHS Foundation Trust,16-Aug-13,MEDSURGCONS - OTHER,Medicine,NHS LOGISTICS,1014061140,10.42,
Department of Health,Salisbury NHS Foundation Trust,16-Aug-13,MEDSURGCONS - OTHER,Medicine,NHS LOGISTICS,1014061140,10.42,
Department of Health,Salisbury NHS Foundation Trust,16-Aug-13,MEDSURGCONS - OTHER,Critical care,NHS LOGISTICS,1014061140,10.42,
Department of Health,Salisbury NHS Foundation Trust,16-Aug-13,MEDSURGCONS - OTHER,Medicine,NHS LOGISTICS,1014061140,10.42,
Department of Health,Salisbury NHS Foundation Trust,16-Aug-13,MEDSURGCONS - OTHER,Medicine,NHS LOGISTICS,1014061140,10.42,
Department of Health,Salisbury NHS Foundation Trust,16-Aug-13,MEDSURGCONS - OTHER,Medicine,NHS LOGISTICS,1014061140,10.42,
Department of Health,Salisbury NHS Foundation Trust,16-Aug-13,MEDSURGCONS - OTHER,Clinical Support and Family Services,NHS LOGISTICS,1014061140,10.42,
Department of Health,Salisbury NHS Foundation Trust,16-Aug-13,CLEANING MATERIALS PRODUCTS SUNDRIES,Facilities Directorate,NHS LOGISTICS,1014061140,10.5,
Department of Health,Salisbury NHS Foundation Trust,16-Aug-13,PATIENT APPLIANCES,Surgery,NHS LOGISTICS,1014061140,10.63,
Department of Health,Salisbury NHS Foundation Trust,16-Aug-13,PATIENT APPLIANCES,Medicine,NHS LOGISTICS,1014061140,10.63,
Department of Health,Salisbury NHS Foundation Trust,16-Aug-13,MEDSURGCONS - OTHER,Clinical Support and Family Services,NHS LOGISTICS,1014061140,10.67,
Department of Health,Salisbury NHS Foundation Trust,16-Aug-13,ELECTRICAL EQUIPMENT x,Medicine,NHS LOGISTICS,1014061140,10.67,
Department of Health,Salisbury NHS Foundation Trust,16-Aug-13,DISPOSABLE THEATRE DRAPES WIPES,Human Resources,NHS LOGISTICS,1014061140,10.7,
Department of Health,Salisbury NHS Foundation Trust,16-Aug-13,DISPOSABLE THEATRE DRAPES WIPES,Surgery,NHS LOGISTICS,1014061140,10.7,
Department of Health,Salisbury NHS Foundation Trust,16-Aug-13,MEDSURGCONS - OTHER,Surgery,NHS LOGISTICS,1014061140,10.76,
Department of Health,Salisbury NHS Foundation Trust,16-Aug-13,MEDSURGCONS - OTHER,Surgery,NHS LOGISTICS,1014061140,10.78,
Department of Health,Salisbury NHS Foundation Trust,16-Aug-13,PATIENTS INCONTINENCE,Medicine,NHS LOGISTICS,1014061140,10.9,
Department of Health,Salisbury NHS Foundation Trust,16-Aug-13,TISSUES HAND TOWELS & TOILET PAPER,Critical care,NHS LOGISTICS,1014061140,10.9,
Department of Health,Salisbury NHS Foundation Trust,16-Aug-13,TISSUES HAND TOWELS & TOILET PAPER,Critical care,NHS LOGISTICS,1014061140,10.9,
Department of Health,Salisbury NHS Foundation Trust,16-Aug-13,PATIENTS INCONTINENCE,Medicine,NHS LOGISTICS,1014061140,10.9,
Department of Health,Salisbury NHS Foundation Trust,16-Aug-13,TISSUES HAND TOWELS & TOILET PAPER,Clinical Support and Family Services,NHS LOGISTICS,1014061140,10.9,
Department of Health,Salisbury NHS Foundation Trust,16-Aug-13,TISSUES HAND TOWELS & TOILET PAPER,Clinical Support and Family Services,NHS LOGISTICS,1014061140,10.9,
Department of Health,Salisbury NHS Foundation Trust,16-Aug-13,TISSUES HAND TOWELS & TOILET PAPER,Medicine,NHS LOGISTICS,1014061140,10.9,
Department of Health,Salisbury NHS Foundation Trust,16-Aug-13,M & S EQUIPELECTEQUIPINST - OTHER,Clinical Support and Family Services,NHS LOGISTICS,1014061140,10.94,
Department of Health,Salisbury NHS Foundation Trust,16-Aug-13,BEVERAGES & AMBIENT FOOD,Clinical Support and Family Services,NHS LOGISTICS,1014061140,11,
Department of Health,Salisbury NHS Foundation Trust,16-Aug-13,BEVERAGES & AMBIENT FOOD,Surgery,NHS LOGISTICS,1014061140,11,
Department of Health,Salisbury NHS Foundation Trust,16-Aug-13,DRESSINGS - PRE STERILE,Critical care,NHS LOGISTICS,1014061140,11.02,
Department of Health,Salisbury NHS Foundation Trust,16-Aug-13,BEVERAGES & AMBIENT FOOD,Clinical Support and Family Services,NHS LOGISTICS,1014061140,11.04,
Department of Health,Salisbury NHS Foundation Trust,16-Aug-13,LIQUID REFRESHMENTS,Facilities Directorate,NHS LOGISTICS,1014061140,11.08,
Department of Health,Salisbury NHS Foundation Trust,16-Aug-13,MED SURG EQUIP REP MAINT CLEANING,Medicine,NHS LOGISTICS,1014061140,11.1,
Department of Health,Salisbury NHS Foundation Trust,16-Aug-13,MED SURG EQUIP REP MAINT CLEANING,Surgery,NHS LOGISTICS,1014061140,11.1,
Department of Health,Salisbury NHS Foundation Trust,16-Aug-13,MED SURG EQUIP REP MAINT CLEANING,Medicine,NHS LOGISTICS,1014061140,11.1,
Department of Health,Salisbury NHS Foundation Trust,16-Aug-13,NON DISPOSABLE BED LINEN,Medicine,NHS LOGISTICS,1014061140,11.18,
Department of Health,Salisbury NHS Foundation Trust,16-Aug-13,NON DISPOSABLE BED LINEN,Medicine,NHS LOGISTICS,1014061140,11.18,
Department of Health,Salisbury NHS Foundation Trust,16-Aug-13,NON DISPOSABLE BED LINEN,Clinical Support and Family Services,NHS LOGISTICS,1014061140,11.18,
Department of Health,Salisbury NHS Foundation Trust,16-Aug-13,NON DISPOSABLE BED LINEN,Clinical Support and Family Services,NHS LOGISTICS,1014061140,11.18,
Department of Health,Salisbury NHS Foundation Trust,16-Aug-13,NON DISPOSABLE BED LINEN,Medicine,NHS LOGISTICS,1014061140,11.18,
Department of Health,Salisbury NHS Foundation Trust,16-Aug-13,NON DISPOSABLE BED LINEN,Surgery,NHS LOGISTICS,1014061140,11.18,
Department of Health,Salisbury NHS Foundation Trust,16-Aug-13,NON DISPOSABLE BED LINEN,Clinical Support and Family Services,NHS LOGISTICS,1014061140,11.18,
Department of Health,Salisbury NHS Foundation Trust,16-Aug-13,NON DISPOSABLE BED LINEN,Medicine,NHS LOGISTICS,1014061140,11.18,
Department of Health,Salisbury NHS Foundation Trust,16-Aug-13,DISPOSABLE THEATRE DRAPES WIPES,Surgery,NHS LOGISTICS,1014061140,11.27,
Department of Health,Salisbury NHS Foundation Trust,16-Aug-13,BEVERAGES & AMBIENT FOOD,Facilities Directorate,NHS LOGISTICS,1014061140,11.27,
Department of Health,Salisbury NHS Foundation Trust,16-Aug-13,BEVERAGES & AMBIENT FOOD,Facilities Directorate,NHS LOGISTICS,1014061140,11.27,
Department of Health,Salisbury NHS Foundation Trust,16-Aug-13,MEDSURGCONS - OTHER,Critical care,NHS LOGISTICS,1014061140,11.31,
Department of Health,Salisbury NHS Foundation Trust,16-Aug-13,LIQUID REFRESHMENTS,Facilities Directorate,NHS LOGISTICS,1014061140,11.32,
Department of Health,Salisbury NHS Foundation Trust,16-Aug-13,OTHER MEDICAL SUPPLIES,Critical care,NHS LOGISTICS,1014061140,11.37,
Department of Health,Salisbury NHS Foundation Trust,16-Aug-13,DRESSINGS - PRE STERILE,Medicine,NHS LOGISTICS,1014061140,11.48,
Department of Health,Salisbury NHS Foundation Trust,16-Aug-13,MEDSURGCONS - OTHER,Medicine,NHS LOGISTICS,1014061140,11.5,
Department of Health,Salisbury NHS Foundation Trust,16-Aug-13,DRUGS,Surgery,NHS LOGISTICS,1014061140,11.58,
Department of Health,Salisbury NHS Foundation Trust,16-Aug-13,CLEANING MATERIALS PRODUCTS SUNDRIES,Facilities Directorate,NHS LOGISTICS,1014061140,11.62,
Department of Health,Salisbury NHS Foundation Trust,16-Aug-13,OTHER MEDICAL SUPPLIES,Surgery,NHS LOGISTICS,1014061140,11.67,
Department of Health,Salisbury NHS Foundation Trust,16-Aug-13,OTHER MEDICAL SUPPLIES,Surgery,NHS LOGISTICS,1014061140,11.67,
Department of Health,Salisbury NHS Foundation Trust,16-Aug-13,HEALTHCARE - WEAR,Facilities Directorate,NHS LOGISTICS,1014061140,11.75,
Department of Health,Salisbury NHS Foundation Trust,16-Aug-13,DRESSINGS - PRE STERILE,Clinical Support and Family Services,NHS LOGISTICS,1014061140,11.77,
Department of Health,Salisbury NHS Foundation Trust,16-Aug-13,DISPOSABLE THEATRE DRAPES WIPES,Surgery,NHS LOGISTICS,1014061140,11.87,
Department of Health,Salisbury NHS Foundation Trust,16-Aug-13,STATIONERY SUNDRIES,Surgery,NHS LOGISTICS,1014061140,12.1,
Department of Health,Salisbury NHS Foundation Trust,16-Aug-13,MEDSURGCONS - OTHER,Surgery,NHS LOGISTICS,1014061140,12.21,
Department of Health,Salisbury NHS Foundation Trust,16-Aug-13,MEDSURGCONS - OTHER,Surgery,NHS LOGISTICS,1014061140,12.21,
Department of Health,Salisbury NHS Foundation Trust,16-Aug-13,SURGICAL INSTRUMENTS: DISPOSABLE,Critical care,NHS LOGISTICS,1014061140,12.33,
Department of Health,Salisbury NHS Foundation Trust,16-Aug-13,CLEANING MATERIALS PRODUCTS SUNDRIES,Facilities Directorate,NHS LOGISTICS,1014061140,12.33,
Department of Health,Salisbury NHS Foundation Trust,16-Aug-13,PATIENT APPLIANCES,Medicine,NHS LOGISTICS,1014061140,12.35,
Department of Health,Salisbury NHS Foundation Trust,16-Aug-13,PATIENT APPLIANCES,Medicine,NHS LOGISTICS,1014061140,12.35,
Department of Health,Salisbury NHS Foundation Trust,16-Aug-13,MEDSURGCONS - OTHER,Medicine,NHS LOGISTICS,1014061140,12.4,
Department of Health,Salisbury NHS Foundation Trust,16-Aug-13,BEVERAGES & AMBIENT FOOD,Facilities Directorate,NHS LOGISTICS,1014061140,12.48,
Department of Health,Salisbury NHS Foundation Trust,16-Aug-13,COOKING & KITCHEN UTENSILS,Facilities Directorate,NHS LOGISTICS,1014061140,12.51,
Department of Health,Salisbury NHS Foundation Trust,16-Aug-13,HARD/SOFTWARE-MEDIA  TAPES  DISCS,Clinical Support and Family Services,NHS LOGISTICS,1014061140,12.7,
Department of Health,Salisbury NHS Foundation Trust,16-Aug-13,DRESSINGS - PRE STERILE,Critical care,NHS LOGISTICS,1014061140,12.75,
Department of Health,Salisbury NHS Foundation Trust,16-Aug-13,DRESSINGS - PRE STERILE,Clinical Support and Family Services,NHS LOGISTICS,1014061140,12.78,
Department of Health,Salisbury NHS Foundation Trust,16-Aug-13,SURGICAL INSTRUMENTS: GENERAL,Surgery,NHS LOGISTICS,1014061140,12.83,
Department of Health,Salisbury NHS Foundation Trust,16-Aug-13,SURGICAL INSTRUMENTS: GENERAL,Clinical Support and Family Services,NHS LOGISTICS,1014061140,12.83,
Department of Health,Salisbury NHS Foundation Trust,16-Aug-13,PAPER ITEMS GENERAL STATIONERY SUNDRIES,Facilities Directorate,NHS LOGISTICS,1014061140,12.98,
Department of Health,Salisbury NHS Foundation Trust,16-Aug-13,M & S EQUIPELECTEQUIPINST - OTHER,Clinical Support and Family Services,NHS LOGISTICS,1014061140,13.19,
Department of Health,Salisbury NHS Foundation Trust,16-Aug-13,DISPOSABLE THEATRE DRAPES WIPES,Clinical Support and Family Services,NHS LOGISTICS,1014061140,13.2,
Department of Health,Salisbury NHS Foundation Trust,16-Aug-13,BAGS SACKS - OTHER,Surgery,NHS LOGISTICS,1014061140,13.2,
Department of Health,Salisbury NHS Foundation Trust,16-Aug-13,PAPER ITEMS GENERAL STATIONERY SUNDRIES,Critical care,NHS LOGISTICS,1014061140,13.21,
Department of Health,Salisbury NHS Foundation Trust,16-Aug-13,OTHER MEDICAL SUPPLIES,Medicine,NHS LOGISTICS,1014061140,13.25,
Department of Health,Salisbury NHS Foundation Trust,16-Aug-13,OTHER MEDICAL SUPPLIES,Critical care,NHS LOGISTICS,1014061140,13.25,
Department of Health,Salisbury NHS Foundation Trust,16-Aug-13,HABERDASHERY,Surgery,NHS LOGISTICS,1014061140,13.27,
Department of Health,Salisbury NHS Foundation Trust,16-Aug-13,DRESSINGS - PRE STERILE,Medicine,NHS LOGISTICS,1014061140,13.28,
Department of Health,Salisbury NHS Foundation Trust,16-Aug-13,DRESSINGS - PRE STERILE,Critical care,NHS LOGISTICS,1014061140,13.28,
Department of Health,Salisbury NHS Foundation Trust,16-Aug-13,DRESSINGS - PRE STERILE,Critical care,NHS LOGISTICS,1014061140,13.28,
Department of Health,Salisbury NHS Foundation Trust,16-Aug-13,SURGICAL INSTRUMENTS: DISPOSABLE,Clinical Support and Family Services,NHS LOGISTICS,1014061140,13.38,
Department of Health,Salisbury NHS Foundation Trust,16-Aug-13,SURGICAL INSTRUMENTS: DISPOSABLE,Clinical Support and Family Services,NHS LOGISTICS,1014061140,13.38,
Department of Health,Salisbury NHS Foundation Trust,16-Aug-13,MEDSURGCONS-SUTURES,Surgery,NHS LOGISTICS,1014061140,13.42,
Department of Health,Salisbury NHS Foundation Trust,16-Aug-13,MEDSURGCONS-SUTURES,Surgery,NHS LOGISTICS,1014061140,13.42,
Department of Health,Salisbury NHS Foundation Trust,16-Aug-13,CLEANING MATERIALS PRODUCTS SUNDRIES,Facilities Directorate,NHS LOGISTICS,1014061140,13.5,
Department of Health,Salisbury NHS Foundation Trust,16-Aug-13,CLEANING MATERIALS PRODUCTS SUNDRIES,Facilities Directorate,NHS LOGISTICS,1014061140,13.53,
Department of Health,Salisbury NHS Foundation Trust,16-Aug-13,DRESSINGS  -  PROCEDURE PACKS,Surgery,NHS LOGISTICS,1014061140,13.67,
Department of Health,Salisbury NHS Foundation Trust,16-Aug-13,CLEANING MATERIALS PRODUCTS SUNDRIES,Facilities Directorate,NHS LOGISTICS,1014061140,13.8,
Department of Health,Salisbury NHS Foundation Trust,16-Aug-13,LIQUID REFRESHMENTS,Facilities Directorate,NHS LOGISTICS,1014061140,13.8,
Department of Health,Salisbury NHS Foundation Trust,16-Aug-13,PAPER ITEMS GENERAL STATIONERY SUNDRIES,Surgery,NHS LOGISTICS,1014061140,13.9,
Department of Health,Salisbury NHS Foundation Trust,16-Aug-13,HEALTHCARE - WEAR,Facilities Directorate,NHS LOGISTICS,1014061140,13.9,
Department of Health,Salisbury NHS Foundation Trust,16-Aug-13,DIETETIC FOOD,Facilities Directorate,NHS LOGISTICS,1014061140,13.92,
Department of Health,Salisbury NHS Foundation Trust,16-Aug-13,DIETETIC FOOD,Facilities Directorate,NHS LOGISTICS,1014061140,13.92,
Department of Health,Salisbury NHS Foundation Trust,16-Aug-13,LIQUID REFRESHMENTS,Facilities Directorate,NHS LOGISTICS,1014061140,13.97,
Department of Health,Salisbury NHS Foundation Trust,16-Aug-13,BEVERAGES & AMBIENT FOOD,Facilities Directorate,NHS LOGISTICS,1014061140,14.01,
Department of Health,Salisbury NHS Foundation Trust,16-Aug-13,BEVERAGES & AMBIENT FOOD,Facilities Directorate,NHS LOGISTICS,1014061140,14.04,
Department of Health,Salisbury NHS Foundation Trust,16-Aug-13,FRUIT & VEGETABLES,Facilities Directorate,NHS LOGISTICS,1014061140,14.1,
Department of Health,Salisbury NHS Foundation Trust,16-Aug-13,DRESSINGS - PRE STERILE,Surgery,NHS LOGISTICS,1014061140,14.23,
Department of Health,Salisbury NHS Foundation Trust,16-Aug-13,CLEANING MATERIALS PRODUCTS SUNDRIES,Facilities Directorate,NHS LOGISTICS,1014061140,14.4,
Department of Health,Salisbury NHS Foundation Trust,16-Aug-13,BEVERAGES & AMBIENT FOOD,Facilities Directorate,NHS LOGISTICS,1014061140,14.4,
Department of Health,Salisbury NHS Foundation Trust,16-Aug-13,DRESSINGS - PRE STERILE,Surgery,NHS LOGISTICS,1014061140,14.43,
Department of Health,Salisbury NHS Foundation Trust,16-Aug-13,DRESSINGS - PRE STERILE,Surgery,NHS LOGISTICS,1014061140,14.43,
Department of Health,Salisbury NHS Foundation Trust,16-Aug-13,PAPER ITEMS GENERAL STATIONERY SUNDRIES,Clinical Support and Family Services,NHS LOGISTICS,1014061140,14.5,
Department of Health,Salisbury NHS Foundation Trust,16-Aug-13,FRUIT & VEGETABLES,Facilities Directorate,NHS LOGISTICS,1014061140,14.52,
Department of Health,Salisbury NHS Foundation Trust,16-Aug-13,BEVERAGES & AMBIENT FOOD,Facilities Directorate,NHS LOGISTICS,1014061140,14.55,
Department of Health,Salisbury NHS Foundation Trust,16-Aug-13,BEVERAGES & AMBIENT FOOD,Facilities Directorate,NHS LOGISTICS,1014061140,14.55,
Department of Health,Salisbury NHS Foundation Trust,16-Aug-13,PAPER ITEMS GENERAL STATIONERY SUNDRIES,Corporate Directorate,NHS LOGISTICS,1014061140,14.58,
Department of Health,Salisbury NHS Foundation Trust,16-Aug-13,BEVERAGES & AMBIENT FOOD,Facilities Directorate,NHS LOGISTICS,1014061140,14.6,
Department of Health,Salisbury NHS Foundation Trust,16-Aug-13,BEVERAGES & AMBIENT FOOD,Surgery,NHS LOGISTICS,1014061140,14.73,
Department of Health,Salisbury NHS Foundation Trust,16-Aug-13,FRUIT & VEGETABLES,Facilities Directorate,NHS LOGISTICS,1014061140,14.76,
Department of Health,Salisbury NHS Foundation Trust,16-Aug-13,MEDSURGCONS - OTHER,Clinical Support and Family Services,NHS LOGISTICS,1014061140,14.97,
Department of Health,Salisbury NHS Foundation Trust,16-Aug-13,OTHER MEDICAL SUPPLIES,Clinical Support and Family Services,NHS LOGISTICS,1014061140,14.99,
Department of Health,Salisbury NHS Foundation Trust,16-Aug-13,MEDSURGCONS - OTHER,Surgery,NHS LOGISTICS,1014061140,15.08,
Department of Health,Salisbury NHS Foundation Trust,16-Aug-13,MEDSURGCONS - OTHER,Medicine,NHS LOGISTICS,1014061140,15.17,
Department of Health,Salisbury NHS Foundation Trust,16-Aug-13,BEVERAGES & AMBIENT FOOD,Facilities Directorate,NHS LOGISTICS,1014061140,15.19,
Department of Health,Salisbury NHS Foundation Trust,16-Aug-13,BEVERAGES & AMBIENT FOOD,Facilities Directorate,NHS LOGISTICS,1014061140,15.2,
Department of Health,Salisbury NHS Foundation Trust,16-Aug-13,DRUGS,Surgery,NHS LOGISTICS,1014061140,15.43,
Department of Health,Salisbury NHS Foundation Trust,16-Aug-13,DRUGS,Medicine,NHS LOGISTICS,1014061140,15.43,
Department of Health,Salisbury NHS Foundation Trust,16-Aug-13,TISSUES HAND TOWELS & TOILET PAPER,Surgery,NHS LOGISTICS,1014061140,15.5,
Department of Health,Salisbury NHS Foundation Trust,16-Aug-13,MEDSURGCONS - OTHER,Critical care,NHS LOGISTICS,1014061140,15.63,
Department of Health,Salisbury NHS Foundation Trust,16-Aug-13,MEDSURGCONS - OTHER,Clinical Support and Family Services,NHS LOGISTICS,1014061140,15.63,
Department of Health,Salisbury NHS Foundation Trust,16-Aug-13,MEDSURGCONS - OTHER,Medicine,NHS LOGISTICS,1014061140,15.63,
Department of Health,Salisbury NHS Foundation Trust,16-Aug-13,BEVERAGES & AMBIENT FOOD,Facilities Directorate,NHS LOGISTICS,1014061140,15.64,
Department of Health,Salisbury NHS Foundation Trust,16-Aug-13,BEVERAGES & AMBIENT FOOD,Facilities Directorate,NHS LOGISTICS,1014061140,15.64,
Department of Health,Salisbury NHS Foundation Trust,16-Aug-13,PATIENT APPLIANCES,Medicine,NHS LOGISTICS,1014061140,15.83,
Department of Health,Salisbury NHS Foundation Trust,16-Aug-13,SURGICAL INSTRUMENTS: GENERAL,Surgery,NHS LOGISTICS,1014061140,15.83,
Department of Health,Salisbury NHS Foundation Trust,16-Aug-13,DRESSINGS  -  PROCEDURE PACKS,Surgery,NHS LOGISTICS,1014061140,15.83,
Department of Health,Salisbury NHS Foundation Trust,16-Aug-13,M & S EQUIPELECTEQUIPINST - OTHER,Surgery,NHS LOGISTICS,1014061140,15.91,
Department of Health,Salisbury NHS Foundation Trust,16-Aug-13,M & S EQUIPELECTEQUIPINST - OTHER,Clinical Support and Family Services,NHS LOGISTICS,1014061140,15.91,
Department of Health,Salisbury NHS Foundation Trust,16-Aug-13,PATIENT APPLIANCES,Surgery,NHS LOGISTICS,1014061140,16.03,
Department of Health,Salisbury NHS Foundation Trust,16-Aug-13,PATIENTS INCONTINENCE,Medicine,NHS LOGISTICS,1014061140,16.03,
Department of Health,Salisbury NHS Foundation Trust,16-Aug-13,PATIENTS INCONTINENCE,Medicine,NHS LOGISTICS,1014061140,16.03,
Department of Health,Salisbury NHS Foundation Trust,16-Aug-13,PATIENTS INCONTINENCE,Medicine,NHS LOGISTICS,1014061140,16.03,
Department of Health,Salisbury NHS Foundation Trust,16-Aug-13,PATIENTS INCONTINENCE,Medicine,NHS LOGISTICS,1014061140,16.03,
Department of Health,Salisbury NHS Foundation Trust,16-Aug-13,EGGS MILK OTHER DAIRY PRODUCTS,Facilities Directorate,NHS LOGISTICS,1014061140,16.03,
Department of Health,Salisbury NHS Foundation Trust,16-Aug-13,ANAESTHETIC EQUIPMENT ACCESSORIES,Clinical Support and Family Services,NHS LOGISTICS,1014061140,16.04,
Department of Health,Salisbury NHS Foundation Trust,16-Aug-13,STATIONERY SUNDRIES,Corporate Directorate,NHS LOGISTICS,1014061140,16.09,
Department of Health,Salisbury NHS Foundation Trust,16-Aug-13,DISPOSABLE THEATRE DRAPES WIPES,Medicine,NHS LOGISTICS,1014061140,16.1,
Department of Health,Salisbury NHS Foundation Trust,16-Aug-13,PAPER ITEMS GENERAL STATIONERY SUNDRIES,Corporate Directorate,NHS LOGISTICS,1014061140,16.25,
Department of Health,Salisbury NHS Foundation Trust,16-Aug-13,TUBES,Surgery,NHS LOGISTICS,1014061140,16.25,
Department of Health,Salisbury NHS Foundation Trust,16-Aug-13,TISSUES HAND TOWELS & TOILET PAPER,Surgery,NHS LOGISTICS,1014061140,16.35,
Department of Health,Salisbury NHS Foundation Trust,16-Aug-13,BEVERAGES & AMBIENT FOOD,Facilities Directorate,NHS LOGISTICS,1014061140,16.38,
Department of Health,Salisbury NHS Foundation Trust,16-Aug-13,BEVERAGES & AMBIENT FOOD,Facilities Directorate,NHS LOGISTICS,1014061140,16.38,
Department of Health,Salisbury NHS Foundation Trust,16-Aug-13,COOKING & KITCHEN UTENSILS,Surgery,NHS LOGISTICS,1014061140,16.45,
Department of Health,Salisbury NHS Foundation Trust,16-Aug-13,COOKING & KITCHEN UTENSILS,Surgery,NHS LOGISTICS,1014061140,16.45,
Department of Health,Salisbury NHS Foundation Trust,16-Aug-13,PATIENT APPLIANCES,Medicine,NHS LOGISTICS,1014061140,16.47,
Department of Health,Salisbury NHS Foundation Trust,16-Aug-13,PATIENT APPLIANCES,Medicine,NHS LOGISTICS,1014061140,16.47,
Department of Health,Salisbury NHS Foundation Trust,16-Aug-13,MEDSURGCONS - OTHER,Surgery,NHS LOGISTICS,1014061140,16.5,
Department of Health,Salisbury NHS Foundation Trust,16-Aug-13,MEDSURGCONS - OTHER,Medicine,NHS LOGISTICS,1014061140,16.5,
Department of Health,Salisbury NHS Foundation Trust,16-Aug-13,OTHER MEDICAL SUPPLIES,Medicine,NHS LOGISTICS,1014061140,16.53,
Department of Health,Salisbury NHS Foundation Trust,16-Aug-13,OTHER MEDICAL SUPPLIES,Medicine,NHS LOGISTICS,1014061140,16.53,
Department of Health,Salisbury NHS Foundation Trust,16-Aug-13,OTHER MEDICAL SUPPLIES,Medicine,NHS LOGISTICS,1014061140,16.53,
Department of Health,Salisbury NHS Foundation Trust,16-Aug-13,OTHER MEDICAL SUPPLIES,Clinical Support and Family Services,NHS LOGISTICS,1014061140,16.53,
Department of Health,Salisbury NHS Foundation Trust,16-Aug-13,OTHER MEDICAL SUPPLIES,Surgery,NHS LOGISTICS,1014061140,16.53,
Department of Health,Salisbury NHS Foundation Trust,16-Aug-13,OTHER MEDICAL SUPPLIES,Surgery,NHS LOGISTICS,1014061140,16.53,
Department of Health,Salisbury NHS Foundation Trust,16-Aug-13,OTHER MEDICAL SUPPLIES,Medicine,NHS LOGISTICS,1014061140,16.53,
Department of Health,Salisbury NHS Foundation Trust,16-Aug-13,OTHER MEDICAL SUPPLIES,Medicine,NHS LOGISTICS,1014061140,16.53,
Department of Health,Salisbury NHS Foundation Trust,16-Aug-13,OTHER MEDICAL SUPPLIES,Medicine,NHS LOGISTICS,1014061140,16.53,
Department of Health,Salisbury NHS Foundation Trust,16-Aug-13,OTHER MEDICAL SUPPLIES,Medicine,NHS LOGISTICS,1014061140,16.53,
Department of Health,Salisbury NHS Foundation Trust,16-Aug-13,OTHER MEDICAL SUPPLIES,Critical care,NHS LOGISTICS,1014061140,16.53,
Department of Health,Salisbury NHS Foundation Trust,16-Aug-13,OTHER MEDICAL SUPPLIES,Medicine,NHS LOGISTICS,1014061140,16.53,
Department of Health,Salisbury NHS Foundation Trust,16-Aug-13,OTHER MEDICAL SUPPLIES,Medicine,NHS LOGISTICS,1014061140,16.53,
Department of Health,Salisbury NHS Foundation Trust,16-Aug-13,HABERDASHERY,Surgery,NHS LOGISTICS,1014061140,16.58,
Department of Health,Salisbury NHS Foundation Trust,16-Aug-13,BEVERAGES & AMBIENT FOOD,Facilities Directorate,NHS LOGISTICS,1014061140,16.72,
Department of Health,Salisbury NHS Foundation Trust,16-Aug-13,FRUIT & VEGETABLES,Facilities Directorate,NHS LOGISTICS,1014061140,16.76,
Department of Health,Salisbury NHS Foundation Trust,16-Aug-13,BEVERAGES & AMBIENT FOOD,Facilities Directorate,NHS LOGISTICS,1014061140,16.92,
Department of Health,Salisbury NHS Foundation Trust,16-Aug-13,DRESSINGS - PRE STERILE,Clinical Support and Family Services,NHS LOGISTICS,1014061140,16.93,
Department of Health,Salisbury NHS Foundation Trust,16-Aug-13,BEVERAGES & AMBIENT FOOD,Facilities Directorate,NHS LOGISTICS,1014061140,17,
Department of Health,Salisbury NHS Foundation Trust,16-Aug-13,MEDSURGCONS - OTHER,Facilities Directorate,NHS LOGISTICS,1014061140,17.1,
Department of Health,Salisbury NHS Foundation Trust,16-Aug-13,LIQUID REFRESHMENTS,Facilities Directorate,NHS LOGISTICS,1014061140,17.12,
Department of Health,Salisbury NHS Foundation Trust,16-Aug-13,DISPOSABLE THEATRE DRAPES WIPES,Medicine,NHS LOGISTICS,1014061140,17.2,
Department of Health,Salisbury NHS Foundation Trust,16-Aug-13,DRESSINGS - PRE STERILE,Critical care,NHS LOGISTICS,1014061140,17.23,
Department of Health,Salisbury NHS Foundation Trust,16-Aug-13,MED SURG EQUIP REP MAINT CLEANING,Medicine,NHS LOGISTICS,1014061140,17.25,
Department of Health,Salisbury NHS Foundation Trust,16-Aug-13,MED SURG EQUIP REP MAINT CLEANING,Medicine,NHS LOGISTICS,1014061140,17.25,
Department of Health,Salisbury NHS Foundation Trust,16-Aug-13,MED SURG EQUIP REP MAINT CLEANING,Surgery,NHS LOGISTICS,1014061140,17.25,
Department of Health,Salisbury NHS Foundation Trust,16-Aug-13,PATIENTS INCONTINENCE,Medicine,NHS LOGISTICS,1014061140,17.3,
Department of Health,Salisbury NHS Foundation Trust,16-Aug-13,OTHER MEDICAL SUPPLIES,Surgery,NHS LOGISTICS,1014061140,17.5,
Department of Health,Salisbury NHS Foundation Trust,16-Aug-13,OTHER MEDICAL SUPPLIES,Surgery,NHS LOGISTICS,1014061140,17.5,
Department of Health,Salisbury NHS Foundation Trust,16-Aug-13,CLEANING MATERIALS PRODUCTS SUNDRIES,Facilities Directorate,NHS LOGISTICS,1014061140,17.6,
Department of Health,Salisbury NHS Foundation Trust,16-Aug-13,DRESSINGS - PRE STERILE,Surgery,NHS LOGISTICS,1014061140,17.65,
Department of Health,Salisbury NHS Foundation Trust,16-Aug-13,OTHER MEDICAL SUPPLIES,Critical care,NHS LOGISTICS,1014061140,17.67,
Department of Health,Salisbury NHS Foundation Trust,16-Aug-13,OTHER MEDICAL SUPPLIES,Critical care,NHS LOGISTICS,1014061140,17.67,
Department of Health,Salisbury NHS Foundation Trust,16-Aug-13,MEDSURGCONS - OTHER,Critical care,NHS LOGISTICS,1014061140,17.91,
Department of Health,Salisbury NHS Foundation Trust,16-Aug-13,MEDSURGCONS - OTHER,Medicine,NHS LOGISTICS,1014061140,17.91,
Department of Health,Salisbury NHS Foundation Trust,16-Aug-13,MEDSURGCONS - OTHER,Medicine,NHS LOGISTICS,1014061140,17.91,
Department of Health,Salisbury NHS Foundation Trust,16-Aug-13,MEDSURGCONS - OTHER,Medicine,NHS LOGISTICS,1014061140,17.91,
Department of Health,Salisbury NHS Foundation Trust,16-Aug-13,MEDSURGCONS - OTHER,Medicine,NHS LOGISTICS,1014061140,17.91,
Department of Health,Salisbury NHS Foundation Trust,16-Aug-13,MEDSURGCONS - OTHER,Medicine,NHS LOGISTICS,1014061140,17.91,
Department of Health,Salisbury NHS Foundation Trust,16-Aug-13,MEDSURGCONS - OTHER,Critical care,NHS LOGISTICS,1014061140,17.91,
Department of Health,Salisbury NHS Foundation Trust,16-Aug-13,DRESSINGS - PRE STERILE,Clinical Support and Family Services,NHS LOGISTICS,1014061140,18.04,
Department of Health,Salisbury NHS Foundation Trust,16-Aug-13,BEVERAGES & AMBIENT FOOD,Facilities Directorate,NHS LOGISTICS,1014061140,18.06,
Department of Health,Salisbury NHS Foundation Trust,16-Aug-13,FRUIT & VEGETABLES,Facilities Directorate,NHS LOGISTICS,1014061140,18.12,
Department of Health,Salisbury NHS Foundation Trust,16-Aug-13,FRUIT & VEGETABLES,Facilities Directorate,NHS LOGISTICS,1014061140,18.12,
Department of Health,Salisbury NHS Foundation Trust,16-Aug-13,MEDSURGCONS - OTHER,Medicine,NHS LOGISTICS,1014061140,18.23,
Department of Health,Salisbury NHS Foundation Trust,16-Aug-13,BEVERAGES & AMBIENT FOOD,Facilities Directorate,NHS LOGISTICS,1014061140,18.24,
Department of Health,Salisbury NHS Foundation Trust,16-Aug-13,BEVERAGES & AMBIENT FOOD,Facilities Directorate,NHS LOGISTICS,1014061140,18.24,
Department of Health,Salisbury NHS Foundation Trust,16-Aug-13,LIQUID REFRESHMENTS,Facilities Directorate,NHS LOGISTICS,1014061140,18.4,
Department of Health,Salisbury NHS Foundation Trust,16-Aug-13,LIQUID REFRESHMENTS,Facilities Directorate,NHS LOGISTICS,1014061140,18.4,
Department of Health,Salisbury NHS Foundation Trust,16-Aug-13,MEDSURGCONS - OTHER,Medicine,NHS LOGISTICS,1014061140,18.63,
Department of Health,Salisbury NHS Foundation Trust,16-Aug-13,MEDSURGCONS - OTHER,Medicine,NHS LOGISTICS,1014061140,18.63,
Department of Health,Salisbury NHS Foundation Trust,16-Aug-13,PAPER ITEMS GENERAL STATIONERY SUNDRIES,Clinical Support and Family Services,NHS LOGISTICS,1014061140,18.67,
Department of Health,Salisbury NHS Foundation Trust,16-Aug-13,PAPER ITEMS GENERAL STATIONERY SUNDRIES,Medicine,NHS LOGISTICS,1014061140,18.67,
Department of Health,Salisbury NHS Foundation Trust,16-Aug-13,PAPER ITEMS GENERAL STATIONERY SUNDRIES,Facilities Directorate,NHS LOGISTICS,1014061140,18.67,
Department of Health,Salisbury NHS Foundation Trust,16-Aug-13,PAPER ITEMS GENERAL STATIONERY SUNDRIES,Clinical Effctiveness Directorate,NHS LOGISTICS,1014061140,18.67,
Department of Health,Salisbury NHS Foundation Trust,16-Aug-13,PAPER ITEMS GENERAL STATIONERY SUNDRIES,Surgery,NHS LOGISTICS,1014061140,18.67,
Department of Health,Salisbury NHS Foundation Trust,16-Aug-13,DRUGS,Clinical Support and Family Services,NHS LOGISTICS,1014061140,18.85,
Department of Health,Salisbury NHS Foundation Trust,16-Aug-13,PATIENTS INCONTINENCE,Medicine,NHS LOGISTICS,1014061140,18.87,
Department of Health,Salisbury NHS Foundation Trust,16-Aug-13,CLEANING MATERIALS PRODUCTS SUNDRIES,Facilities Directorate,NHS LOGISTICS,1014061140,19,
Department of Health,Salisbury NHS Foundation Trust,16-Aug-13,BEVERAGES & AMBIENT FOOD,Clinical Support and Family Services,NHS LOGISTICS,1014061140,19.04,
Department of Health,Salisbury NHS Foundation Trust,16-Aug-13,STATIONERY SUNDRIES,Medicine,NHS LOGISTICS,1014061140,19.26,
Department of Health,Salisbury NHS Foundation Trust,16-Aug-13,DRESSINGS - PRE STERILE,Clinical Support and Family Services,NHS LOGISTICS,1014061140,19.36,
Department of Health,Salisbury NHS Foundation Trust,16-Aug-13,OTHER MEDICAL SUPPLIES,Clinical Support and Family Services,NHS LOGISTICS,1014061140,19.37,
Department of Health,Salisbury NHS Foundation Trust,16-Aug-13,DRESSINGS - PRE STERILE,Critical care,NHS LOGISTICS,1014061140,19.4,
Department of Health,Salisbury NHS Foundation Trust,16-Aug-13,DRESSINGS - PRE STERILE,Critical care,NHS LOGISTICS,1014061140,19.4,
Department of Health,Salisbury NHS Foundation Trust,16-Aug-13,DRESSINGS - PRE STERILE,Facilities Directorate,NHS LOGISTICS,1014061140,19.4,
Department of Health,Salisbury NHS Foundation Trust,16-Aug-13,FRUIT & VEGETABLES,Facilities Directorate,NHS LOGISTICS,1014061140,19.68,
Department of Health,Salisbury NHS Foundation Trust,16-Aug-13,DIETETIC FOOD,Facilities Directorate,NHS LOGISTICS,1014061140,19.68,
Department of Health,Salisbury NHS Foundation Trust,16-Aug-13,DIETETIC FOOD,Facilities Directorate,NHS LOGISTICS,1014061140,19.68,
Department of Health,Salisbury NHS Foundation Trust,16-Aug-13,DIETETIC FOOD,Facilities Directorate,NHS LOGISTICS,1014061140,19.68,
Department of Health,Salisbury NHS Foundation Trust,16-Aug-13,BEVERAGES & AMBIENT FOOD,Facilities Directorate,NHS LOGISTICS,1014061140,19.74,
Department of Health,Salisbury NHS Foundation Trust,16-Aug-13,DRESSINGS - PRE STERILE,Critical care,NHS LOGISTICS,1014061140,19.8,
Department of Health,Salisbury NHS Foundation Trust,16-Aug-13,DRESSINGS - PRE STERILE,Critical care,NHS LOGISTICS,1014061140,19.93,
Department of Health,Salisbury NHS Foundation Trust,16-Aug-13,DRESSINGS - PRE STERILE,Critical care,NHS LOGISTICS,1014061140,19.93,
Department of Health,Salisbury NHS Foundation Trust,16-Aug-13,DRESSINGS - PRE STERILE,Critical care,NHS LOGISTICS,1014061140,19.93,
Department of Health,Salisbury NHS Foundation Trust,16-Aug-13,DRESSINGS - PRE STERILE,Critical care,NHS LOGISTICS,1014061140,20.02,
Department of Health,Salisbury NHS Foundation Trust,16-Aug-13,DRESSINGS - PRE STERILE,Surgery,NHS LOGISTICS,1014061140,20.03,
Department of Health,Salisbury NHS Foundation Trust,16-Aug-13,FRUIT & VEGETABLES,Facilities Directorate,NHS LOGISTICS,1014061140,20.08,
Department of Health,Salisbury NHS Foundation Trust,16-Aug-13,FRUIT & VEGETABLES,Facilities Directorate,NHS LOGISTICS,1014061140,20.08,
Department of Health,Salisbury NHS Foundation Trust,16-Aug-13,TISSUES HAND TOWELS & TOILET PAPER,Clinical Support and Family Services,NHS LOGISTICS,1014061140,20.1,
Department of Health,Salisbury NHS Foundation Trust,16-Aug-13,TISSUES HAND TOWELS & TOILET PAPER,Clinical Support and Family Services,NHS LOGISTICS,1014061140,20.1,
Department of Health,Salisbury NHS Foundation Trust,16-Aug-13,TISSUES HAND TOWELS & TOILET PAPER,Surgery,NHS LOGISTICS,1014061140,20.1,
Department of Health,Salisbury NHS Foundation Trust,16-Aug-13,TISSUES HAND TOWELS & TOILET PAPER,Clinical Support and Family Services,NHS LOGISTICS,1014061140,20.1,
Department of Health,Salisbury NHS Foundation Trust,16-Aug-13,TISSUES HAND TOWELS & TOILET PAPER,Facilities Directorate,NHS LOGISTICS,1014061140,20.1,
Department of Health,Salisbury NHS Foundation Trust,16-Aug-13,DRESSINGS - PRE STERILE,Critical care,NHS LOGISTICS,1014061140,20.11,
Department of Health,Salisbury NHS Foundation Trust,16-Aug-13,DRESSINGS - PRE STERILE,Critical care,NHS LOGISTICS,1014061140,20.14,
Department of Health,Salisbury NHS Foundation Trust,16-Aug-13,STATIONERY SUNDRIES,Surgery,NHS LOGISTICS,1014061140,20.33,
Department of Health,Salisbury NHS Foundation Trust,16-Aug-13,FRUIT & VEGETABLES,Facilities Directorate,NHS LOGISTICS,1014061140,20.4,
Department of Health,Salisbury NHS Foundation Trust,16-Aug-13,PAPER ITEMS GENERAL STATIONERY SUNDRIES,Corporate Directorate,NHS LOGISTICS,1014061140,20.53,
Department of Health,Salisbury NHS Foundation Trust,16-Aug-13,TISSUES HAND TOWELS & TOILET PAPER,Critical care,NHS LOGISTICS,1014061140,20.6,
Department of Health,Salisbury NHS Foundation Trust,16-Aug-13,MED SURG EQUIP REP MAINT CLEANING,Medicine,NHS LOGISTICS,1014061140,20.7,
Department of Health,Salisbury NHS Foundation Trust,16-Aug-13,MEDSURGCONS - OTHER,Surgery,NHS LOGISTICS,1014061140,20.87,
Department of Health,Salisbury NHS Foundation Trust,16-Aug-13,LIQUID REFRESHMENTS,Facilities Directorate,NHS LOGISTICS,1014061140,20.95,
Department of Health,Salisbury NHS Foundation Trust,16-Aug-13,BEVERAGES & AMBIENT FOOD,Facilities Directorate,NHS LOGISTICS,1014061140,21.08,
Department of Health,Salisbury NHS Foundation Trust,16-Aug-13,BEVERAGES & AMBIENT FOOD,Facilities Directorate,NHS LOGISTICS,1014061140,21.08,
Department of Health,Salisbury NHS Foundation Trust,16-Aug-13,PATIENT APPLIANCES,Clinical Support and Family Services,NHS LOGISTICS,1014061140,21.27,
Department of Health,Salisbury NHS Foundation Trust,16-Aug-13,PATIENT APPLIANCES,Surgery,NHS LOGISTICS,1014061140,21.27,
Department of Health,Salisbury NHS Foundation Trust,16-Aug-13,TOILETRIES PERSONAL HYGIENE PRODUCTS,Medicine,NHS LOGISTICS,1014061140,21.3,
Department of Health,Salisbury NHS Foundation Trust,16-Aug-13,MEDSURGCONS - OTHER,Critical care,NHS LOGISTICS,1014061140,21.48,
Department of Health,Salisbury NHS Foundation Trust,16-Aug-13,NON DISPOSABLE BED LINEN,Critical care,NHS LOGISTICS,1014061140,21.77,
Department of Health,Salisbury NHS Foundation Trust,16-Aug-13,NON DISPOSABLE BED LINEN,Medicine,NHS LOGISTICS,1014061140,21.77,
Department of Health,Salisbury NHS Foundation Trust,16-Aug-13,NON DISPOSABLE BED LINEN,Surgery,NHS LOGISTICS,1014061140,21.77,
Department of Health,Salisbury NHS Foundation Trust,16-Aug-13,NON DISPOSABLE BED LINEN,Medicine,NHS LOGISTICS,1014061140,21.77,
Department of Health,Salisbury NHS Foundation Trust,16-Aug-13,NON DISPOSABLE BED LINEN,Medicine,NHS LOGISTICS,1014061140,21.77,
Department of Health,Salisbury NHS Foundation Trust,16-Aug-13,NON DISPOSABLE BED LINEN,Critical care,NHS LOGISTICS,1014061140,21.77,
Department of Health,Salisbury NHS Foundation Trust,16-Aug-13,NON DISPOSABLE BED LINEN,Critical care,NHS LOGISTICS,1014061140,21.77,
Department of Health,Salisbury NHS Foundation Trust,16-Aug-13,DRESSINGS - PRE STERILE,Facilities Directorate,NHS LOGISTICS,1014061140,21.83,
Department of Health,Salisbury NHS Foundation Trust,16-Aug-13,FRUIT & VEGETABLES,Facilities Directorate,NHS LOGISTICS,1014061140,21.84,
Department of Health,Salisbury NHS Foundation Trust,16-Aug-13,OTHER MEDICAL SUPPLIES,Medicine,NHS LOGISTICS,1014061140,22.08,
Department of Health,Salisbury NHS Foundation Trust,16-Aug-13,OTHER MEDICAL SUPPLIES,Medicine,NHS LOGISTICS,1014061140,22.08,
Department of Health,Salisbury NHS Foundation Trust,16-Aug-13,OTHER MEDICAL SUPPLIES,Surgery,NHS LOGISTICS,1014061140,22.08,
Department of Health,Salisbury NHS Foundation Trust,16-Aug-13,OTHER MEDICAL SUPPLIES,Surgery,NHS LOGISTICS,1014061140,22.08,
Department of Health,Salisbury NHS Foundation Trust,16-Aug-13,OTHER MEDICAL SUPPLIES,Medicine,NHS LOGISTICS,1014061140,22.08,
Department of Health,Salisbury NHS Foundation Trust,16-Aug-13,OTHER MEDICAL SUPPLIES,Medicine,NHS LOGISTICS,1014061140,22.08,
Department of Health,Salisbury NHS Foundation Trust,16-Aug-13,OTHER MEDICAL SUPPLIES,Surgery,NHS LOGISTICS,1014061140,22.08,
Department of Health,Salisbury NHS Foundation Trust,16-Aug-13,OTHER MEDICAL SUPPLIES,Surgery,NHS LOGISTICS,1014061140,22.08,
Department of Health,Salisbury NHS Foundation Trust,16-Aug-13,OTHER MEDICAL SUPPLIES,Critical care,NHS LOGISTICS,1014061140,22.08,
Department of Health,Salisbury NHS Foundation Trust,16-Aug-13,CLEANING MATERIALS PRODUCTS SUNDRIES,Facilities Directorate,NHS LOGISTICS,1014061140,22.17,
Department of Health,Salisbury NHS Foundation Trust,16-Aug-13,FRUIT & VEGETABLES,Facilities Directorate,NHS LOGISTICS,1014061140,22.2,
Department of Health,Salisbury NHS Foundation Trust,16-Aug-13,MEDSURGCONS-SUTURES,Surgery,NHS LOGISTICS,1014061140,22.27,
Department of Health,Salisbury NHS Foundation Trust,16-Aug-13,MEDSURGCONS-SUTURES,Surgery,NHS LOGISTICS,1014061140,22.27,
Department of Health,Salisbury NHS Foundation Trust,16-Aug-13,MEDSURGCONS-SUTURES,Surgery,NHS LOGISTICS,1014061140,22.27,
Department of Health,Salisbury NHS Foundation Trust,16-Aug-13,MEDSURGCONS-SUTURES,Surgery,NHS LOGISTICS,1014061140,22.28,
Department of Health,Salisbury NHS Foundation Trust,16-Aug-13,OTHER MEDICAL SUPPLIES,Surgery,NHS LOGISTICS,1014061140,22.33,
Department of Health,Salisbury NHS Foundation Trust,16-Aug-13,DRESSINGS - PRE STERILE,Critical care,NHS LOGISTICS,1014061140,22.78,
Department of Health,Salisbury NHS Foundation Trust,16-Aug-13,DRESSINGS - PRE STERILE,Critical care,NHS LOGISTICS,1014061140,22.78,
Department of Health,Salisbury NHS Foundation Trust,16-Aug-13,DRESSINGS - PRE STERILE,Surgery,NHS LOGISTICS,1014061140,22.78,
Department of Health,Salisbury NHS Foundation Trust,16-Aug-13,DRESSINGS - PRE STERILE,Critical care,NHS LOGISTICS,1014061140,22.79,
Department of Health,Salisbury NHS Foundation Trust,16-Aug-13,MEDSURGCONS-SUTURES,Surgery,NHS LOGISTICS,1014061140,22.9,
Department of Health,Salisbury NHS Foundation Trust,16-Aug-13,MEDSURGCONS - OTHER,Clinical Support and Family Services,NHS LOGISTICS,1014061140,22.92,
Department of Health,Salisbury NHS Foundation Trust,16-Aug-13,HEALTHCARE - WEAR,Clinical Support and Family Services,NHS LOGISTICS,1014061140,23,
Department of Health,Salisbury NHS Foundation Trust,16-Aug-13,LIQUID REFRESHMENTS,Facilities Directorate,NHS LOGISTICS,1014061140,23,
Department of Health,Salisbury NHS Foundation Trust,16-Aug-13,DRESSINGS - PRE STERILE,Critical care,NHS LOGISTICS,1014061140,23.04,
Department of Health,Salisbury NHS Foundation Trust,16-Aug-13,MEDSURGCONS - OTHER,Critical care,NHS LOGISTICS,1014061140,23.1,
Department of Health,Salisbury NHS Foundation Trust,16-Aug-13,BAGS SACKS - OTHER,Surgery,NHS LOGISTICS,1014061140,23.1,
Department of Health,Salisbury NHS Foundation Trust,16-Aug-13,MEDSURGCONS-SUTURES,Surgery,NHS LOGISTICS,1014061140,23.12,
Department of Health,Salisbury NHS Foundation Trust,16-Aug-13,DRUGS,Surgery,NHS LOGISTICS,1014061140,23.15,
Department of Health,Salisbury NHS Foundation Trust,16-Aug-13,MED SURG EQUIP REP MAINT CLEANING,Clinical Support and Family Services,NHS LOGISTICS,1014061140,23.37,
Department of Health,Salisbury NHS Foundation Trust,16-Aug-13,DRESSINGS - PRE STERILE,Clinical Support and Family Services,NHS LOGISTICS,1014061140,23.5,
Department of Health,Salisbury NHS Foundation Trust,16-Aug-13,MEDSURGCONS-SUTURES,Clinical Support and Family Services,NHS LOGISTICS,1014061140,23.51,
Department of Health,Salisbury NHS Foundation Trust,16-Aug-13,MEDSURGCONS-SUTURES,Surgery,NHS LOGISTICS,1014061140,23.51,
Department of Health,Salisbury NHS Foundation Trust,16-Aug-13,BEVERAGES & AMBIENT FOOD,Facilities Directorate,NHS LOGISTICS,1014061140,23.72,
Department of Health,Salisbury NHS Foundation Trust,16-Aug-13,PATIENT APPLIANCES,Medicine,NHS LOGISTICS,1014061140,23.75,
Department of Health,Salisbury NHS Foundation Trust,16-Aug-13,MEDSURGCONS-SUTURES,Surgery,NHS LOGISTICS,1014061140,23.97,
Department of Health,Salisbury NHS Foundation Trust,16-Aug-13,FLAVOURINGS HERBS SPICES,Facilities Directorate,NHS LOGISTICS,1014061140,24.24,
Department of Health,Salisbury NHS Foundation Trust,16-Aug-13,FLAVOURINGS HERBS SPICES,Facilities Directorate,NHS LOGISTICS,1014061140,24.24,
Department of Health,Salisbury NHS Foundation Trust,16-Aug-13,BEVERAGES & AMBIENT FOOD,Facilities Directorate,NHS LOGISTICS,1014061140,24.3,
Department of Health,Salisbury NHS Foundation Trust,16-Aug-13,BEVERAGES & AMBIENT FOOD,Facilities Directorate,NHS LOGISTICS,1014061140,24.3,
Department of Health,Salisbury NHS Foundation Trust,16-Aug-13,DRESSINGS - PRE STERILE,Critical care,NHS LOGISTICS,1014061140,24.33,
Department of Health,Salisbury NHS Foundation Trust,16-Aug-13,NON DISPOSABLE BED LINEN,Clinical Support and Family Services,NHS LOGISTICS,1014061140,24.5,
Department of Health,Salisbury NHS Foundation Trust,16-Aug-13,LAB EQUIP-LABORATORY APPARATUS,Clinical Support and Family Services,NHS LOGISTICS,1014061140,24.7,
Department of Health,Salisbury NHS Foundation Trust,16-Aug-13,BEVERAGES & AMBIENT FOOD,Facilities Directorate,NHS LOGISTICS,1014061140,24.84,
Department of Health,Salisbury NHS Foundation Trust,16-Aug-13,NON DISPOSABLE BED LINEN,Clinical Support and Family Services,NHS LOGISTICS,1014061140,24.92,
Department of Health,Salisbury NHS Foundation Trust,16-Aug-13,HEALTHCARE - WEAR,Critical care,NHS LOGISTICS,1014061140,24.97,
Department of Health,Salisbury NHS Foundation Trust,16-Aug-13,OTHER MEDICAL SUPPLIES,Surgery,NHS LOGISTICS,1014061140,25.07,
Department of Health,Salisbury NHS Foundation Trust,16-Aug-13,BEVERAGES & AMBIENT FOOD,Facilities Directorate,NHS LOGISTICS,1014061140,25.08,
Department of Health,Salisbury NHS Foundation Trust,16-Aug-13,DRESSINGS - PRE STERILE,Surgery,NHS LOGISTICS,1014061140,25.22,
Department of Health,Salisbury NHS Foundation Trust,16-Aug-13,LAB EQUIP-LABORATORY APPARATUS,Clinical Support and Family Services,NHS LOGISTICS,1014061140,25.23,
Department of Health,Salisbury NHS Foundation Trust,16-Aug-13,DRESSINGS - PRE STERILE,Clinical Support and Family Services,NHS LOGISTICS,1014061140,25.35,
Department of Health,Salisbury NHS Foundation Trust,16-Aug-13,PAPER ITEMS GENERAL STATIONERY SUNDRIES,Nursing Directorate,NHS LOGISTICS,1014061140,25.43,
Department of Health,Salisbury NHS Foundation Trust,16-Aug-13,PAPER ITEMS GENERAL STATIONERY SUNDRIES,Medicine,NHS LOGISTICS,1014061140,25.67,
Department of Health,Salisbury NHS Foundation Trust,16-Aug-13,ANAESTHETIC EQUIPMENT ACCESSORIES,Surgery,NHS LOGISTICS,1014061140,25.93,
Department of Health,Salisbury NHS Foundation Trust,16-Aug-13,BABY TEXTURE MODIFIED FOODS,Facilities Directorate,NHS LOGISTICS,1014061140,25.98,
Department of Health,Salisbury NHS Foundation Trust,16-Aug-13,OTHER MEDICAL SUPPLIES,Surgery,NHS LOGISTICS,1014061140,26.25,
Department of Health,Salisbury NHS Foundation Trust,16-Aug-13,MEDSURGCONS - OTHER,Medicine,NHS LOGISTICS,1014061140,26.35,
Department of Health,Salisbury NHS Foundation Trust,16-Aug-13,PAPER ITEMS GENERAL STATIONERY SUNDRIES,Critical care,NHS LOGISTICS,1014061140,26.42,
Department of Health,Salisbury NHS Foundation Trust,16-Aug-13,OTHER MEDICAL SUPPLIES,Surgery,NHS LOGISTICS,1014061140,26.5,
Department of Health,Salisbury NHS Foundation Trust,16-Aug-13,OTHER MEDICAL SUPPLIES,Medicine,NHS LOGISTICS,1014061140,26.5,
Department of Health,Salisbury NHS Foundation Trust,16-Aug-13,OTHER MEDICAL SUPPLIES,Medicine,NHS LOGISTICS,1014061140,26.5,
Department of Health,Salisbury NHS Foundation Trust,16-Aug-13,MEDSURGCONS-SUTURES,Medicine,NHS LOGISTICS,1014061140,26.68,
Department of Health,Salisbury NHS Foundation Trust,16-Aug-13,MEDSURGCONS-SUTURES,Clinical Support and Family Services,NHS LOGISTICS,1014061140,26.68,
Department of Health,Salisbury NHS Foundation Trust,16-Aug-13,MEDSURGCONS-SUTURES,Critical care,NHS LOGISTICS,1014061140,26.95,
Department of Health,Salisbury NHS Foundation Trust,16-Aug-13,MEDSURGCONS - OTHER,Surgery,NHS LOGISTICS,1014061140,27.5,
Department of Health,Salisbury NHS Foundation Trust,16-Aug-13,OTHER MEDICAL SUPPLIES,Clinical Support and Family Services,NHS LOGISTICS,1014061140,27.57,
Department of Health,Salisbury NHS Foundation Trust,16-Aug-13,OTHER MEDICAL SUPPLIES,Clinical Support and Family Services,NHS LOGISTICS,1014061140,27.57,
Department of Health,Salisbury NHS Foundation Trust,16-Aug-13,OTHER MEDICAL SUPPLIES,Medicine,NHS LOGISTICS,1014061140,27.6,
Department of Health,Salisbury NHS Foundation Trust,16-Aug-13,DRESSINGS - PRE STERILE,Critical care,NHS LOGISTICS,1014061140,27.71,
Department of Health,Salisbury NHS Foundation Trust,16-Aug-13,PAPER ITEMS GENERAL STATIONERY SUNDRIES,Medicine,NHS LOGISTICS,1014061140,27.8,
Department of Health,Salisbury NHS Foundation Trust,16-Aug-13,BABY TEXTURE MODIFIED FOODS,Facilities Directorate,NHS LOGISTICS,1014061140,27.93,
Department of Health,Salisbury NHS Foundation Trust,16-Aug-13,MEDSURGCONS - OTHER,Clinical Support and Family Services,NHS LOGISTICS,1014061140,27.99,
Department of Health,Salisbury NHS Foundation Trust,16-Aug-13,DRESSINGS - PRE STERILE,Critical care,NHS LOGISTICS,1014061140,28.22,
Department of Health,Salisbury NHS Foundation Trust,16-Aug-13,MEDSURGCONS-SUTURES,Clinical Support and Family Services,NHS LOGISTICS,1014061140,28.46,
Department of Health,Salisbury NHS Foundation Trust,16-Aug-13,BEVERAGES & AMBIENT FOOD,Facilities Directorate,NHS LOGISTICS,1014061140,28.59,
Department of Health,Salisbury NHS Foundation Trust,16-Aug-13,BEVERAGES & AMBIENT FOOD,Facilities Directorate,NHS LOGISTICS,1014061140,28.59,
Department of Health,Salisbury NHS Foundation Trust,16-Aug-13,DRESSINGS - PRE STERILE,Clinical Support and Family Services,NHS LOGISTICS,1014061140,28.78,
Department of Health,Salisbury NHS Foundation Trust,16-Aug-13,DRESSINGS  -  PROCEDURE PACKS,Clinical Support and Family Services,NHS LOGISTICS,1014061140,29.29,
Department of Health,Salisbury NHS Foundation Trust,16-Aug-13,BEVERAGES & AMBIENT FOOD,Surgery,NHS LOGISTICS,1014061140,29.46,
Department of Health,Salisbury NHS Foundation Trust,16-Aug-13,BABY TEXTURE MODIFIED FOODS,Clinical Support and Family Services,NHS LOGISTICS,1014061140,29.53,
Department of Health,Salisbury NHS Foundation Trust,16-Aug-13,DRESSINGS - PRE STERILE,Critical care,NHS LOGISTICS,1014061140,29.6,
Department of Health,Salisbury NHS Foundation Trust,16-Aug-13,MEDSURGCONS - OTHER,Facilities Directorate,NHS LOGISTICS,1014061140,29.92,
Department of Health,Salisbury NHS Foundation Trust,16-Aug-13,MEDSURGCONS - OTHER,Facilities Directorate,NHS LOGISTICS,1014061140,29.92,
Department of Health,Salisbury NHS Foundation Trust,16-Aug-13,MEDSURGCONS - OTHER,Facilities Directorate,NHS LOGISTICS,1014061140,29.92,
Department of Health,Salisbury NHS Foundation Trust,16-Aug-13,MEDSURGCONS-SUTURES,Surgery,NHS LOGISTICS,1014061140,30.07,
Department of Health,Salisbury NHS Foundation Trust,16-Aug-13,FRUIT & VEGETABLES,Facilities Directorate,NHS LOGISTICS,1014061140,30.48,
Department of Health,Salisbury NHS Foundation Trust,16-Aug-13,PATIENT APPLIANCES,Clinical Support and Family Services,NHS LOGISTICS,1014061140,30.51,
Department of Health,Salisbury NHS Foundation Trust,16-Aug-13,DRESSINGS - PRE STERILE,Facilities Directorate,NHS LOGISTICS,1014061140,30.53,
Department of Health,Salisbury NHS Foundation Trust,16-Aug-13,MEDSURGCONS - OTHER,Surgery,NHS LOGISTICS,1014061140,30.83,
Department of Health,Salisbury NHS Foundation Trust,16-Aug-13,MEDSURGCONS - OTHER,Surgery,NHS LOGISTICS,1014061140,30.83,
Department of Health,Salisbury NHS Foundation Trust,16-Aug-13,MEDSURGCONS-SUTURES,Surgery,NHS LOGISTICS,1014061140,30.83,
Department of Health,Salisbury NHS Foundation Trust,16-Aug-13,OTHER MEDICAL SUPPLIES,Medicine,NHS LOGISTICS,1014061140,30.92,
Department of Health,Salisbury NHS Foundation Trust,16-Aug-13,DRESSINGS - PRE STERILE,Facilities Directorate,NHS LOGISTICS,1014061140,31.08,
Department of Health,Salisbury NHS Foundation Trust,16-Aug-13,PAPER ITEMS GENERAL STATIONERY SUNDRIES,Corporate Directorate,NHS LOGISTICS,1014061140,31.33,
Department of Health,Salisbury NHS Foundation Trust,16-Aug-13,DRESSINGS  -  PROCEDURE PACKS,Surgery,NHS LOGISTICS,1014061140,31.67,
Department of Health,Salisbury NHS Foundation Trust,16-Aug-13,LAB EQUIP-LABORATORY APPARATUS,Clinical Support and Family Services,NHS LOGISTICS,1014061140,31.78,
Department of Health,Salisbury NHS Foundation Trust,16-Aug-13,LAB EQUIP-LABORATORY APPARATUS,Clinical Support and Family Services,NHS LOGISTICS,1014061140,31.79,
Department of Health,Salisbury NHS Foundation Trust,16-Aug-13,MEDSURGCONS-SUTURES,Surgery,NHS LOGISTICS,1014061140,32.47,
Department of Health,Salisbury NHS Foundation Trust,16-Aug-13,DRESSINGS - PRE STERILE,Surgery,NHS LOGISTICS,1014061140,32.76,
Department of Health,Salisbury NHS Foundation Trust,16-Aug-13,DRESSINGS - PRE STERILE,Surgery,NHS LOGISTICS,1014061140,32.76,
Department of Health,Salisbury NHS Foundation Trust,16-Aug-13,PATIENT APPLIANCES,Critical care,NHS LOGISTICS,1014061140,32.8,
Department of Health,Salisbury NHS Foundation Trust,16-Aug-13,PATIENT APPLIANCES,Critical care,NHS LOGISTICS,1014061140,32.8,
Department of Health,Salisbury NHS Foundation Trust,16-Aug-13,PATIENT APPLIANCES,Critical care,NHS LOGISTICS,1014061140,32.8,
Department of Health,Salisbury NHS Foundation Trust,16-Aug-13,OTHER MEDICAL SUPPLIES,Medicine,NHS LOGISTICS,1014061140,33.07,
Department of Health,Salisbury NHS Foundation Trust,16-Aug-13,BEVERAGES & AMBIENT FOOD,Facilities Directorate,NHS LOGISTICS,1014061140,33.12,
Department of Health,Salisbury NHS Foundation Trust,16-Aug-13,BEVERAGES & AMBIENT FOOD,Facilities Directorate,NHS LOGISTICS,1014061140,33.16,
Department of Health,Salisbury NHS Foundation Trust,16-Aug-13,CLEANING MATERIALS PRODUCTS SUNDRIES,Surgery,NHS LOGISTICS,1014061140,33.4,
Department of Health,Salisbury NHS Foundation Trust,16-Aug-13,MEDSURGCONS-SUTURES,Clinical Support and Family Services,NHS LOGISTICS,1014061140,34.07,
Department of Health,Salisbury NHS Foundation Trust,16-Aug-13,MED SURG EQUIP REP MAINT CLEANING,Medicine,NHS LOGISTICS,1014061140,34.5,
Department of Health,Salisbury NHS Foundation Trust,16-Aug-13,BEVERAGES & AMBIENT FOOD,Facilities Directorate,NHS LOGISTICS,1014061140,34.56,
Department of Health,Salisbury NHS Foundation Trust,16-Aug-13,DRESSINGS - PRE STERILE,Surgery,NHS LOGISTICS,1014061140,34.75,
Department of Health,Salisbury NHS Foundation Trust,16-Aug-13,BEVERAGES & AMBIENT FOOD,Facilities Directorate,NHS LOGISTICS,1014061140,34.92,
Department of Health,Salisbury NHS Foundation Trust,16-Aug-13,BEVERAGES & AMBIENT FOOD,Facilities Directorate,NHS LOGISTICS,1014061140,34.92,
Department of Health,Salisbury NHS Foundation Trust,16-Aug-13,OTHER MEDICAL SUPPLIES,Surgery,NHS LOGISTICS,1014061140,35.33,
Department of Health,Salisbury NHS Foundation Trust,16-Aug-13,PAPER ITEMS GENERAL STATIONERY SUNDRIES,Human Resources,NHS LOGISTICS,1014061140,35.55,
Department of Health,Salisbury NHS Foundation Trust,16-Aug-13,MEDSURGCONS - OTHER,Critical care,NHS LOGISTICS,1014061140,35.82,
Department of Health,Salisbury NHS Foundation Trust,16-Aug-13,BEVERAGES & AMBIENT FOOD,Facilities Directorate,NHS LOGISTICS,1014061140,36,
Department of Health,Salisbury NHS Foundation Trust,16-Aug-13,BEVERAGES & AMBIENT FOOD,Facilities Directorate,NHS LOGISTICS,1014061140,36,
Department of Health,Salisbury NHS Foundation Trust,16-Aug-13,MEDSURGCONS-SUTURES,Critical care,NHS LOGISTICS,1014061140,36.06,
Department of Health,Salisbury NHS Foundation Trust,16-Aug-13,HEALTHCARE - WEAR,Critical care,NHS LOGISTICS,1014061140,36.1,
Department of Health,Salisbury NHS Foundation Trust,16-Aug-13,M & S EQUIPELECTEQUIPINST - OTHER,Clinical Support and Family Services,NHS LOGISTICS,1014061140,36.46,
Department of Health,Salisbury NHS Foundation Trust,16-Aug-13,STATIONERY SUNDRIES,Facilities Directorate,NHS LOGISTICS,1014061140,37.05,
Department of Health,Salisbury NHS Foundation Trust,16-Aug-13,MEDSURGCONS-SUTURES,Surgery,NHS LOGISTICS,1014061140,37.06,
Department of Health,Salisbury NHS Foundation Trust,16-Aug-13,PAPER ITEMS GENERAL STATIONERY SUNDRIES,Human Resources,NHS LOGISTICS,1014061140,37.25,
Department of Health,Salisbury NHS Foundation Trust,16-Aug-13,PAPER ITEMS GENERAL STATIONERY SUNDRIES,Clinical Support and Family Services,NHS LOGISTICS,1014061140,37.33,
Department of Health,Salisbury NHS Foundation Trust,16-Aug-13,PAPER ITEMS GENERAL STATIONERY SUNDRIES,Human Resources,NHS LOGISTICS,1014061140,37.33,
Department of Health,Salisbury NHS Foundation Trust,16-Aug-13,PAPER ITEMS GENERAL STATIONERY SUNDRIES,Critical care,NHS LOGISTICS,1014061140,37.33,
Department of Health,Salisbury NHS Foundation Trust,16-Aug-13,MEDSURGCONS-SUTURES,Clinical Support and Family Services,NHS LOGISTICS,1014061140,37.55,
Department of Health,Salisbury NHS Foundation Trust,16-Aug-13,MEDSURGCONS-SUTURES,Clinical Support and Family Services,NHS LOGISTICS,1014061140,37.55,
Department of Health,Salisbury NHS Foundation Trust,16-Aug-13,TOILETRIES PERSONAL HYGIENE PRODUCTS,Medicine,NHS LOGISTICS,1014061140,37.6,
Department of Health,Salisbury NHS Foundation Trust,16-Aug-13,PATIENTS INCONTINENCE,Medicine,NHS LOGISTICS,1014061140,37.73,
Department of Health,Salisbury NHS Foundation Trust,16-Aug-13,CLEANING MATERIALS PRODUCTS SUNDRIES,Facilities Directorate,NHS LOGISTICS,1014061140,38.48,
Department of Health,Salisbury NHS Foundation Trust,16-Aug-13,M & S EQUIPELECTEQUIPINST - OTHER,Surgery,NHS LOGISTICS,1014061140,38.5,
Department of Health,Salisbury NHS Foundation Trust,16-Aug-13,DRESSINGS - PRE STERILE,Critical care,NHS LOGISTICS,1014061140,38.58,
Department of Health,Salisbury NHS Foundation Trust,16-Aug-13,PATIENT APPLIANCES,Critical care,NHS LOGISTICS,1014061140,38.8,
Department of Health,Salisbury NHS Foundation Trust,16-Aug-13,PATIENT APPLIANCES,Critical care,NHS LOGISTICS,1014061140,38.8,
Department of Health,Salisbury NHS Foundation Trust,16-Aug-13,PATIENT APPLIANCES,Critical care,NHS LOGISTICS,1014061140,38.8,
Department of Health,Salisbury NHS Foundation Trust,16-Aug-13,PATIENT APPLIANCES,Critical care,NHS LOGISTICS,1014061140,38.8,
Department of Health,Salisbury NHS Foundation Trust,16-Aug-13,OTHER MEDICAL SUPPLIES,Surgery,NHS LOGISTICS,1014061140,38.87,
Department of Health,Salisbury NHS Foundation Trust,16-Aug-13,OTHER MEDICAL SUPPLIES,Surgery,NHS LOGISTICS,1014061140,38.87,
Department of Health,Salisbury NHS Foundation Trust,16-Aug-13,MEDSURGCONS-SUTURES,Surgery,NHS LOGISTICS,1014061140,39.11,
Department of Health,Salisbury NHS Foundation Trust,16-Aug-13,OTHER MEDICAL SUPPLIES,Surgery,NHS LOGISTICS,1014061140,39.17,
Department of Health,Salisbury NHS Foundation Trust,16-Aug-13,OTHER MEDICAL SUPPLIES,Surgery,NHS LOGISTICS,1014061140,39.17,
Department of Health,Salisbury NHS Foundation Trust,16-Aug-13,OTHER MEDICAL SUPPLIES,Medicine,NHS LOGISTICS,1014061140,39.17,
Department of Health,Salisbury NHS Foundation Trust,16-Aug-13,OTHER MEDICAL SUPPLIES,Medicine,NHS LOGISTICS,1014061140,39.17,
Department of Health,Salisbury NHS Foundation Trust,16-Aug-13,OTHER MEDICAL SUPPLIES,Medicine,NHS LOGISTICS,1014061140,39.17,
Department of Health,Salisbury NHS Foundation Trust,16-Aug-13,COOKING & KITCHEN UTENSILS,Facilities Directorate,NHS LOGISTICS,1014061140,39.47,
Department of Health,Salisbury NHS Foundation Trust,16-Aug-13,MEDSURGCONS-SUTURES,Medicine,NHS LOGISTICS,1014061140,39.77,
Department of Health,Salisbury NHS Foundation Trust,16-Aug-13,BABY TEXTURE MODIFIED FOODS,Facilities Directorate,NHS LOGISTICS,1014061140,39.8,
Department of Health,Salisbury NHS Foundation Trust,16-Aug-13,TISSUES HAND TOWELS & TOILET PAPER,Clinical Support and Family Services,NHS LOGISTICS,1014061140,40.2,
Department of Health,Salisbury NHS Foundation Trust,16-Aug-13,MEDSURGCONS-SUTURES,Surgery,NHS LOGISTICS,1014061140,40.25,
Department of Health,Salisbury NHS Foundation Trust,16-Aug-13,FRUIT & VEGETABLES,Facilities Directorate,NHS LOGISTICS,1014061140,40.32,
Department of Health,Salisbury NHS Foundation Trust,16-Aug-13,OTHER MEDICAL SUPPLIES,Surgery,NHS LOGISTICS,1014061140,40.58,
Department of Health,Salisbury NHS Foundation Trust,16-Aug-13,M & S EQUIPELECTEQUIPINST - OTHER,Clinical Support and Family Services,NHS LOGISTICS,1014061140,40.83,
Department of Health,Salisbury NHS Foundation Trust,16-Aug-13,TUBES,Surgery,NHS LOGISTICS,1014061140,41.25,
Department of Health,Salisbury NHS Foundation Trust,16-Aug-13,MEDSURGCONS - OTHER,Surgery,NHS LOGISTICS,1014061140,41.25,
Department of Health,Salisbury NHS Foundation Trust,16-Aug-13,DRESSINGS - PRE STERILE,Critical care,NHS LOGISTICS,1014061140,41.44,
Department of Health,Salisbury NHS Foundation Trust,16-Aug-13,MEDSURGCONS - OTHER,Surgery,NHS LOGISTICS,1014061140,41.73,
Department of Health,Salisbury NHS Foundation Trust,16-Aug-13,CLEANING MATERIALS PRODUCTS SUNDRIES,Facilities Directorate,NHS LOGISTICS,1014061140,42.67,
Department of Health,Salisbury NHS Foundation Trust,16-Aug-13,MEDSURGCONS-SUTURES,Surgery,NHS LOGISTICS,1014061140,42.76,
Department of Health,Salisbury NHS Foundation Trust,16-Aug-13,DRESSINGS - PRE STERILE,Facilities Directorate,NHS LOGISTICS,1014061140,43.27,
Department of Health,Salisbury NHS Foundation Trust,16-Aug-13,NON DISPOSABLE BED LINEN,Medicine,NHS LOGISTICS,1014061140,43.53,
Department of Health,Salisbury NHS Foundation Trust,16-Aug-13,NON DISPOSABLE BED LINEN,Critical care,NHS LOGISTICS,1014061140,43.53,
Department of Health,Salisbury NHS Foundation Trust,16-Aug-13,NON DISPOSABLE BED LINEN,Medicine,NHS LOGISTICS,1014061140,43.53,
Department of Health,Salisbury NHS Foundation Trust,16-Aug-13,NON DISPOSABLE BED LINEN,Critical care,NHS LOGISTICS,1014061140,43.53,
Department of Health,Salisbury NHS Foundation Trust,16-Aug-13,NON DISPOSABLE BED LINEN,Medicine,NHS LOGISTICS,1014061140,43.53,
Department of Health,Salisbury NHS Foundation Trust,16-Aug-13,MEDSURGCONS-SUTURES,Critical care,NHS LOGISTICS,1014061140,43.81,
Department of Health,Salisbury NHS Foundation Trust,16-Aug-13,MEDSURGCONS-SUTURES,Surgery,NHS LOGISTICS,1014061140,43.81,
Department of Health,Salisbury NHS Foundation Trust,16-Aug-13,MEDSURGCONS-SUTURES,Surgery,NHS LOGISTICS,1014061140,43.81,
Department of Health,Salisbury NHS Foundation Trust,16-Aug-13,TOILETRIES PERSONAL HYGIENE PRODUCTS,Surgery,NHS LOGISTICS,1014061140,44.2,
Department of Health,Salisbury NHS Foundation Trust,16-Aug-13,MEDSURGCONS-SUTURES,Surgery,NHS LOGISTICS,1014061140,44.53,
Department of Health,Salisbury NHS Foundation Trust,16-Aug-13,MEDSURGCONS-SUTURES,Surgery,NHS LOGISTICS,1014061140,44.53,
Department of Health,Salisbury NHS Foundation Trust,16-Aug-13,MEDSURGCONS-SUTURES,Surgery,NHS LOGISTICS,1014061140,44.53,
Department of Health,Salisbury NHS Foundation Trust,16-Aug-13,MEDSURGCONS-SUTURES,Surgery,NHS LOGISTICS,1014061140,44.59,
Department of Health,Salisbury NHS Foundation Trust,16-Aug-13,MEDSURGCONS-SUTURES,Surgery,NHS LOGISTICS,1014061140,44.59,
Department of Health,Salisbury NHS Foundation Trust,16-Aug-13,MEDSURGCONS-SUTURES,Surgery,NHS LOGISTICS,1014061140,44.59,
Department of Health,Salisbury NHS Foundation Trust,16-Aug-13,MEDSURGCONS - OTHER,Clinical Support and Family Services,NHS LOGISTICS,1014061140,44.95,
Department of Health,Salisbury NHS Foundation Trust,16-Aug-13,MEDSURGCONS - OTHER,Clinical Support and Family Services,NHS LOGISTICS,1014061140,44.95,
Department of Health,Salisbury NHS Foundation Trust,16-Aug-13,DRUGS,Surgery,NHS LOGISTICS,1014061140,45.3,
Department of Health,Salisbury NHS Foundation Trust,16-Aug-13,MEDSURGCONS-SUTURES,Surgery,NHS LOGISTICS,1014061140,45.65,
Department of Health,Salisbury NHS Foundation Trust,16-Aug-13,PATIENT APPLIANCES,Clinical Support and Family Services,NHS LOGISTICS,1014061140,45.77,
Department of Health,Salisbury NHS Foundation Trust,16-Aug-13,PAPER ITEMS GENERAL STATIONERY SUNDRIES,Corporate Directorate,NHS LOGISTICS,1014061140,45.83,
Department of Health,Salisbury NHS Foundation Trust,16-Aug-13,PAPER ITEMS GENERAL STATIONERY SUNDRIES,Medicine,NHS LOGISTICS,1014061140,45.83,
Department of Health,Salisbury NHS Foundation Trust,16-Aug-13,DRUGS,Surgery,NHS LOGISTICS,1014061140,46.08,
Department of Health,Salisbury NHS Foundation Trust,16-Aug-13,OTHER MEDICAL SUPPLIES,Surgery,NHS LOGISTICS,1014061140,46.28,
Department of Health,Salisbury NHS Foundation Trust,16-Aug-13,DRESSINGS - PRE STERILE,Critical care,NHS LOGISTICS,1014061140,46.32,
Department of Health,Salisbury NHS Foundation Trust,16-Aug-13,TISSUES HAND TOWELS & TOILET PAPER,Clinical Support and Family Services,NHS LOGISTICS,1014061140,46.5,
Department of Health,Salisbury NHS Foundation Trust,16-Aug-13,DRESSINGS - PRE STERILE,Critical care,NHS LOGISTICS,1014061140,47.58,
Department of Health,Salisbury NHS Foundation Trust,16-Aug-13,DRESSINGS - PRE STERILE,Critical care,NHS LOGISTICS,1014061140,47.58,
Department of Health,Salisbury NHS Foundation Trust,16-Aug-13,STATIONERY SUNDRIES,Corporate Directorate,NHS LOGISTICS,1014061140,47.6,
Department of Health,Salisbury NHS Foundation Trust,16-Aug-13,ANAESTHETIC EQUIPMENT ACCESSORIES,Surgery,NHS LOGISTICS,1014061140,48.08,
Department of Health,Salisbury NHS Foundation Trust,16-Aug-13,MEDSURGCONS-SUTURES,Surgery,NHS LOGISTICS,1014061140,48.09,
Department of Health,Salisbury NHS Foundation Trust,16-Aug-13,MEDSURGCONS-SUTURES,Surgery,NHS LOGISTICS,1014061140,48.53,
Department of Health,Salisbury NHS Foundation Trust,16-Aug-13,MEDSURGCONS - OTHER,Surgery,NHS LOGISTICS,1014061140,49.24,
Department of Health,Salisbury NHS Foundation Trust,16-Aug-13,MEDSURGCONS - OTHER,Surgery,NHS LOGISTICS,1014061140,49.76,
Department of Health,Salisbury NHS Foundation Trust,16-Aug-13,OTHER MEDICAL SUPPLIES,Clinical Support and Family Services,NHS LOGISTICS,1014061140,50.14,
Department of Health,Salisbury NHS Foundation Trust,16-Aug-13,FRUIT & VEGETABLES,Facilities Directorate,NHS LOGISTICS,1014061140,50.4,
Department of Health,Salisbury NHS Foundation Trust,16-Aug-13,OTHER MEDICAL SUPPLIES,Surgery,NHS LOGISTICS,1014061140,50.67,
Department of Health,Salisbury NHS Foundation Trust,16-Aug-13,LAB EQUIP-LABORATORY APPARATUS,Clinical Support and Family Services,NHS LOGISTICS,1014061140,50.83,
Department of Health,Salisbury NHS Foundation Trust,16-Aug-13,MEDSURGCONS - OTHER,Medicine,NHS LOGISTICS,1014061140,51.12,
Department of Health,Salisbury NHS Foundation Trust,16-Aug-13,OTHER MEDICAL SUPPLIES,Directorate of Finance and Procurement,NHS LOGISTICS,1014061140,51.67,
Department of Health,Salisbury NHS Foundation Trust,16-Aug-13,PATIENTS BEDWEAR UNISEX,Critical care,NHS LOGISTICS,1014061140,52.51,
Department of Health,Salisbury NHS Foundation Trust,16-Aug-13,M & S EQUIPELECTEQUIPINST - OTHER,Clinical Support and Family Services,NHS LOGISTICS,1014061140,52.62,
Department of Health,Salisbury NHS Foundation Trust,16-Aug-13,MEDSURGCONS-SUTURES,Surgery,NHS LOGISTICS,1014061140,52.65,
Department of Health,Salisbury NHS Foundation Trust,16-Aug-13,OPTICAL  -  OTHER,Surgery,NHS LOGISTICS,1014061140,53,
Department of Health,Salisbury NHS Foundation Trust,16-Aug-13,MEDSURGCONS - OTHER,Medicine,NHS LOGISTICS,1014061140,53.1,
Department of Health,Salisbury NHS Foundation Trust,16-Aug-13,FRUIT & VEGETABLES,Facilities Directorate,NHS LOGISTICS,1014061140,53.4,
Department of Health,Salisbury NHS Foundation Trust,16-Aug-13,FRUIT & VEGETABLES,Facilities Directorate,NHS LOGISTICS,1014061140,53.4,
Department of Health,Salisbury NHS Foundation Trust,16-Aug-13,MEDSURGCONS-SUTURES,Surgery,NHS LOGISTICS,1014061140,53.43,
Department of Health,Salisbury NHS Foundation Trust,16-Aug-13,MEDSURGCONS-SUTURES,Surgery,NHS LOGISTICS,1014061140,53.43,
Department of Health,Salisbury NHS Foundation Trust,16-Aug-13,M & S EQUIPELECTEQUIPINST - OTHER,Clinical Support and Family Services,NHS LOGISTICS,1014061140,54.23,
Department of Health,Salisbury NHS Foundation Trust,16-Aug-13,M & S EQUIPELECTEQUIPINST - OTHER,Medicine,NHS LOGISTICS,1014061140,54.23,
Department of Health,Salisbury NHS Foundation Trust,16-Aug-13,MEDSURGCONS - OTHER,Medicine,NHS LOGISTICS,1014061140,54.58,
Department of Health,Salisbury NHS Foundation Trust,16-Aug-13,MEDSURGCONS-SUTURES,Surgery,NHS LOGISTICS,1014061140,54.75,
Department of Health,Salisbury NHS Foundation Trust,16-Aug-13,MEDSURGCONS-SUTURES,Surgery,NHS LOGISTICS,1014061140,54.77,
Department of Health,Salisbury NHS Foundation Trust,16-Aug-13,EGGS MILK OTHER DAIRY PRODUCTS,Facilities Directorate,NHS LOGISTICS,1014061140,55.8,
Department of Health,Salisbury NHS Foundation Trust,16-Aug-13,EGGS MILK OTHER DAIRY PRODUCTS,Facilities Directorate,NHS LOGISTICS,1014061140,55.8,
Department of Health,Salisbury NHS Foundation Trust,16-Aug-13,DRESSINGS - PRE STERILE,Critical care,NHS LOGISTICS,1014061140,55.82,
Department of Health,Salisbury NHS Foundation Trust,16-Aug-13,MEDSURGCONS-SUTURES,Critical care,NHS LOGISTICS,1014061140,56.06,
Department of Health,Salisbury NHS Foundation Trust,16-Aug-13,MEDSURGCONS-SUTURES,Surgery,NHS LOGISTICS,1014061140,56.11,
Department of Health,Salisbury NHS Foundation Trust,16-Aug-13,PATIENTS INCONTINENCE,Medicine,NHS LOGISTICS,1014061140,56.6,
Department of Health,Salisbury NHS Foundation Trust,16-Aug-13,PATIENTS INCONTINENCE,Medicine,NHS LOGISTICS,1014061140,56.6,
Department of Health,Salisbury NHS Foundation Trust,16-Aug-13,MEDSURGCONS-SUTURES,Surgery,NHS LOGISTICS,1014061140,56.68,
Department of Health,Salisbury NHS Foundation Trust,16-Aug-13,MEDSURGCONS-SUTURES,Surgery,NHS LOGISTICS,1014061140,56.92,
Department of Health,Salisbury NHS Foundation Trust,16-Aug-13,MEDSURGCONS-SUTURES,Surgery,NHS LOGISTICS,1014061140,57.12,
Department of Health,Salisbury NHS Foundation Trust,16-Aug-13,MEDSURGCONS-SUTURES,Surgery,NHS LOGISTICS,1014061140,57.12,
Department of Health,Salisbury NHS Foundation Trust,16-Aug-13,HEALTHCARE - WEAR,Clinical Support and Family Services,NHS LOGISTICS,1014061140,57.5,
Department of Health,Salisbury NHS Foundation Trust,16-Aug-13,OTHER MEDICAL SUPPLIES,Clinical Support and Family Services,NHS LOGISTICS,1014061140,57.74,
Department of Health,Salisbury NHS Foundation Trust,16-Aug-13,LAB EQUIP-LABORATORY APPARATUS,Clinical Support and Family Services,NHS LOGISTICS,1014061140,58.5,
Department of Health,Salisbury NHS Foundation Trust,16-Aug-13,LAB EQUIP-LABORATORY APPARATUS,Clinical Support and Family Services,NHS LOGISTICS,1014061140,59.42,
Department of Health,Salisbury NHS Foundation Trust,16-Aug-13,MEDSURGCONS - OTHER,Medicine,NHS LOGISTICS,1014061140,59.69,
Department of Health,Salisbury NHS Foundation Trust,16-Aug-13,MEDSURGCONS - OTHER,Medicine,NHS LOGISTICS,1014061140,59.69,
Department of Health,Salisbury NHS Foundation Trust,16-Aug-13,MEDSURGCONS-SUTURES,Surgery,NHS LOGISTICS,1014061140,60.13,
Department of Health,Salisbury NHS Foundation Trust,16-Aug-13,PATIENT APPLIANCES,Surgery,NHS LOGISTICS,1014061140,60.25,
Department of Health,Salisbury NHS Foundation Trust,16-Aug-13,MEDSURGCONS-SUTURES,Surgery,NHS LOGISTICS,1014061140,61.52,
Department of Health,Salisbury NHS Foundation Trust,16-Aug-13,MEDSURGCONS-SUTURES,Surgery,NHS LOGISTICS,1014061140,61.63,
Department of Health,Salisbury NHS Foundation Trust,16-Aug-13,MEDSURGCONS - OTHER,Surgery,NHS LOGISTICS,1014061140,61.67,
Department of Health,Salisbury NHS Foundation Trust,16-Aug-13,TISSUES HAND TOWELS & TOILET PAPER,Surgery,NHS LOGISTICS,1014061140,62,
Department of Health,Salisbury NHS Foundation Trust,16-Aug-13,MEDSURGCONS-SUTURES,Surgery,NHS LOGISTICS,1014061140,62.01,
Department of Health,Salisbury NHS Foundation Trust,16-Aug-13,BEVERAGES & AMBIENT FOOD,Facilities Directorate,NHS LOGISTICS,1014061140,62.04,
Department of Health,Salisbury NHS Foundation Trust,16-Aug-13,M & S EQUIPELECTEQUIPINST - OTHER,Surgery,NHS LOGISTICS,1014061140,63.63,
Department of Health,Salisbury NHS Foundation Trust,16-Aug-13,HARD/SOFTWARE-COMPUTER CONSUMABLE (EXCLUDING PAPER),Surgery,NHS LOGISTICS,1014061140,63.83,
Department of Health,Salisbury NHS Foundation Trust,16-Aug-13,MEDSURGCONS-SUTURES,Surgery,NHS LOGISTICS,1014061140,63.97,
Department of Health,Salisbury NHS Foundation Trust,16-Aug-13,MEDSURGCONS - OTHER,Clinical Support and Family Services,NHS LOGISTICS,1014061140,64.67,
Department of Health,Salisbury NHS Foundation Trust,16-Aug-13,DRESSINGS - PRE STERILE,Clinical Support and Family Services,NHS LOGISTICS,1014061140,65.2,
Department of Health,Salisbury NHS Foundation Trust,16-Aug-13,DRESSINGS - PRE STERILE,Surgery,NHS LOGISTICS,1014061140,65.52,
Department of Health,Salisbury NHS Foundation Trust,16-Aug-13,MEDSURGCONS-SUTURES,Surgery,NHS LOGISTICS,1014061140,65.8,
Department of Health,Salisbury NHS Foundation Trust,16-Aug-13,CLEANING MATERIALS PRODUCTS SUNDRIES,Facilities Directorate,NHS LOGISTICS,1014061140,66,
Department of Health,Salisbury NHS Foundation Trust,16-Aug-13,MEDSURGCONS - OTHER,Clinical Support and Family Services,NHS LOGISTICS,1014061140,66.79,
Department of Health,Salisbury NHS Foundation Trust,16-Aug-13,DRESSINGS - PRE STERILE,Critical care,NHS LOGISTICS,1014061140,66.98,
Department of Health,Salisbury NHS Foundation Trust,16-Aug-13,DRESSINGS - PRE STERILE,Clinical Support and Family Services,NHS LOGISTICS,1014061140,67.04,
Department of Health,Salisbury NHS Foundation Trust,16-Aug-13,DRESSINGS - PRE STERILE,Clinical Support and Family Services,NHS LOGISTICS,1014061140,67.75,
Department of Health,Salisbury NHS Foundation Trust,16-Aug-13,MEDSURGCONS-SUTURES,Surgery,NHS LOGISTICS,1014061140,68.13,
Department of Health,Salisbury NHS Foundation Trust,16-Aug-13,DRESSINGS - PRE STERILE,Critical care,NHS LOGISTICS,1014061140,69.48,
Department of Health,Salisbury NHS Foundation Trust,16-Aug-13,CLEANING MATERIALS PRODUCTS SUNDRIES,Facilities Directorate,NHS LOGISTICS,1014061140,69.6,
Department of Health,Salisbury NHS Foundation Trust,16-Aug-13,DRESSINGS - PRE STERILE,Surgery,NHS LOGISTICS,1014061140,70.1,
Department of Health,Salisbury NHS Foundation Trust,16-Aug-13,MEDSURGCONS-SUTURES,Surgery,NHS LOGISTICS,1014061140,71.65,
Department of Health,Salisbury NHS Foundation Trust,16-Aug-13,EGGS MILK OTHER DAIRY PRODUCTS,Facilities Directorate,NHS LOGISTICS,1014061140,74.06,
Department of Health,Salisbury NHS Foundation Trust,16-Aug-13,SERVICES FROM NHS BODIES,Clinical Support and Family Services,NHS LOGISTICS,1014061140,75,
Department of Health,Salisbury NHS Foundation Trust,16-Aug-13,MEDSURGCONS-SUTURES,Surgery,NHS LOGISTICS,1014061140,75.1,
Department of Health,Salisbury NHS Foundation Trust,16-Aug-13,DRESSINGS - PRE STERILE,Surgery,NHS LOGISTICS,1014061140,75.65,
Department of Health,Salisbury NHS Foundation Trust,16-Aug-13,M & S EQUIPELECTEQUIPINST - OTHER,Surgery,NHS LOGISTICS,1014061140,77,
Department of Health,Salisbury NHS Foundation Trust,16-Aug-13,TUBES,Surgery,NHS LOGISTICS,1014061140,77.78,
Department of Health,Salisbury NHS Foundation Trust,16-Aug-13,ANAESTHETIC EQUIPMENT ACCESSORIES,Medicine,NHS LOGISTICS,1014061140,79.42,
Department of Health,Salisbury NHS Foundation Trust,16-Aug-13,DRESSINGS - PRE STERILE,Clinical Support and Family Services,NHS LOGISTICS,1014061140,80.6,
Department of Health,Salisbury NHS Foundation Trust,16-Aug-13,OTHER MEDICAL SUPPLIES,Clinical Support and Family Services,NHS LOGISTICS,1014061140,81.68,
Department of Health,Salisbury NHS Foundation Trust,16-Aug-13,MEDSURGCONS - OTHER,Clinical Support and Family Services,NHS LOGISTICS,1014061140,81.87,
Department of Health,Salisbury NHS Foundation Trust,16-Aug-13,MEDSURGCONS - OTHER,Clinical Support and Family Services,NHS LOGISTICS,1014061140,81.87,
Department of Health,Salisbury NHS Foundation Trust,16-Aug-13,MEDSURGCONS - OTHER,Clinical Support and Family Services,NHS LOGISTICS,1014061140,81.87,
Department of Health,Salisbury NHS Foundation Trust,16-Aug-13,MEDSURGCONS - OTHER,Surgery,NHS LOGISTICS,1014061140,81.87,
Department of Health,Salisbury NHS Foundation Trust,16-Aug-13,BEVERAGES & AMBIENT FOOD,Facilities Directorate,NHS LOGISTICS,1014061140,82.72,
Department of Health,Salisbury NHS Foundation Trust,16-Aug-13,MED SURG EQUIP REP MAINT CLEANING,Clinical Support and Family Services,NHS LOGISTICS,1014061140,83.42,
Department of Health,Salisbury NHS Foundation Trust,16-Aug-13,MED SURG EQUIP REP MAINT CLEANING,Clinical Support and Family Services,NHS LOGISTICS,1014061140,83.42,
Department of Health,Salisbury NHS Foundation Trust,16-Aug-13,M & S EQUIPELECTEQUIPINST - OTHER,Clinical Support and Family Services,NHS LOGISTICS,1014061140,83.67,
Department of Health,Salisbury NHS Foundation Trust,16-Aug-13,HEALTHCARE - WEAR,Facilities Directorate,NHS LOGISTICS,1014061140,84.25,
Department of Health,Salisbury NHS Foundation Trust,16-Aug-13,DRESSINGS - PRE STERILE,Clinical Support and Family Services,NHS LOGISTICS,1014061140,84.58,
Department of Health,Salisbury NHS Foundation Trust,16-Aug-13,MEDSURGCONS-SUTURES,Surgery,NHS LOGISTICS,1014061140,85.38,
Department of Health,Salisbury NHS Foundation Trust,16-Aug-13,ANAESTHETIC EQUIPMENT ACCESSORIES,Surgery,NHS LOGISTICS,1014061140,85.63,
Department of Health,Salisbury NHS Foundation Trust,16-Aug-13,BABY TEXTURE MODIFIED FOODS,Facilities Directorate,NHS LOGISTICS,1014061140,86.6,
Department of Health,Salisbury NHS Foundation Trust,16-Aug-13,SURGICAL INSTRUMENTS: GENERAL,Surgery,NHS LOGISTICS,1014061140,86.63,
Department of Health,Salisbury NHS Foundation Trust,16-Aug-13,SURGICAL INSTRUMENTS: GENERAL,Surgery,NHS LOGISTICS,1014061140,86.63,
Department of Health,Salisbury NHS Foundation Trust,16-Aug-13,MEDSURGCONS-SUTURES,Surgery,NHS LOGISTICS,1014061140,88.34,
Department of Health,Salisbury NHS Foundation Trust,16-Aug-13,BAGS SACKS - OTHER,Facilities Directorate,NHS LOGISTICS,1014061140,88.61,
Department of Health,Salisbury NHS Foundation Trust,16-Aug-13,MEDSURGCONS-SUTURES,Surgery,NHS LOGISTICS,1014061140,89.18,
Department of Health,Salisbury NHS Foundation Trust,16-Aug-13,MEDSURGCONS-SUTURES,Surgery,NHS LOGISTICS,1014061140,90.43,
Department of Health,Salisbury NHS Foundation Trust,16-Aug-13,DRUGS,Surgery,NHS LOGISTICS,1014061140,90.6,
Department of Health,Salisbury NHS Foundation Trust,16-Aug-13,TISSUES HAND TOWELS & TOILET PAPER,Facilities Directorate,NHS LOGISTICS,1014061140,90.83,
Department of Health,Salisbury NHS Foundation Trust,16-Aug-13,DRESSINGS - PRE STERILE,Clinical Support and Family Services,NHS LOGISTICS,1014061140,92.03,
Department of Health,Salisbury NHS Foundation Trust,16-Aug-13,MEDSURGCONS-SUTURES,Surgery,NHS LOGISTICS,1014061140,92.28,
Department of Health,Salisbury NHS Foundation Trust,16-Aug-13,HEALTHCARE - WEAR,Critical care,NHS LOGISTICS,1014061140,93.38,
Department of Health,Salisbury NHS Foundation Trust,16-Aug-13,LAB EQUIP-LABORATORY APPARATUS,Surgery,NHS LOGISTICS,1014061140,95.35,
Department of Health,Salisbury NHS Foundation Trust,16-Aug-13,COOKING & KITCHEN UTENSILS,Directorate of Finance and Procurement,NHS LOGISTICS,1014061140,100,
Department of Health,Salisbury NHS Foundation Trust,16-Aug-13,COOKING & KITCHEN UTENSILS,Directorate of Finance and Procurement,NHS LOGISTICS,1014061140,100,
Department of Health,Salisbury NHS Foundation Trust,16-Aug-13,DRESSINGS - PRE STERILE,Critical care,NHS LOGISTICS,1014061140,102.08,
Department of Health,Salisbury NHS Foundation Trust,16-Aug-13,DRUGS,Clinical Support and Family Services,NHS LOGISTICS,1014061140,103.67,
Department of Health,Salisbury NHS Foundation Trust,16-Aug-13,MED SURG EQUIP REP MAINT CLEANING,Clinical Support and Family Services,NHS LOGISTICS,1014061140,104.39,
Department of Health,Salisbury NHS Foundation Trust,16-Aug-13,PATIENTS BEDWEAR UNISEX,Critical care,NHS LOGISTICS,1014061140,105.02,
Department of Health,Salisbury NHS Foundation Trust,16-Aug-13,PAPER ITEMS GENERAL STATIONERY SUNDRIES,Clinical Support and Family Services,NHS LOGISTICS,1014061140,105.67,
Department of Health,Salisbury NHS Foundation Trust,16-Aug-13,PATIENT APPLIANCES,Critical care,NHS LOGISTICS,1014061140,106.33,
Department of Health,Salisbury NHS Foundation Trust,16-Aug-13,M & S EQUIPELECTEQUIPINST - OTHER,Clinical Support and Family Services,NHS LOGISTICS,1014061140,108,
Department of Health,Salisbury NHS Foundation Trust,16-Aug-13,DRESSINGS - PRE STERILE,Medicine,NHS LOGISTICS,1014061140,109.8,
Department of Health,Salisbury NHS Foundation Trust,16-Aug-13,MEDSURGCONS-SUTURES,Clinical Support and Family Services,NHS LOGISTICS,1014061140,112.65,
Department of Health,Salisbury NHS Foundation Trust,16-Aug-13,OTHER MEDICAL SUPPLIES,Medicine,NHS LOGISTICS,1014061140,115.41,
Department of Health,Salisbury NHS Foundation Trust,16-Aug-13,M & S EQUIPELECTEQUIPINST - OTHER,Clinical Support and Family Services,NHS LOGISTICS,1014061140,120.5,
Department of Health,Salisbury NHS Foundation Trust,16-Aug-13,M & S EQUIPELECTEQUIPINST - OTHER,Clinical Support and Family Services,NHS LOGISTICS,1014061140,120.5,
Department of Health,Salisbury NHS Foundation Trust,16-Aug-13,LIQUID REFRESHMENTS,Facilities Directorate,NHS LOGISTICS,1014061140,123,
Department of Health,Salisbury NHS Foundation Trust,16-Aug-13,ANAESTHETIC EQUIPMENT ACCESSORIES,Clinical Support and Family Services,NHS LOGISTICS,1014061140,123.54,
Department of Health,Salisbury NHS Foundation Trust,16-Aug-13,MEDSURGCONS - OTHER,Clinical Support and Family Services,NHS LOGISTICS,1014061140,125.33,
Department of Health,Salisbury NHS Foundation Trust,16-Aug-13,MEDSURGCONS-SUTURES,Critical care,NHS LOGISTICS,1014061140,125.99,
Department of Health,Salisbury NHS Foundation Trust,16-Aug-13,MEDSURGCONS-SUTURES,Surgery,NHS LOGISTICS,1014061140,125.99,
Department of Health,Salisbury NHS Foundation Trust,16-Aug-13,M & S EQUIPELECTEQUIPINST - OTHER,Clinical Support and Family Services,NHS LOGISTICS,1014061140,129.06,
Department of Health,Salisbury NHS Foundation Trust,16-Aug-13,M & S EQUIPELECTEQUIPINST - OTHER,Clinical Support and Family Services,NHS LOGISTICS,1014061140,129.06,
Department of Health,Salisbury NHS Foundation Trust,16-Aug-13,SURGICAL INSTRUMENTS: DISPOSABLE,Surgery,NHS LOGISTICS,1014061140,130.42,
Department of Health,Salisbury NHS Foundation Trust,16-Aug-13,LIQUID REFRESHMENTS,Facilities Directorate,NHS LOGISTICS,1014061140,131.2,
Department of Health,Salisbury NHS Foundation Trust,16-Aug-13,DRESSINGS - PRE STERILE,Clinical Support and Family Services,NHS LOGISTICS,1014061140,132.8,
Department of Health,Salisbury NHS Foundation Trust,16-Aug-13,MEDSURGCONS-LAPAROSCOPIC EQUIPMENT,Surgery,NHS LOGISTICS,1014061140,134.72,
Department of Health,Salisbury NHS Foundation Trust,16-Aug-13,MEDSURGCONS-LAPAROSCOPIC EQUIPMENT,Surgery,NHS LOGISTICS,1014061140,134.72,
Department of Health,Salisbury NHS Foundation Trust,16-Aug-13,ANAESTHETIC EQUIPMENT ACCESSORIES,Clinical Support and Family Services,NHS LOGISTICS,1014061140,135.94,
Department of Health,Salisbury NHS Foundation Trust,16-Aug-13,MEDSURGCONS-SUTURES,Surgery,NHS LOGISTICS,1014061140,136.48,
Department of Health,Salisbury NHS Foundation Trust,16-Aug-13,DRESSINGS - PRE STERILE,Medicine,NHS LOGISTICS,1014061140,137.19,
Department of Health,Salisbury NHS Foundation Trust,16-Aug-13,PAPER ITEMS GENERAL STATIONERY SUNDRIES,Directorate of Finance and Procurement,NHS LOGISTICS,1014061140,138.33,
Department of Health,Salisbury NHS Foundation Trust,16-Aug-13,MEDSURGCONS-SUTURES,Surgery,NHS LOGISTICS,1014061140,138.93,
Department of Health,Salisbury NHS Foundation Trust,16-Aug-13,MEDSURGCONS-SUTURES,Surgery,NHS LOGISTICS,1014061140,138.93,
Department of Health,Salisbury NHS Foundation Trust,16-Aug-13,MEDSURGCONS-SUTURES,Surgery,NHS LOGISTICS,1014061140,140.01,
Department of Health,Salisbury NHS Foundation Trust,16-Aug-13,MEDSURGCONS-SUTURES,Surgery,NHS LOGISTICS,1014061140,142.88,
Department of Health,Salisbury NHS Foundation Trust,16-Aug-13,MEDSURGCONS-SUTURES,Surgery,NHS LOGISTICS,1014061140,146.93,
Department of Health,Salisbury NHS Foundation Trust,16-Aug-13,EGGS MILK OTHER DAIRY PRODUCTS,Facilities Directorate,NHS LOGISTICS,1014061140,148.12,
Department of Health,Salisbury NHS Foundation Trust,16-Aug-13,MEDSURGCONS - OTHER,Surgery,NHS LOGISTICS,1014061140,163.73,
Department of Health,Salisbury NHS Foundation Trust,16-Aug-13,MEDSURGCONS - OTHER,Surgery,NHS LOGISTICS,1014061140,163.73,
Department of Health,Salisbury NHS Foundation Trust,16-Aug-13,MEDSURGCONS - OTHER,Surgery,NHS LOGISTICS,1014061140,163.73,
Department of Health,Salisbury NHS Foundation Trust,16-Aug-13,MEDSURGCONS - OTHER,Surgery,NHS LOGISTICS,1014061140,163.73,
Department of Health,Salisbury NHS Foundation Trust,16-Aug-13,DRESSINGS - PRE STERILE,Critical care,NHS LOGISTICS,1014061140,165.08,
Department of Health,Salisbury NHS Foundation Trust,16-Aug-13,LAB EQUIP-LABORATORY APPARATUS,Clinical Support and Family Services,NHS LOGISTICS,1014061140,177.92,
Department of Health,Salisbury NHS Foundation Trust,16-Aug-13,MED SURG EQUIP REP MAINT CLEANING,Clinical Support and Family Services,NHS LOGISTICS,1014061140,208.78,
Department of Health,Salisbury NHS Foundation Trust,16-Aug-13,MED SURG EQUIP REP MAINT CLEANING,Clinical Support and Family Services,NHS LOGISTICS,1014061140,208.78,
Department of Health,Salisbury NHS Foundation Trust,16-Aug-13,BAGS SACKS - OTHER,Facilities Directorate,NHS LOGISTICS,1014061140,210,
Department of Health,Salisbury NHS Foundation Trust,16-Aug-13,MEDSURGCONS-SUTURES,Surgery,NHS LOGISTICS,1014061140,216.12,
Department of Health,Salisbury NHS Foundation Trust,16-Aug-13,SERVICES FROM NHS BODIES,Clinical Support and Family Services,NHS LOGISTICS,1014061140,245.4,
Department of Health,Salisbury NHS Foundation Trust,16-Aug-13,MEDSURGCONS-SUTURES,Surgery,NHS LOGISTICS,1014061140,251.98,
Department of Health,Salisbury NHS Foundation Trust,16-Aug-13,MEDSURGCONS - OTHER,Surgery,NHS LOGISTICS,1014061140,261.98,
Department of Health,Salisbury NHS Foundation Trust,16-Aug-13,MEDSURGCONS-SUTURES,Surgery,NHS LOGISTICS,1014061140,285.75,
Department of Health,Salisbury NHS Foundation Trust,16-Aug-13,MEDSURGCONS-SUTURES,Surgery,NHS LOGISTICS,1014061140,285.75,
Department of Health,Salisbury NHS Foundation Trust,16-Aug-13,MEDSURGCONS - OTHER,Surgery,NHS LOGISTICS,1014061140,313.1,
Department of Health,Salisbury NHS Foundation Trust,16-Aug-13,MEDSURGCONS - OTHER,Surgery,NHS LOGISTICS,1014061140,313.1,
Department of Health,Salisbury NHS Foundation Trust,16-Aug-13,MEDSURGCONS - OTHER,Surgery,NHS LOGISTICS,1014061140,313.1,
Department of Health,Salisbury NHS Foundation Trust,16-Aug-13,MEDSURGCONS - OTHER,Surgery,NHS LOGISTICS,1014061140,313.1,
Department of Health,Salisbury NHS Foundation Trust,16-Aug-13,OTHER MEDICAL SUPPLIES,Clinical Support and Family Services,NHS LOGISTICS,1014061140,317.33,
Department of Health,Salisbury NHS Foundation Trust,16-Aug-13,MEDSURGCONS-SUTURES,Surgery,NHS LOGISTICS,1014061140,324.18,
Department of Health,Salisbury NHS Foundation Trust,16-Aug-13,LAB EQUIP-LABORATORY APPARATUS,Clinical Support and Family Services,NHS LOGISTICS,1014061140,352.5,
Department of Health,Salisbury NHS Foundation Trust,16-Aug-13,MEDSURGCONS - OTHER,Critical care,NHS LOGISTICS,1014061140,398.92,
Department of Health,Salisbury NHS Foundation Trust,16-Aug-13,DRESSINGS - PRE STERILE,Critical care,NHS LOGISTICS,1014061140,421.66,
Department of Health,Salisbury NHS Foundation Trust,16-Aug-13,LAB EQUIP-LABORATORY APPARATUS,Clinical Support and Family Services,NHS LOGISTICS,1014061140,648.67,
Department of Health,Salisbury NHS Foundation Trust,16-Aug-13,ADULTS HEARING AIDS,Surgery,NHS LOGISTICS,1014061140,761,
Department of Health,Salisbury NHS Foundation Trust,16-Aug-13,ADULTS HEARING AIDS,Surgery,NHS LOGISTICS,1014061140,2363,
Department of Health,Salisbury NHS Foundation Trust,16-Aug-13,DRESSINGS - PRE STERILE,Clinical Support and Family Services,NHS LOGISTICS,1014061140,0.02,
Department of Health,Salisbury NHS Foundation Trust,16-Aug-13,DRESSINGS - PRE STERILE,Clinical Support and Family Services,NHS LOGISTICS,1014061140,0.39,
Department of Health,Salisbury NHS Foundation Trust,16-Aug-13,PATIENT APPLIANCES,Clinical Support and Family Services,NHS LOGISTICS,1014061140,2.29,
Department of Health,Salisbury NHS Foundation Trust,16-Aug-13,ADULTS HEARING AIDS,Surgery,NHS LOGISTICS,1014061140,152.2,
Department of Health,Salisbury NHS Foundation Trust,16-Aug-13,TOILETRIES PERSONAL HYGIENE PRODUCTS,Surgery,NHS LOGISTICS,1014061140,8.84,
Department of Health,Salisbury NHS Foundation Trust,16-Aug-13,MED SURG EQUIP REP MAINT CLEANING,Clinical Support and Family Services,NHS LOGISTICS,1014061140,16.68,
Department of Health,Salisbury NHS Foundation Trust,16-Aug-13,STATIONERY SUNDRIES,Clinical Support and Family Services,NHS LOGISTICS,1014061140,0.16,
Department of Health,Salisbury NHS Foundation Trust,16-Aug-13,STATIONERY SUNDRIES,Clinical Support and Family Services,NHS LOGISTICS,1014061140,0.36,
Department of Health,Salisbury NHS Foundation Trust,16-Aug-13,STATIONERY SUNDRIES,Clinical Support and Family Services,NHS LOGISTICS,1014061140,0.09,
Department of Health,Salisbury NHS Foundation Trust,16-Aug-13,TISSUES HAND TOWELS & TOILET PAPER,Clinical Support and Family Services,NHS LOGISTICS,1014061140,0.53,
Department of Health,Salisbury NHS Foundation Trust,16-Aug-13,STATIONERY SUNDRIES,Clinical Support and Family Services,NHS LOGISTICS,1014061140,0.85,
Department of Health,Salisbury NHS Foundation Trust,16-Aug-13,PAPER ITEMS GENERAL STATIONERY SUNDRIES,Clinical Support and Family Services,NHS LOGISTICS,1014061140,3.73,
Department of Health,Salisbury NHS Foundation Trust,16-Aug-13,STATIONERY SUNDRIES,Clinical Support and Family Services,NHS LOGISTICS,1014061140,0.19,
Department of Health,Salisbury NHS Foundation Trust,16-Aug-13,PAPER ITEMS GENERAL STATIONERY SUNDRIES,Facilities Directorate,NHS LOGISTICS,1014061140,0.67,
Department of Health,Salisbury NHS Foundation Trust,16-Aug-13,PAPER ITEMS GENERAL STATIONERY SUNDRIES,Facilities Directorate,NHS LOGISTICS,1014061140,2.6,
Department of Health,Salisbury NHS Foundation Trust,16-Aug-13,MED SURG EQUIP REP MAINT CLEANING,Clinical Support and Family Services,NHS LOGISTICS,1014061140,16.68,
Department of Health,Salisbury NHS Foundation Trust,16-Aug-13,MEDSURGCONS - OTHER,Critical care,NHS LOGISTICS,1014061140,79.78,
Department of Health,Salisbury NHS Foundation Trust,16-Aug-13,PATIENT APPLIANCES,Surgery,NHS LOGISTICS,1014061140,3.21,
Department of Health,Salisbury NHS Foundation Trust,16-Aug-13,PAPER ITEMS GENERAL STATIONERY SUNDRIES,Nursing Directorate,NHS LOGISTICS,1014061140,5.09,
Department of Health,Salisbury NHS Foundation Trust,16-Aug-13,PAPER ITEMS GENERAL STATIONERY SUNDRIES,Human Resources,NHS LOGISTICS,1014061140,7.45,
Department of Health,Salisbury NHS Foundation Trust,16-Aug-13,HARD/SOFTWARE-COMPUTER CONSUMABLE (EXCLUDING PAPER),Surgery,NHS LOGISTICS,1014061140,12.77,
Department of Health,Salisbury NHS Foundation Trust,16-Aug-13,ANAESTHETIC EQUIPMENT ACCESSORIES,Surgery,NHS LOGISTICS,1014061140,5.19,
Department of Health,Salisbury NHS Foundation Trust,16-Aug-13,SURGICAL INSTRUMENTS: GENERAL,Surgery,NHS LOGISTICS,1014061140,17.33,
Department of Health,Salisbury NHS Foundation Trust,16-Aug-13,DRESSINGS - PRE STERILE,Corporate Directorate,NHS LOGISTICS,1014061140,0.38,
Department of Health,Salisbury NHS Foundation Trust,16-Aug-13,TOILETRIES PERSONAL HYGIENE PRODUCTS,Clinical Support and Family Services,NHS LOGISTICS,1014061140,1.53,
Department of Health,Salisbury NHS Foundation Trust,16-Aug-13,STATIONERY SUNDRIES,Clinical Support and Family Services,NHS LOGISTICS,1014061140,0.37,
Department of Health,Salisbury NHS Foundation Trust,16-Aug-13,TOILETRIES PERSONAL HYGIENE PRODUCTS,Clinical Support and Family Services,NHS LOGISTICS,1014061140,0.65,
Department of Health,Salisbury NHS Foundation Trust,16-Aug-13,M & S EQUIPELECTEQUIPINST - OTHER,Clinical Support and Family Services,NHS LOGISTICS,1014061140,0.13,
Department of Health,Salisbury NHS Foundation Trust,16-Aug-13,M & S EQUIPELECTEQUIPINST - OTHER,Clinical Support and Family Services,NHS LOGISTICS,1014061140,0.44,
Department of Health,Salisbury NHS Foundation Trust,16-Aug-13,BAGS SACKS - OTHER,Critical care,NHS LOGISTICS,1014061140,1.6,
Department of Health,Salisbury NHS Foundation Trust,16-Aug-13,MEDSURGCONS - OTHER,Critical care,NHS LOGISTICS,1014061140,3.58,
Department of Health,Salisbury NHS Foundation Trust,16-Aug-13,NON DISPOSABLE BED LINEN,Critical care,NHS LOGISTICS,1014061140,4.35,
Department of Health,Salisbury NHS Foundation Trust,16-Aug-13,OTHER MEDICAL SUPPLIES,Medicine,NHS LOGISTICS,1014061140,3.31,
Department of Health,Salisbury NHS Foundation Trust,16-Aug-13,PATIENTS INCONTINENCE,Medicine,NHS LOGISTICS,1014061140,0.86,
Department of Health,Salisbury NHS Foundation Trust,16-Aug-13,NON DISPOSABLE BED LINEN,Medicine,NHS LOGISTICS,1014061140,1.12,
Department of Health,Salisbury NHS Foundation Trust,16-Aug-13,PATIENT APPLIANCES,Medicine,NHS LOGISTICS,1014061140,0.77,
Department of Health,Salisbury NHS Foundation Trust,16-Aug-13,OTHER MEDICAL SUPPLIES,Medicine,NHS LOGISTICS,1014061140,6.61,
Department of Health,Salisbury NHS Foundation Trust,16-Aug-13,ANAESTHETIC EQUIPMENT ACCESSORIES,Medicine,NHS LOGISTICS,1014061140,0.68,
Department of Health,Salisbury NHS Foundation Trust,16-Aug-13,PATIENTS INCONTINENCE,Medicine,NHS LOGISTICS,1014061140,0.73,
Department of Health,Salisbury NHS Foundation Trust,16-Aug-13,PATIENTS INCONTINENCE,Medicine,NHS LOGISTICS,1014061140,1.72,
Department of Health,Salisbury NHS Foundation Trust,16-Aug-13,OTHER MEDICAL SUPPLIES,Medicine,NHS LOGISTICS,1014061140,1.14,
Department of Health,Salisbury NHS Foundation Trust,16-Aug-13,OTHER MEDICAL SUPPLIES,Medicine,NHS LOGISTICS,1014061140,5.52,
Department of Health,Salisbury NHS Foundation Trust,16-Aug-13,NON DISPOSABLE BED LINEN,Medicine,NHS LOGISTICS,1014061140,4.35,
Department of Health,Salisbury NHS Foundation Trust,16-Aug-13,OTHER MEDICAL SUPPLIES,Medicine,NHS LOGISTICS,1014061140,3.31,
Department of Health,Salisbury NHS Foundation Trust,16-Aug-13,PATIENTS INCONTINENCE,Medicine,NHS LOGISTICS,1014061140,2.18,
Department of Health,Salisbury NHS Foundation Trust,16-Aug-13,PATIENTS INCONTINENCE,Medicine,NHS LOGISTICS,1014061140,0.86,
Department of Health,Salisbury NHS Foundation Trust,16-Aug-13,SURGICAL INSTRUMENTS: GENERAL,Medicine,NHS LOGISTICS,1014061140,0.16,
Department of Health,Salisbury NHS Foundation Trust,16-Aug-13,PATIENT APPLIANCES,Medicine,NHS LOGISTICS,1014061140,1.58,
Department of Health,Salisbury NHS Foundation Trust,16-Aug-13,PATIENT APPLIANCES,Medicine,NHS LOGISTICS,1014061140,1.06,
Department of Health,Salisbury NHS Foundation Trust,16-Aug-13,PATIENT APPLIANCES,Medicine,NHS LOGISTICS,1014061140,0.38,
Department of Health,Salisbury NHS Foundation Trust,16-Aug-13,OTHER MEDICAL SUPPLIES,Clinical Support and Family Services,NHS LOGISTICS,1014061140,11.55,
Department of Health,Salisbury NHS Foundation Trust,16-Aug-13,MEDSURGCONS-SUTURES,Clinical Support and Family Services,NHS LOGISTICS,1014061140,7.51,
Department of Health,Salisbury NHS Foundation Trust,16-Aug-13,PATIENT APPLIANCES,Clinical Support and Family Services,NHS LOGISTICS,1014061140,4.25,
Department of Health,Salisbury NHS Foundation Trust,16-Aug-13,NON DISPOSABLE BED LINEN,Medicine,NHS LOGISTICS,1014061140,2.24,
Department of Health,Salisbury NHS Foundation Trust,16-Aug-13,PATIENT APPLIANCES,Medicine,NHS LOGISTICS,1014061140,0.77,
Department of Health,Salisbury NHS Foundation Trust,16-Aug-13,TISSUES HAND TOWELS & TOILET PAPER,Clinical Support and Family Services,NHS LOGISTICS,1014061140,4.02,
Department of Health,Salisbury NHS Foundation Trust,16-Aug-13,STATIONERY SUNDRIES,Clinical Effctiveness Directorate,NHS LOGISTICS,1014061140,1.76,
Department of Health,Salisbury NHS Foundation Trust,16-Aug-13,PAPER ITEMS GENERAL STATIONERY SUNDRIES,Clinical Support and Family Services,NHS LOGISTICS,1014061140,0.47,
Department of Health,Salisbury NHS Foundation Trust,16-Aug-13,OFFICE EQUIP MACHINERY  -  OTHER,Clinical Support and Family Services,NHS LOGISTICS,1014061140,0.13,
Department of Health,Salisbury NHS Foundation Trust,16-Aug-13,PAPER ITEMS GENERAL STATIONERY SUNDRIES,Clinical Support and Family Services,NHS LOGISTICS,1014061140,0.16,
Department of Health,Salisbury NHS Foundation Trust,16-Aug-13,PAPER ITEMS GENERAL STATIONERY SUNDRIES,Clinical Support and Family Services,NHS LOGISTICS,1014061140,7.47,
Department of Health,Salisbury NHS Foundation Trust,16-Aug-13,STATIONERY SUNDRIES,Clinical Support and Family Services,NHS LOGISTICS,1014061140,0.21,
Department of Health,Salisbury NHS Foundation Trust,16-Aug-13,MEDSURGCONS - OTHER,Clinical Support and Family Services,NHS LOGISTICS,1014061140,8.99,
Department of Health,Salisbury NHS Foundation Trust,16-Aug-13,MEDSURGCONS-LAPAROSCOPIC EQUIPMENT,Surgery,NHS LOGISTICS,1014061140,26.94,
Department of Health,Salisbury NHS Foundation Trust,16-Aug-13,DRESSINGS  -  PROCEDURE PACKS,Clinical Support and Family Services,NHS LOGISTICS,1014061140,5.86,
Department of Health,Salisbury NHS Foundation Trust,16-Aug-13,PAPER ITEMS GENERAL STATIONERY SUNDRIES,Human Resources,NHS LOGISTICS,1014061140,7.11,
Department of Health,Salisbury NHS Foundation Trust,16-Aug-13,STATIONERY SUNDRIES,Human Resources,NHS LOGISTICS,1014061140,0.19,
Department of Health,Salisbury NHS Foundation Trust,16-Aug-13,PAPER ITEMS GENERAL STATIONERY SUNDRIES,Human Resources,NHS LOGISTICS,1014061140,0.92,
Department of Health,Salisbury NHS Foundation Trust,16-Aug-13,PAPER ITEMS GENERAL STATIONERY SUNDRIES,Human Resources,NHS LOGISTICS,1014061140,7.47,
Department of Health,Salisbury NHS Foundation Trust,16-Aug-13,PATIENT APPLIANCES,Surgery,NHS LOGISTICS,1014061140,12.05,
Department of Health,Salisbury NHS Foundation Trust,16-Aug-13,STATIONERY SUNDRIES,Medicine,NHS LOGISTICS,1014061140,0.15,
Department of Health,Salisbury NHS Foundation Trust,16-Aug-13,PAPER ITEMS GENERAL STATIONERY SUNDRIES,Medicine,NHS LOGISTICS,1014061140,3.73,
Department of Health,Salisbury NHS Foundation Trust,16-Aug-13,STATIONERY SUNDRIES,Medicine,NHS LOGISTICS,1014061140,0.04,
Department of Health,Salisbury NHS Foundation Trust,16-Aug-13,TISSUES HAND TOWELS & TOILET PAPER,Clinical Support and Family Services,NHS LOGISTICS,1014061140,4.02,
Department of Health,Salisbury NHS Foundation Trust,16-Aug-13,PAPER ITEMS GENERAL STATIONERY SUNDRIES,Medicine,NHS LOGISTICS,1014061140,1.22,
Department of Health,Salisbury NHS Foundation Trust,16-Aug-13,PAPER ITEMS GENERAL STATIONERY SUNDRIES,Medicine,NHS LOGISTICS,1014061140,0.61,
Department of Health,Salisbury NHS Foundation Trust,16-Aug-13,PAPER ITEMS GENERAL STATIONERY SUNDRIES,Medicine,NHS LOGISTICS,1014061140,0.8,
Department of Health,Salisbury NHS Foundation Trust,16-Aug-13,STATIONERY SUNDRIES,Medicine,NHS LOGISTICS,1014061140,0.21,
Department of Health,Salisbury NHS Foundation Trust,16-Aug-13,SURGICAL INSTRUMENTS: GENERAL,Surgery,NHS LOGISTICS,1014061140,1.23,
Department of Health,Salisbury NHS Foundation Trust,16-Aug-13,STATIONERY SUNDRIES,Surgery,NHS LOGISTICS,1014061140,1.15,
Department of Health,Salisbury NHS Foundation Trust,16-Aug-13,STATIONERY SUNDRIES,Facilities Directorate,NHS LOGISTICS,1014061140,0.21,
Department of Health,Salisbury NHS Foundation Trust,16-Aug-13,STATIONERY SUNDRIES,Facilities Directorate,NHS LOGISTICS,1014061140,0.21,
Department of Health,Salisbury NHS Foundation Trust,16-Aug-13,STATIONERY SUNDRIES,Facilities Directorate,NHS LOGISTICS,1014061140,0.37,
Department of Health,Salisbury NHS Foundation Trust,16-Aug-13,DRESSINGS - PRE STERILE,Critical care,NHS LOGISTICS,1014061140,20.42,
Department of Health,Salisbury NHS Foundation Trust,16-Aug-13,DRESSINGS - PRE STERILE,Critical care,NHS LOGISTICS,1014061140,33.02,
Department of Health,Salisbury NHS Foundation Trust,16-Aug-13,STATIONERY SUNDRIES,Critical care,NHS LOGISTICS,1014061140,0.55,
Department of Health,Salisbury NHS Foundation Trust,16-Aug-13,PAPER ITEMS GENERAL STATIONERY SUNDRIES,Surgery,NHS LOGISTICS,1014061140,2.78,
Department of Health,Salisbury NHS Foundation Trust,16-Aug-13,STATIONERY SUNDRIES,Surgery,NHS LOGISTICS,1014061140,0.37,
Department of Health,Salisbury NHS Foundation Trust,16-Aug-13,PAPER ITEMS GENERAL STATIONERY SUNDRIES,Critical care,NHS LOGISTICS,1014061140,1.23,
Department of Health,Salisbury NHS Foundation Trust,16-Aug-13,STATIONERY SUNDRIES,Clinical Support and Family Services,NHS LOGISTICS,1014061140,0.42,
Department of Health,Salisbury NHS Foundation Trust,16-Aug-13,PAPER ITEMS GENERAL STATIONERY SUNDRIES,Clinical Support and Family Services,NHS LOGISTICS,1014061140,2.9,
Department of Health,Salisbury NHS Foundation Trust,16-Aug-13,PAPER ITEMS GENERAL STATIONERY SUNDRIES,Clinical Support and Family Services,NHS LOGISTICS,1014061140,0.93,
Department of Health,Salisbury NHS Foundation Trust,16-Aug-13,STATIONERY SUNDRIES,Clinical Support and Family Services,NHS LOGISTICS,1014061140,0.23,
Department of Health,Salisbury NHS Foundation Trust,16-Aug-13,STATIONERY SUNDRIES,Clinical Support and Family Services,NHS LOGISTICS,1014061140,1.55,
Department of Health,Salisbury NHS Foundation Trust,16-Aug-13,STATIONERY SUNDRIES,Clinical Support and Family Services,NHS LOGISTICS,1014061140,0.4,
Department of Health,Salisbury NHS Foundation Trust,16-Aug-13,STATIONERY SUNDRIES,Clinical Support and Family Services,NHS LOGISTICS,1014061140,0.8,
Department of Health,Salisbury NHS Foundation Trust,16-Aug-13,STATIONERY SUNDRIES,Clinical Support and Family Services,NHS LOGISTICS,1014061140,0.4,
Department of Health,Salisbury NHS Foundation Trust,16-Aug-13,STATIONERY SUNDRIES,Clinical Support and Family Services,NHS LOGISTICS,1014061140,1.7,
Department of Health,Salisbury NHS Foundation Trust,16-Aug-13,BEVERAGES & AMBIENT FOOD,Clinical Support and Family Services,NHS LOGISTICS,1014061140,3.81,
Department of Health,Salisbury NHS Foundation Trust,16-Aug-13,BEVERAGES & AMBIENT FOOD,Clinical Support and Family Services,NHS LOGISTICS,1014061140,0.55,
Department of Health,Salisbury NHS Foundation Trust,16-Aug-13,BEVERAGES & AMBIENT FOOD,Clinical Support and Family Services,NHS LOGISTICS,1014061140,1.17,
Department of Health,Salisbury NHS Foundation Trust,16-Aug-13,BEVERAGES & AMBIENT FOOD,Clinical Support and Family Services,NHS LOGISTICS,1014061140,2.21,
Department of Health,Salisbury NHS Foundation Trust,16-Aug-13,BEVERAGES & AMBIENT FOOD,Clinical Support and Family Services,NHS LOGISTICS,1014061140,0.6,
Department of Health,Salisbury NHS Foundation Trust,16-Aug-13,ANAESTHETIC EQUIPMENT ACCESSORIES,Clinical Support and Family Services,NHS LOGISTICS,1014061140,24.71,
Department of Health,Salisbury NHS Foundation Trust,16-Aug-13,OTHER MEDICAL SUPPLIES,Medicine,NHS LOGISTICS,1014061140,2.65,
Department of Health,Salisbury NHS Foundation Trust,16-Aug-13,PATIENTS INCONTINENCE,Medicine,NHS LOGISTICS,1014061140,3.46,
Department of Health,Salisbury NHS Foundation Trust,16-Aug-13,PATIENTS INCONTINENCE,Medicine,NHS LOGISTICS,1014061140,1.67,
Department of Health,Salisbury NHS Foundation Trust,16-Aug-13,TISSUES HAND TOWELS & TOILET PAPER,Medicine,NHS LOGISTICS,1014061140,0.36,
Department of Health,Salisbury NHS Foundation Trust,16-Aug-13,DRESSINGS - PRE STERILE,Medicine,NHS LOGISTICS,1014061140,0.67,
Department of Health,Salisbury NHS Foundation Trust,16-Aug-13,DRESSINGS - PRE STERILE,Medicine,NHS LOGISTICS,1014061140,0.17,
Department of Health,Salisbury NHS Foundation Trust,16-Aug-13,OTHER MEDICAL SUPPLIES,Medicine,NHS LOGISTICS,1014061140,4.42,
Department of Health,Salisbury NHS Foundation Trust,16-Aug-13,DRESSINGS - PRE STERILE,Medicine,NHS LOGISTICS,1014061140,2.66,
Department of Health,Salisbury NHS Foundation Trust,16-Aug-13,DRESSINGS  -  PROCEDURE PACKS,Medicine,NHS LOGISTICS,1014061140,0.15,
Department of Health,Salisbury NHS Foundation Trust,16-Aug-13,MED SURG EQUIP REP MAINT CLEANING,Medicine,NHS LOGISTICS,1014061140,4.14,
Department of Health,Salisbury NHS Foundation Trust,16-Aug-13,TISSUES HAND TOWELS & TOILET PAPER,Medicine,NHS LOGISTICS,1014061140,0.14,
Department of Health,Salisbury NHS Foundation Trust,16-Aug-13,PAPER ITEMS GENERAL STATIONERY SUNDRIES,Surgery,NHS LOGISTICS,1014061140,1.87,
Department of Health,Salisbury NHS Foundation Trust,16-Aug-13,OTHER MEDICAL SUPPLIES,Medicine,NHS LOGISTICS,1014061140,3.31,
Department of Health,Salisbury NHS Foundation Trust,16-Aug-13,NON DISPOSABLE BED LINEN,Medicine,NHS LOGISTICS,1014061140,1.12,
Department of Health,Salisbury NHS Foundation Trust,16-Aug-13,PATIENTS INCONTINENCE,Medicine,NHS LOGISTICS,1014061140,0.73,
Department of Health,Salisbury NHS Foundation Trust,16-Aug-13,PATIENTS INCONTINENCE,Medicine,NHS LOGISTICS,1014061140,3.21,
Department of Health,Salisbury NHS Foundation Trust,16-Aug-13,LAB EQUIP-LABORATORY APPARATUS,Medicine,NHS LOGISTICS,1014061140,0.45,
Department of Health,Salisbury NHS Foundation Trust,16-Aug-13,NON DISPOSABLE BED LINEN,Medicine,NHS LOGISTICS,1014061140,1.12,
Department of Health,Salisbury NHS Foundation Trust,16-Aug-13,CLEANING MATERIALS PRODUCTS SUNDRIES,Facilities Directorate,NHS LOGISTICS,1014061140,5.33,
Department of Health,Salisbury NHS Foundation Trust,16-Aug-13,SURGICAL INSTRUMENTS: DISPOSABLE,Critical care,NHS LOGISTICS,1014061140,2.47,
Department of Health,Salisbury NHS Foundation Trust,16-Aug-13,TISSUES HAND TOWELS & TOILET PAPER,Clinical Support and Family Services,NHS LOGISTICS,1014061140,1.82,
Department of Health,Salisbury NHS Foundation Trust,16-Aug-13,STATIONERY SUNDRIES,Clinical Support and Family Services,NHS LOGISTICS,1014061140,0.29,
Department of Health,Salisbury NHS Foundation Trust,16-Aug-13,OTHER MEDICAL SUPPLIES,Medicine,NHS LOGISTICS,1014061140,1.77,
Department of Health,Salisbury NHS Foundation Trust,16-Aug-13,TOILETRIES PERSONAL HYGIENE PRODUCTS,Medicine,NHS LOGISTICS,1014061140,0.77,
Department of Health,Salisbury NHS Foundation Trust,16-Aug-13,TISSUES HAND TOWELS & TOILET PAPER,Medicine,NHS LOGISTICS,1014061140,0.73,
Department of Health,Salisbury NHS Foundation Trust,16-Aug-13,PATIENTS INCONTINENCE,Medicine,NHS LOGISTICS,1014061140,3.77,
Department of Health,Salisbury NHS Foundation Trust,16-Aug-13,TOILETRIES PERSONAL HYGIENE PRODUCTS,Medicine,NHS LOGISTICS,1014061140,0.95,
Department of Health,Salisbury NHS Foundation Trust,16-Aug-13,TISSUES HAND TOWELS & TOILET PAPER,Medicine,NHS LOGISTICS,1014061140,0.18,
Department of Health,Salisbury NHS Foundation Trust,16-Aug-13,DRESSINGS - PRE STERILE,Medicine,NHS LOGISTICS,1014061140,0.4,
Department of Health,Salisbury NHS Foundation Trust,16-Aug-13,OTHER MEDICAL SUPPLIES,Medicine,NHS LOGISTICS,1014061140,23.08,
Department of Health,Salisbury NHS Foundation Trust,16-Aug-13,DRESSINGS - PRE STERILE,Medicine,NHS LOGISTICS,1014061140,0.17,
Department of Health,Salisbury NHS Foundation Trust,16-Aug-13,OTHER MEDICAL SUPPLIES,Medicine,NHS LOGISTICS,1014061140,4.42,
Department of Health,Salisbury NHS Foundation Trust,16-Aug-13,TUBES,Medicine,NHS LOGISTICS,1014061140,1.23,
Department of Health,Salisbury NHS Foundation Trust,16-Aug-13,PATIENTS INCONTINENCE,Medicine,NHS LOGISTICS,1014061140,11.32,
Department of Health,Salisbury NHS Foundation Trust,16-Aug-13,STATIONERY SUNDRIES,Facilities Directorate,NHS LOGISTICS,1014061140,0.12,
Department of Health,Salisbury NHS Foundation Trust,16-Aug-13,CLEANING MATERIALS PRODUCTS SUNDRIES,Facilities Directorate,NHS LOGISTICS,1014061140,2.71,
Department of Health,Salisbury NHS Foundation Trust,16-Aug-13,CLEANING MATERIALS PRODUCTS SUNDRIES,Facilities Directorate,NHS LOGISTICS,1014061140,2.47,
Department of Health,Salisbury NHS Foundation Trust,16-Aug-13,CLEANING MATERIALS PRODUCTS SUNDRIES,Facilities Directorate,NHS LOGISTICS,1014061140,2.32,
Department of Health,Salisbury NHS Foundation Trust,16-Aug-13,PAPER ITEMS GENERAL STATIONERY SUNDRIES,Facilities Directorate,NHS LOGISTICS,1014061140,3.73,
Department of Health,Salisbury NHS Foundation Trust,16-Aug-13,TISSUES HAND TOWELS & TOILET PAPER,Facilities Directorate,NHS LOGISTICS,1014061140,18.17,
Department of Health,Salisbury NHS Foundation Trust,16-Aug-13,STATIONERY SUNDRIES,Facilities Directorate,NHS LOGISTICS,1014061140,0.34,
Department of Health,Salisbury NHS Foundation Trust,16-Aug-13,OTHER MEDICAL SUPPLIES,Medicine,NHS LOGISTICS,1014061140,0.88,
Department of Health,Salisbury NHS Foundation Trust,16-Aug-13,TISSUES HAND TOWELS & TOILET PAPER,Medicine,NHS LOGISTICS,1014061140,0.18,
Department of Health,Salisbury NHS Foundation Trust,16-Aug-13,MED SURG EQUIP REP MAINT CLEANING,Medicine,NHS LOGISTICS,1014061140,3.45,
Department of Health,Salisbury NHS Foundation Trust,16-Aug-13,MEDSURGCONS - OTHER,Medicine,NHS LOGISTICS,1014061140,2.08,
Department of Health,Salisbury NHS Foundation Trust,16-Aug-13,PAPER ITEMS GENERAL STATIONERY SUNDRIES,Facilities Directorate,NHS LOGISTICS,1014061140,0.1,
Department of Health,Salisbury NHS Foundation Trust,16-Aug-13,STATIONERY SUNDRIES,Surgery,NHS LOGISTICS,1014061140,0.61,
Department of Health,Salisbury NHS Foundation Trust,16-Aug-13,PATIENTS INCONTINENCE,Medicine,NHS LOGISTICS,1014061140,1.45,
Department of Health,Salisbury NHS Foundation Trust,16-Aug-13,OTHER MEDICAL SUPPLIES,Clinical Support and Family Services,NHS LOGISTICS,1014061140,3.31,
Department of Health,Salisbury NHS Foundation Trust,16-Aug-13,LAB EQUIP-LABORATORY APPARATUS,Clinical Support and Family Services,NHS LOGISTICS,1014061140,6.36,
Department of Health,Salisbury NHS Foundation Trust,16-Aug-13,PATIENTS INCONTINENCE,Medicine,NHS LOGISTICS,1014061140,3.21,
Department of Health,Salisbury NHS Foundation Trust,16-Aug-13,OTHER MEDICAL SUPPLIES,Medicine,NHS LOGISTICS,1014061140,1.14,
Department of Health,Salisbury NHS Foundation Trust,16-Aug-13,MEDSURGCONS - OTHER,Medicine,NHS LOGISTICS,1014061140,3.58,
Department of Health,Salisbury NHS Foundation Trust,16-Aug-13,NON DISPOSABLE BED LINEN,Medicine,NHS LOGISTICS,1014061140,10.95,
Department of Health,Salisbury NHS Foundation Trust,16-Aug-13,PATIENT APPLIANCES,Medicine,NHS LOGISTICS,1014061140,3.17,
Department of Health,Salisbury NHS Foundation Trust,16-Aug-13,PATIENT APPLIANCES,Medicine,NHS LOGISTICS,1014061140,1.06,
Department of Health,Salisbury NHS Foundation Trust,16-Aug-13,PATIENT APPLIANCES,Medicine,NHS LOGISTICS,1014061140,1.53,
Department of Health,Salisbury NHS Foundation Trust,16-Aug-13,OTHER MEDICAL SUPPLIES,Medicine,NHS LOGISTICS,1014061140,0.7,
Department of Health,Salisbury NHS Foundation Trust,16-Aug-13,MEDSURGCONS - OTHER,Medicine,NHS LOGISTICS,1014061140,5.27,
Department of Health,Salisbury NHS Foundation Trust,16-Aug-13,MEDSURGCONS-SUTURES,Medicine,NHS LOGISTICS,1014061140,5.34,
Department of Health,Salisbury NHS Foundation Trust,16-Aug-13,MEDSURGCONS-SUTURES,Medicine,NHS LOGISTICS,1014061140,7.95,
Department of Health,Salisbury NHS Foundation Trust,16-Aug-13,NON DISPOSABLE BED LINEN,Medicine,NHS LOGISTICS,1014061140,1.12,
Department of Health,Salisbury NHS Foundation Trust,16-Aug-13,DISPOSABLE THEATRE DRAPES WIPES,Medicine,NHS LOGISTICS,1014061140,3.22,
Department of Health,Salisbury NHS Foundation Trust,16-Aug-13,OTHER MEDICAL SUPPLIES,Medicine,NHS LOGISTICS,1014061140,2.05,
Department of Health,Salisbury NHS Foundation Trust,16-Aug-13,OTHER MEDICAL SUPPLIES,Medicine,NHS LOGISTICS,1014061140,0.9,
Department of Health,Salisbury NHS Foundation Trust,16-Aug-13,MEDSURGCONS - OTHER,Medicine,NHS LOGISTICS,1014061140,3.03,
Department of Health,Salisbury NHS Foundation Trust,16-Aug-13,NON DISPOSABLE BED LINEN,Medicine,NHS LOGISTICS,1014061140,1.12,
Department of Health,Salisbury NHS Foundation Trust,16-Aug-13,STATIONERY SUNDRIES,Surgery,NHS LOGISTICS,1014061140,0.45,
Department of Health,Salisbury NHS Foundation Trust,16-Aug-13,STATIONERY SUNDRIES,Surgery,NHS LOGISTICS,1014061140,0.37,
Department of Health,Salisbury NHS Foundation Trust,16-Aug-13,DISPOSABLE THEATRE DRAPES WIPES,Human Resources,NHS LOGISTICS,1014061140,2.14,
Department of Health,Salisbury NHS Foundation Trust,16-Aug-13,STATIONERY SUNDRIES,Critical care,NHS LOGISTICS,1014061140,1.67,
Department of Health,Salisbury NHS Foundation Trust,16-Aug-13,STATIONERY SUNDRIES,Critical care,NHS LOGISTICS,1014061140,1.67,
Department of Health,Salisbury NHS Foundation Trust,16-Aug-13,STATIONERY SUNDRIES,Surgery,NHS LOGISTICS,1014061140,0.23,
Department of Health,Salisbury NHS Foundation Trust,16-Aug-13,STATIONERY SUNDRIES,Surgery,NHS LOGISTICS,1014061140,2.42,
Department of Health,Salisbury NHS Foundation Trust,16-Aug-13,LAB EQUIP-LABORATORY APPARATUS,Clinical Support and Family Services,NHS LOGISTICS,1014061140,5.05,
Department of Health,Salisbury NHS Foundation Trust,16-Aug-13,LAB EQUIP-LABORATORY APPARATUS,Clinical Support and Family Services,NHS LOGISTICS,1014061140,70.5,
Department of Health,Salisbury NHS Foundation Trust,16-Aug-13,LAB EQUIP-LABORATORY APPARATUS,Clinical Support and Family Services,NHS LOGISTICS,1014061140,16.82,
Department of Health,Salisbury NHS Foundation Trust,16-Aug-13,LAB EQUIP-LABORATORY APPARATUS,Clinical Support and Family Services,NHS LOGISTICS,1014061140,129.73,
Department of Health,Salisbury NHS Foundation Trust,16-Aug-13,LAB EQUIP-LABORATORY APPARATUS,Clinical Support and Family Services,NHS LOGISTICS,1014061140,1.29,
Department of Health,Salisbury NHS Foundation Trust,16-Aug-13,LAB EQUIP-LABORATORY APPARATUS,Clinical Support and Family Services,NHS LOGISTICS,1014061140,6.36,
Department of Health,Salisbury NHS Foundation Trust,16-Aug-13,LAB EQUIP-LABORATORY APPARATUS,Clinical Support and Family Services,NHS LOGISTICS,1014061140,35.58,
Department of Health,Salisbury NHS Foundation Trust,16-Aug-13,LAB EQUIP-LABORATORY APPARATUS,Clinical Support and Family Services,NHS LOGISTICS,1014061140,11.7,
Department of Health,Salisbury NHS Foundation Trust,16-Aug-13,OTHER MEDICAL SUPPLIES,Clinical Support and Family Services,NHS LOGISTICS,1014061140,63.47,
Department of Health,Salisbury NHS Foundation Trust,16-Aug-13,DISPOSABLE THEATRE DRAPES WIPES,Clinical Support and Family Services,NHS LOGISTICS,1014061140,2.64,
Department of Health,Salisbury NHS Foundation Trust,16-Aug-13,PAPER ITEMS GENERAL STATIONERY SUNDRIES,Corporate Directorate,NHS LOGISTICS,1014061140,6.27,
Department of Health,Salisbury NHS Foundation Trust,16-Aug-13,PAPER ITEMS GENERAL STATIONERY SUNDRIES,Corporate Directorate,NHS LOGISTICS,1014061140,4.11,
Department of Health,Salisbury NHS Foundation Trust,16-Aug-13,PAPER ITEMS GENERAL STATIONERY SUNDRIES,Corporate Directorate,NHS LOGISTICS,1014061140,3.25,
Department of Health,Salisbury NHS Foundation Trust,16-Aug-13,PAPER ITEMS GENERAL STATIONERY SUNDRIES,Corporate Directorate,NHS LOGISTICS,1014061140,2.92,
Department of Health,Salisbury NHS Foundation Trust,16-Aug-13,STATIONERY SUNDRIES,Corporate Directorate,NHS LOGISTICS,1014061140,0.55,
Department of Health,Salisbury NHS Foundation Trust,16-Aug-13,STATIONERY SUNDRIES,Corporate Directorate,NHS LOGISTICS,1014061140,9.52,
Department of Health,Salisbury NHS Foundation Trust,16-Aug-13,PAPER ITEMS GENERAL STATIONERY SUNDRIES,Corporate Directorate,NHS LOGISTICS,1014061140,9.17,
Department of Health,Salisbury NHS Foundation Trust,16-Aug-13,PAPER ITEMS GENERAL STATIONERY SUNDRIES,Surgery,NHS LOGISTICS,1014061140,2.26,
Department of Health,Salisbury NHS Foundation Trust,16-Aug-13,DISPOSABLE THEATRE DRAPES WIPES,Surgery,NHS LOGISTICS,1014061140,2.14,
Department of Health,Salisbury NHS Foundation Trust,16-Aug-13,STATIONERY SUNDRIES,Critical care,NHS LOGISTICS,1014061140,0.11,
Department of Health,Salisbury NHS Foundation Trust,16-Aug-13,STATIONERY SUNDRIES,Critical care,NHS LOGISTICS,1014061140,0.08,
Department of Health,Salisbury NHS Foundation Trust,16-Aug-13,OTHER MEDICAL SUPPLIES,Surgery,NHS LOGISTICS,1014061140,4.42,
Department of Health,Salisbury NHS Foundation Trust,16-Aug-13,M & S EQUIPELECTEQUIPINST - OTHER,Surgery,NHS LOGISTICS,1014061140,3.18,
Department of Health,Salisbury NHS Foundation Trust,16-Aug-13,DRESSINGS - PRE STERILE,Surgery,NHS LOGISTICS,1014061140,0.09,
Department of Health,Salisbury NHS Foundation Trust,16-Aug-13,SURGICAL INSTRUMENTS: GENERAL,Surgery,NHS LOGISTICS,1014061140,2.57,
Department of Health,Salisbury NHS Foundation Trust,16-Aug-13,MEDSURGCONS - OTHER,Surgery,NHS LOGISTICS,1014061140,1.04,
Department of Health,Salisbury NHS Foundation Trust,16-Aug-13,TISSUES HAND TOWELS & TOILET PAPER,Surgery,NHS LOGISTICS,1014061140,0.07,
Department of Health,Salisbury NHS Foundation Trust,16-Aug-13,BAGS SACKS - OTHER,Facilities Directorate,NHS LOGISTICS,1014061140,17.72,
Department of Health,Salisbury NHS Foundation Trust,16-Aug-13,BAGS SACKS - OTHER,Facilities Directorate,NHS LOGISTICS,1014061140,42,
Department of Health,Salisbury NHS Foundation Trust,16-Aug-13,CLEANING MATERIALS PRODUCTS SUNDRIES,Facilities Directorate,NHS LOGISTICS,1014061140,6.4,
Department of Health,Salisbury NHS Foundation Trust,16-Aug-13,CLEANING MATERIALS PRODUCTS SUNDRIES,Facilities Directorate,NHS LOGISTICS,1014061140,13.2,
Department of Health,Salisbury NHS Foundation Trust,16-Aug-13,CLEANING MATERIALS PRODUCTS SUNDRIES,Facilities Directorate,NHS LOGISTICS,1014061140,8.53,
Department of Health,Salisbury NHS Foundation Trust,16-Aug-13,LIQUID REFRESHMENTS,Facilities Directorate,NHS LOGISTICS,1014061140,1.53,
Department of Health,Salisbury NHS Foundation Trust,16-Aug-13,CLEANING MATERIALS PRODUCTS SUNDRIES,Facilities Directorate,NHS LOGISTICS,1014061140,13.92,
Department of Health,Salisbury NHS Foundation Trust,16-Aug-13,CLEANING MATERIALS PRODUCTS SUNDRIES,Facilities Directorate,NHS LOGISTICS,1014061140,2.7,
Department of Health,Salisbury NHS Foundation Trust,16-Aug-13,PAPER ITEMS GENERAL STATIONERY SUNDRIES,Clinical Effctiveness Directorate,NHS LOGISTICS,1014061140,3.73,
Department of Health,Salisbury NHS Foundation Trust,16-Aug-13,STATIONERY SUNDRIES,Surgery,NHS LOGISTICS,1014061140,0.83,
Department of Health,Salisbury NHS Foundation Trust,16-Aug-13,TISSUES HAND TOWELS & TOILET PAPER,Surgery,NHS LOGISTICS,1014061140,0.73,
Department of Health,Salisbury NHS Foundation Trust,16-Aug-13,COOKING & KITCHEN UTENSILS,Surgery,NHS LOGISTICS,1014061140,0.71,
Department of Health,Salisbury NHS Foundation Trust,16-Aug-13,COOKING & KITCHEN UTENSILS,Surgery,NHS LOGISTICS,1014061140,0.83,
Department of Health,Salisbury NHS Foundation Trust,16-Aug-13,MEDSURGCONS - OTHER,Surgery,NHS LOGISTICS,1014061140,3.02,
Department of Health,Salisbury NHS Foundation Trust,16-Aug-13,DRESSINGS - PRE STERILE,Surgery,NHS LOGISTICS,1014061140,6.55,
Department of Health,Salisbury NHS Foundation Trust,16-Aug-13,DRESSINGS - PRE STERILE,Surgery,NHS LOGISTICS,1014061140,15.13,
Department of Health,Salisbury NHS Foundation Trust,16-Aug-13,ANAESTHETIC EQUIPMENT ACCESSORIES,Surgery,NHS LOGISTICS,1014061140,1.2,
Department of Health,Salisbury NHS Foundation Trust,16-Aug-13,TISSUES HAND TOWELS & TOILET PAPER,Surgery,NHS LOGISTICS,1014061140,0.9,
Department of Health,Salisbury NHS Foundation Trust,16-Aug-13,CLEANING MATERIALS PRODUCTS SUNDRIES,Surgery,NHS LOGISTICS,1014061140,1.77,
Department of Health,Salisbury NHS Foundation Trust,16-Aug-13,MEDSURGCONS - OTHER,Surgery,NHS LOGISTICS,1014061140,0.63,
Department of Health,Salisbury NHS Foundation Trust,16-Aug-13,PAPER ITEMS GENERAL STATIONERY SUNDRIES,Surgery,NHS LOGISTICS,1014061140,3.73,
Department of Health,Salisbury NHS Foundation Trust,16-Aug-13,DRUGS,Surgery,NHS LOGISTICS,1014061140,9.22,
Department of Health,Salisbury NHS Foundation Trust,16-Aug-13,SURGICAL INSTRUMENTS: GENERAL,Surgery,NHS LOGISTICS,1014061140,3.17,
Department of Health,Salisbury NHS Foundation Trust,16-Aug-13,DRESSINGS - PRE STERILE,Surgery,NHS LOGISTICS,1014061140,1.2,
Department of Health,Salisbury NHS Foundation Trust,16-Aug-13,TISSUES HAND TOWELS & TOILET PAPER,Surgery,NHS LOGISTICS,1014061140,12.4,
Department of Health,Salisbury NHS Foundation Trust,16-Aug-13,MEDSURGCONS - OTHER,Surgery,NHS LOGISTICS,1014061140,9.95,
Department of Health,Salisbury NHS Foundation Trust,16-Aug-13,DRESSINGS - PRE STERILE,Surgery,NHS LOGISTICS,1014061140,2.89,
Department of Health,Salisbury NHS Foundation Trust,16-Aug-13,PAPER ITEMS GENERAL STATIONERY SUNDRIES,Critical care,NHS LOGISTICS,1014061140,2.64,
Department of Health,Salisbury NHS Foundation Trust,16-Aug-13,STATIONERY SUNDRIES,Surgery,NHS LOGISTICS,1014061140,4.07,
Department of Health,Salisbury NHS Foundation Trust,16-Aug-13,BAGS SACKS - OTHER,Surgery,NHS LOGISTICS,1014061140,0.8,
Department of Health,Salisbury NHS Foundation Trust,16-Aug-13,OTHER MEDICAL SUPPLIES,Surgery,NHS LOGISTICS,1014061140,3.31,
Department of Health,Salisbury NHS Foundation Trust,16-Aug-13,PATIENTS INCONTINENCE,Surgery,NHS LOGISTICS,1014061140,0.73,
Department of Health,Salisbury NHS Foundation Trust,16-Aug-13,PATIENTS INCONTINENCE,Surgery,NHS LOGISTICS,1014061140,0.86,
Department of Health,Salisbury NHS Foundation Trust,16-Aug-13,NON DISPOSABLE BED LINEN,Surgery,NHS LOGISTICS,1014061140,4.35,
Department of Health,Salisbury NHS Foundation Trust,16-Aug-13,PATIENT APPLIANCES,Surgery,NHS LOGISTICS,1014061140,2.13,
Department of Health,Salisbury NHS Foundation Trust,16-Aug-13,PATIENTS BEDWEAR UNISEX,Critical care,NHS LOGISTICS,1014061140,10.5,
Department of Health,Salisbury NHS Foundation Trust,16-Aug-13,CLEANING MATERIALS PRODUCTS SUNDRIES,Facilities Directorate,NHS LOGISTICS,1014061140,3.8,
Department of Health,Salisbury NHS Foundation Trust,16-Aug-13,CLEANING MATERIALS PRODUCTS SUNDRIES,Facilities Directorate,NHS LOGISTICS,1014061140,0.24,
Department of Health,Salisbury NHS Foundation Trust,16-Aug-13,CLEANING MATERIALS PRODUCTS SUNDRIES,Facilities Directorate,NHS LOGISTICS,1014061140,2.1,
Department of Health,Salisbury NHS Foundation Trust,16-Aug-13,CLEANING MATERIALS PRODUCTS SUNDRIES,Facilities Directorate,NHS LOGISTICS,1014061140,2.76,
Department of Health,Salisbury NHS Foundation Trust,16-Aug-13,CLEANING MATERIALS PRODUCTS SUNDRIES,Facilities Directorate,NHS LOGISTICS,1014061140,0.9,
Department of Health,Salisbury NHS Foundation Trust,16-Aug-13,TISSUES HAND TOWELS & TOILET PAPER,Human Resources,NHS LOGISTICS,1014061140,1.77,
Department of Health,Salisbury NHS Foundation Trust,16-Aug-13,DRESSINGS - PRE STERILE,Critical care,NHS LOGISTICS,1014061140,3.99,
Department of Health,Salisbury NHS Foundation Trust,16-Aug-13,DRESSINGS - PRE STERILE,Critical care,NHS LOGISTICS,1014061140,3.88,
Department of Health,Salisbury NHS Foundation Trust,16-Aug-13,OTHER MEDICAL SUPPLIES,Critical care,NHS LOGISTICS,1014061140,3.53,
Department of Health,Salisbury NHS Foundation Trust,16-Aug-13,TISSUES HAND TOWELS & TOILET PAPER,Critical care,NHS LOGISTICS,1014061140,0.36,
Department of Health,Salisbury NHS Foundation Trust,16-Aug-13,DRUGS,Critical care,NHS LOGISTICS,1014061140,1.54,
Department of Health,Salisbury NHS Foundation Trust,16-Aug-13,TUBES,Clinical Support and Family Services,NHS LOGISTICS,1014061140,1.23,
Department of Health,Salisbury NHS Foundation Trust,16-Aug-13,TISSUES HAND TOWELS & TOILET PAPER,Surgery,NHS LOGISTICS,1014061140,0.36,
Department of Health,Salisbury NHS Foundation Trust,16-Aug-13,TISSUES HAND TOWELS & TOILET PAPER,Surgery,NHS LOGISTICS,1014061140,0.35,
Department of Health,Salisbury NHS Foundation Trust,16-Aug-13,HEALTHCARE - WEAR,Clinical Support and Family Services,NHS LOGISTICS,1014061140,4.6,
Department of Health,Salisbury NHS Foundation Trust,16-Aug-13,DRESSINGS - PRE STERILE,Clinical Support and Family Services,NHS LOGISTICS,1014061140,0.2,
Department of Health,Salisbury NHS Foundation Trust,16-Aug-13,NON DISPOSABLE BED LINEN,Clinical Support and Family Services,NHS LOGISTICS,1014061140,4.9,
Department of Health,Salisbury NHS Foundation Trust,16-Aug-13,OTHER MEDICAL SUPPLIES,Clinical Support and Family Services,NHS LOGISTICS,1014061140,0.46,
Department of Health,Salisbury NHS Foundation Trust,16-Aug-13,TUBES,Clinical Support and Family Services,NHS LOGISTICS,1014061140,0.23,
Department of Health,Salisbury NHS Foundation Trust,16-Aug-13,TUBES,Clinical Support and Family Services,NHS LOGISTICS,1014061140,0.69,
Department of Health,Salisbury NHS Foundation Trust,16-Aug-13,DRESSINGS - PRE STERILE,Surgery,NHS LOGISTICS,1014061140,5.04,
Department of Health,Salisbury NHS Foundation Trust,16-Aug-13,TISSUES HAND TOWELS & TOILET PAPER,Surgery,NHS LOGISTICS,1014061140,0.18,
Department of Health,Salisbury NHS Foundation Trust,16-Aug-13,TISSUES HAND TOWELS & TOILET PAPER,Critical care,NHS LOGISTICS,1014061140,1.45,
Department of Health,Salisbury NHS Foundation Trust,16-Aug-13,CLEANING MATERIALS PRODUCTS SUNDRIES,Critical care,NHS LOGISTICS,1014061140,1.46,
Department of Health,Salisbury NHS Foundation Trust,16-Aug-13,OTHER MEDICAL SUPPLIES,Critical care,NHS LOGISTICS,1014061140,0.65,
Department of Health,Salisbury NHS Foundation Trust,16-Aug-13,PATIENTS INCONTINENCE,Critical care,NHS LOGISTICS,1014061140,1.82,
Department of Health,Salisbury NHS Foundation Trust,16-Aug-13,MEDSURGCONS - OTHER,Critical care,NHS LOGISTICS,1014061140,3.13,
Department of Health,Salisbury NHS Foundation Trust,16-Aug-13,PAPER ITEMS GENERAL STATIONERY SUNDRIES,Facilities Directorate,NHS LOGISTICS,1014061140,1.6,
Department of Health,Salisbury NHS Foundation Trust,16-Aug-13,LAB EQUIP-LABORATORY APPARATUS,Critical care,NHS LOGISTICS,1014061140,0.45,
Department of Health,Salisbury NHS Foundation Trust,16-Aug-13,MEDSURGCONS - OTHER,Clinical Support and Family Services,NHS LOGISTICS,1014061140,0.55,
Department of Health,Salisbury NHS Foundation Trust,16-Aug-13,OTHER MEDICAL SUPPLIES,Clinical Support and Family Services,NHS LOGISTICS,1014061140,0.23,
Department of Health,Salisbury NHS Foundation Trust,16-Aug-13,MEDSURGCONS-SUTURES,Clinical Support and Family Services,NHS LOGISTICS,1014061140,5.34,
Department of Health,Salisbury NHS Foundation Trust,16-Aug-13,MEDSURGCONS-SUTURES,Clinical Support and Family Services,NHS LOGISTICS,1014061140,5.69,
Department of Health,Salisbury NHS Foundation Trust,16-Aug-13,MEDSURGCONS-SUTURES,Clinical Support and Family Services,NHS LOGISTICS,1014061140,4.7,
Department of Health,Salisbury NHS Foundation Trust,16-Aug-13,MEDSURGCONS-SUTURES,Clinical Support and Family Services,NHS LOGISTICS,1014061140,7.51,
Department of Health,Salisbury NHS Foundation Trust,16-Aug-13,MEDSURGCONS-SUTURES,Clinical Support and Family Services,NHS LOGISTICS,1014061140,6.81,
Department of Health,Salisbury NHS Foundation Trust,16-Aug-13,BAGS SACKS - OTHER,Critical care,NHS LOGISTICS,1014061140,0.8,
Department of Health,Salisbury NHS Foundation Trust,16-Aug-13,OTHER MEDICAL SUPPLIES,Critical care,NHS LOGISTICS,1014061140,2.27,
Department of Health,Salisbury NHS Foundation Trust,16-Aug-13,MEDSURGCONS - OTHER,Critical care,NHS LOGISTICS,1014061140,7.16,
Department of Health,Salisbury NHS Foundation Trust,16-Aug-13,NON DISPOSABLE BED LINEN,Critical care,NHS LOGISTICS,1014061140,8.71,
Department of Health,Salisbury NHS Foundation Trust,16-Aug-13,PATIENT APPLIANCES,Critical care,NHS LOGISTICS,1014061140,1.06,
Department of Health,Salisbury NHS Foundation Trust,16-Aug-13,OTHER MEDICAL SUPPLIES,Clinical Support and Family Services,NHS LOGISTICS,1014061140,1.77,
Department of Health,Salisbury NHS Foundation Trust,16-Aug-13,PATIENTS BEDWEAR UNISEX,Clinical Support and Family Services,NHS LOGISTICS,1014061140,0.83,
Department of Health,Salisbury NHS Foundation Trust,16-Aug-13,MEDSURGCONS - OTHER,Clinical Support and Family Services,NHS LOGISTICS,1014061140,5.6,
Department of Health,Salisbury NHS Foundation Trust,16-Aug-13,DRESSINGS - PRE STERILE,Clinical Support and Family Services,NHS LOGISTICS,1014061140,2.35,
Department of Health,Salisbury NHS Foundation Trust,16-Aug-13,OTHER MEDICAL SUPPLIES,Clinical Support and Family Services,NHS LOGISTICS,1014061140,0.65,
Department of Health,Salisbury NHS Foundation Trust,16-Aug-13,MEDSURGCONS - OTHER,Clinical Support and Family Services,NHS LOGISTICS,1014061140,1.04,
Department of Health,Salisbury NHS Foundation Trust,16-Aug-13,MEDSURGCONS - OTHER,Clinical Support and Family Services,NHS LOGISTICS,1014061140,0.83,
Department of Health,Salisbury NHS Foundation Trust,16-Aug-13,OTHER MEDICAL SUPPLIES,Clinical Support and Family Services,NHS LOGISTICS,1014061140,1.02,
Department of Health,Salisbury NHS Foundation Trust,16-Aug-13,MEDSURGCONS-SUTURES,Clinical Support and Family Services,NHS LOGISTICS,1014061140,22.53,
Department of Health,Salisbury NHS Foundation Trust,16-Aug-13,PATIENT APPLIANCES,Clinical Support and Family Services,NHS LOGISTICS,1014061140,1.06,
Department of Health,Salisbury NHS Foundation Trust,16-Aug-13,M & S EQUIPELECTEQUIPINST - OTHER,Clinical Support and Family Services,NHS LOGISTICS,1014061140,16.73,
Department of Health,Salisbury NHS Foundation Trust,16-Aug-13,M & S EQUIPELECTEQUIPINST - OTHER,Clinical Support and Family Services,NHS LOGISTICS,1014061140,24.1,
Department of Health,Salisbury NHS Foundation Trust,16-Aug-13,M & S EQUIPELECTEQUIPINST - OTHER,Clinical Support and Family Services,NHS LOGISTICS,1014061140,25.81,
Department of Health,Salisbury NHS Foundation Trust,16-Aug-13,STATIONERY SUNDRIES,Critical care,NHS LOGISTICS,1014061140,0.38,
Department of Health,Salisbury NHS Foundation Trust,16-Aug-13,STATIONERY SUNDRIES,Critical care,NHS LOGISTICS,1014061140,0.37,
Department of Health,Salisbury NHS Foundation Trust,16-Aug-13,PAPER ITEMS GENERAL STATIONERY SUNDRIES,Critical care,NHS LOGISTICS,1014061140,1.96,
Department of Health,Salisbury NHS Foundation Trust,16-Aug-13,PAPER ITEMS GENERAL STATIONERY SUNDRIES,Medicine,NHS LOGISTICS,1014061140,5.56,
Department of Health,Salisbury NHS Foundation Trust,16-Aug-13,PAPER ITEMS GENERAL STATIONERY SUNDRIES,Medicine,NHS LOGISTICS,1014061140,9.17,
Department of Health,Salisbury NHS Foundation Trust,16-Aug-13,SURGICAL INSTRUMENTS: GENERAL,Surgery,NHS LOGISTICS,1014061140,17.33,
Department of Health,Salisbury NHS Foundation Trust,16-Aug-13,STATIONERY SUNDRIES,Clinical Support and Family Services,NHS LOGISTICS,1014061140,0.06,
Department of Health,Salisbury NHS Foundation Trust,16-Aug-13,STATIONERY SUNDRIES,Clinical Support and Family Services,NHS LOGISTICS,1014061140,0.61,
Department of Health,Salisbury NHS Foundation Trust,16-Aug-13,MEDSURGCONS - OTHER,Clinical Support and Family Services,NHS LOGISTICS,1014061140,16.37,
Department of Health,Salisbury NHS Foundation Trust,16-Aug-13,MEDSURGCONS - OTHER,Clinical Support and Family Services,NHS LOGISTICS,1014061140,16.37,
Department of Health,Salisbury NHS Foundation Trust,16-Aug-13,MEDSURGCONS - OTHER,Clinical Support and Family Services,NHS LOGISTICS,1014061140,16.37,
Department of Health,Salisbury NHS Foundation Trust,16-Aug-13,COOKING & KITCHEN UTENSILS,Facilities Directorate,NHS LOGISTICS,1014061140,7.89,
Department of Health,Salisbury NHS Foundation Trust,16-Aug-13,COOKING & KITCHEN UTENSILS,Facilities Directorate,NHS LOGISTICS,1014061140,2.5,
Department of Health,Salisbury NHS Foundation Trust,16-Aug-13,PAPER ITEMS GENERAL STATIONERY SUNDRIES,Directorate of Finance and Procurement,NHS LOGISTICS,1014061140,27.67,
Department of Health,Salisbury NHS Foundation Trust,16-Aug-13,DRESSINGS  -  PROCEDURE PACKS,Surgery,NHS LOGISTICS,1014061140,3.17,
Department of Health,Salisbury NHS Foundation Trust,16-Aug-13,MEDSURGCONS-SUTURES,Surgery,NHS LOGISTICS,1014061140,12.3,
Department of Health,Salisbury NHS Foundation Trust,16-Aug-13,MEDSURGCONS-SUTURES,Surgery,NHS LOGISTICS,1014061140,13.63,
Department of Health,Salisbury NHS Foundation Trust,16-Aug-13,MEDSURGCONS-SUTURES,Surgery,NHS LOGISTICS,1014061140,57.15,
Department of Health,Salisbury NHS Foundation Trust,16-Aug-13,MEDSURGCONS-SUTURES,Surgery,NHS LOGISTICS,1014061140,12.4,
Department of Health,Salisbury NHS Foundation Trust,16-Aug-13,MEDSURGCONS-SUTURES,Surgery,NHS LOGISTICS,1014061140,12.03,
Department of Health,Salisbury NHS Foundation Trust,16-Aug-13,MEDSURGCONS-SUTURES,Surgery,NHS LOGISTICS,1014061140,43.22,
Department of Health,Salisbury NHS Foundation Trust,16-Aug-13,MEDSURGCONS-SUTURES,Surgery,NHS LOGISTICS,1014061140,10.95,
Department of Health,Salisbury NHS Foundation Trust,16-Aug-13,MEDSURGCONS-SUTURES,Surgery,NHS LOGISTICS,1014061140,8.76,
Department of Health,Salisbury NHS Foundation Trust,16-Aug-13,MEDSURGCONS-SUTURES,Surgery,NHS LOGISTICS,1014061140,25.2,
Department of Health,Salisbury NHS Foundation Trust,16-Aug-13,MEDSURGCONS-SUTURES,Surgery,NHS LOGISTICS,1014061140,2.68,
